Department Family,Entity,Date,Expense Type,Expense Area,Supplier,Transaction Number,Amount,Item Description
BEIS,UKRI - AHRC,01/11/2019,Advertising & Promotion,Public and Stakeholder Engagement,Unspecified,98619962,1400.00,Advertising & Promotion
BEIS,UKRI - AHRC,04/11/2019,Contract Staff,PSU Project Office,Alexander Mann Solutions Ltd,98608192,2795.58,Contract Staff
BEIS,UKRI - AHRC,04/11/2019,Contract Staff,PSU Project Office,Alexander Mann Solutions Ltd,98613802,1677.35,Contract Staff
BEIS,UKRI - AHRC,04/11/2019,Contract Staff,PSU JRS,Alexander Mann Solutions Ltd,98622225,3423.12,Contract Staff
BEIS,UKRI - AHRC,04/11/2019,Contract Staff,PSU Project Office,Alexander Mann Solutions Ltd,98622229,2795.58,Contract Staff
BEIS,UKRI - AHRC,04/11/2019,Meetings & Catering,Executive Office,Harbour & Jones Ltd T/A Dartmouth House,98622284,563.00,Meetings & Catering
BEIS,UKRI - AHRC,04/11/2019,Meetings & Catering,Executive Office,Harbour & Jones Ltd T/A Dartmouth House,98622284,112.60,Meetings & Catering
BEIS,UKRI - AHRC,04/11/2019,T&S UK - Other Charges,Public and Stakeholder Engagement,Unspecified,98622377,7.59,T&S UK - Other Charges
BEIS,UKRI - AHRC,04/11/2019,T&S UK - Public Transport,Public and Stakeholder Engagement,Unspecified,98622377,6.00,T&S UK - Public Transport
BEIS,UKRI - AHRC,04/11/2019,T&S UK - Subsistence,Public and Stakeholder Engagement,Unspecified,98622377,17.15,T&S UK - Subsistence
BEIS,UKRI - AHRC,05/11/2019,Research Grant Expenditure,Cross Council Responsive Mode Awards,UKRI - Economic & Social Research Council,98619976,50000.00,Research Grant Expenditure
BEIS,UKRI - AHRC,05/11/2019,Secondments,SMT,Unspecified,98621672,26349.60,Secondments
BEIS,UKRI - AHRC,05/11/2019,Health & Safety (inc. Medicals & Opticians),Digital Arts and Humanities and Creative Industries,Unspecified,98621880,12.00,Health & Safety (inc. Medicals & Opticians)
BEIS,UKRI - AHRC,06/11/2019,Health & Safety (inc. Medicals & Opticians),HR,Swindon Occupational Medical Services Ltd,98622604,875.00,Health & Safety (inc. Medicals & Opticians)
BEIS,UKRI - AHRC,06/11/2019,Consultancy Services,GCRF - Programme Delivery,Partnership Media Group T/A GovNet Communications,98623082,714.00,Consultancy Services
BEIS,UKRI - AHRC,06/11/2019,Hospitality,International,Benugo Ltd,98624143,5082.00,Hospitality
BEIS,UKRI - AHRC,06/11/2019,T&S UK - Parking Tolls Congestion Charges,SMT,Unspecified,98624960,25.90,T&S UK - Parking Tolls Congestion Charges
BEIS,UKRI - AHRC,06/11/2019,T&S UK - Public Transport,SMT,Unspecified,98624960,2.40,T&S UK - Public Transport
BEIS,UKRI - AHRC,06/11/2019,T&S UK - Subsistence,SMT,Unspecified,98624960,17.76,T&S UK - Subsistence
BEIS,UKRI - AHRC,06/11/2019,T&S UK - Subsistence,SMT,Unspecified,98624960,33.78,T&S UK - Subsistence
BEIS,UKRI - AHRC,06/11/2019,T&S UK - Subsistence,SMT,Unspecified,98624960,17.60,T&S UK - Subsistence
BEIS,UKRI - AHRC,06/11/2019,T&S UK - Vehicle Hire,SMT,Unspecified,98624960,36.90,T&S UK - Vehicle Hire
BEIS,UKRI - AHRC,06/11/2019,T&S UK - Other Charges,Executive Office,Unspecified,98624962,7.40,T&S UK - Other Charges
BEIS,UKRI - AHRC,06/11/2019,T&S UK - Public Transport,Executive Office,Unspecified,98624962,14.60,T&S UK - Public Transport
BEIS,UKRI - AHRC,06/11/2019,T&S UK - Public Transport,Executive Office,Unspecified,98624962,8.80,T&S UK - Public Transport
BEIS,UKRI - AHRC,06/11/2019,T&S UK - Public Transport,Executive Office,Unspecified,98624962,27.30,T&S UK - Public Transport
BEIS,UKRI - AHRC,06/11/2019,T&S UK - Subsistence,Executive Office,Unspecified,98624962,25.45,T&S UK - Subsistence
BEIS,UKRI - AHRC,06/11/2019,T&S UK - Subsistence,Executive Office,Unspecified,98624962,5.00,T&S UK - Subsistence
BEIS,UKRI - AHRC,07/11/2019,T&S UK - Other Charges,Skills Strategy,Unspecified,98623671,30.00,T&S UK - Other Charges
BEIS,UKRI - AHRC,08/11/2019,Hospitality,SMT,Jurys Inns (UK) Ltd,98491410,2275.00,Hospitality
BEIS,UKRI - AHRC,08/11/2019,Corporate Events,SMT,Jurys Inns (UK) Ltd,98543094,-147.00,Corporate Events
BEIS,UKRI - AHRC,08/11/2019,T&S UK - Other Charges,"History, Heritage, Languages and Literature",Unspecified,98626146,4.65,T&S UK - Other Charges
BEIS,UKRI - AHRC,08/11/2019,T&S UK - Subsistence,"History, Heritage, Languages and Literature",Unspecified,98626146,10.88,T&S UK - Subsistence
BEIS,UKRI - AHRC,11/11/2019,Advertising & Promotion,Public and Stakeholder Engagement,Rumba Graphic Design Ltd,98625982,792.00,Advertising & Promotion
BEIS,UKRI - AHRC,11/11/2019,Nursery Deductions,Balance Sheet,EDENRED (UK GROUP) LTD,98626556,2047.00,Nursery Deductions
BEIS,UKRI - AHRC,11/11/2019,T&S UK - Public Transport,International,Unspecified,98626631,8.00,T&S UK - Public Transport
BEIS,UKRI - AHRC,11/11/2019,T&S UK - Subsistence,International,Unspecified,98626631,5.50,T&S UK - Subsistence
BEIS,UKRI - AHRC,11/11/2019,T&S UK - Subsistence,International,Unspecified,98626631,18.20,T&S UK - Subsistence
BEIS,UKRI - AHRC,11/11/2019,Health & Safety (inc. Medicals & Opticians),Operations,Unspecified,98626632,7.00,Health & Safety (inc. Medicals & Opticians)
BEIS,UKRI - AHRC,11/11/2019,Contract Staff,PSU Project Office,Alexander Mann Solutions Ltd,98627316,2795.58,Contract Staff
BEIS,UKRI - AHRC,11/11/2019,Contract Staff,PSU JRS,Alexander Mann Solutions Ltd,98627318,3423.12,Contract Staff
BEIS,UKRI - AHRC,12/11/2019,Hospitality,SMT,The Royal Society,98626853,2323.74,Hospitality
BEIS,UKRI - AHRC,12/11/2019,Non-staff travel and subsistance,SMT,Non Employee Expenses Supplier,98627619,28.00,Non-staff travel and subsistance
BEIS,UKRI - AHRC,12/11/2019,Non-staff travel and subsistance,Operations,Non Employee Expenses Supplier,98627620,305.74,Non-staff travel and subsistance
BEIS,UKRI - AHRC,12/11/2019,Non-staff travel and subsistance,Operations,Non Employee Expenses Supplier,98627621,114.70,Non-staff travel and subsistance
BEIS,UKRI - AHRC,12/11/2019,Corporate Events,"History, Heritage, Languages and Literature",Calder Conference Ltd,98628049,5040.00,Corporate Events
BEIS,UKRI - AHRC,12/11/2019,Non-staff travel and subsistance,SMT,Non Employee Expenses Supplier,98628057,69.10,Non-staff travel and subsistance
BEIS,UKRI - AHRC,12/11/2019,Non-staff travel and subsistance,SMT,Non Employee Expenses Supplier,98628058,42.00,Non-staff travel and subsistance
BEIS,UKRI - AHRC,12/11/2019,Non-staff travel and subsistance,SMT,Non Employee Expenses Supplier,98628059,241.51,Non-staff travel and subsistance
BEIS,UKRI - AHRC,12/11/2019,Non-staff travel and subsistance,SMT,Non Employee Expenses Supplier,98628060,220.59,Non-staff travel and subsistance
BEIS,UKRI - AHRC,12/11/2019,Non-staff travel and subsistance,Skills Strategy,Non Employee Expenses Supplier,98628061,182.90,Non-staff travel and subsistance
BEIS,UKRI - AHRC,12/11/2019,T&S UK - Public Transport,"History, Heritage, Languages and Literature",Unspecified,98628112,7.00,T&S UK - Public Transport
BEIS,UKRI - AHRC,12/11/2019,T&S UK - Subsistence,"History, Heritage, Languages and Literature",Unspecified,98628112,5.58,T&S UK - Subsistence
BEIS,UKRI - AHRC,12/11/2019,T&S UK - Subsistence,"History, Heritage, Languages and Literature",Unspecified,98628112,3.60,T&S UK - Subsistence
BEIS,UKRI - AHRC,12/11/2019,T&S UK - Subsistence,"History, Heritage, Languages and Literature",Unspecified,98628112,5.00,T&S UK - Subsistence
BEIS,UKRI - AHRC,12/11/2019,T&S UK - Other Charges,Public and Stakeholder Engagement,Unspecified,98628113,2.90,T&S UK - Other Charges
BEIS,UKRI - AHRC,12/11/2019,T&S UK - Subsistence,Public and Stakeholder Engagement,Unspecified,98628113,2.55,T&S UK - Subsistence
BEIS,UKRI - AHRC,12/11/2019,T&S UK - Subsistence,Public and Stakeholder Engagement,Unspecified,98628113,37.00,T&S UK - Subsistence
BEIS,UKRI - AHRC,12/11/2019,T&S UK - Subsistence,Public and Stakeholder Engagement,Unspecified,98628113,28.74,T&S UK - Subsistence
BEIS,UKRI - AHRC,12/11/2019,T&S UK - Parking Tolls Congestion Charges,Public and Stakeholder Engagement,Unspecified,98628114,5.60,T&S UK - Parking Tolls Congestion Charges
BEIS,UKRI - AHRC,12/11/2019,T&S UK - Subsistence,Skills Strategy,Unspecified,98628115,29.54,T&S UK - Subsistence
BEIS,UKRI - AHRC,12/11/2019,T&S UK - Subsistence,Skills Strategy,Unspecified,98628115,2.40,T&S UK - Subsistence
BEIS,UKRI - AHRC,12/11/2019,T&S Overseas - Subsistence,"History, Heritage, Languages and Literature",Unspecified,98628116,19.75,T&S Overseas - Subsistence
BEIS,UKRI - AHRC,13/11/2019,Recruitment Costs,Secretariat,The World Universities Insights Ltd,98613795,892.80,Recruitment Costs
BEIS,UKRI - AHRC,13/11/2019,Recruitment Costs,Secretariat,The World Universities Insights Ltd,98613795,-148.80,Recruitment Costs
BEIS,UKRI - AHRC,13/11/2019,NI Payable Salaries,Balance Sheet,HM Revenue & Customs,98623571,55246.79,NI Payable Salaries
BEIS,UKRI - AHRC,13/11/2019,PAYE Payable Salaries,Balance Sheet,HM Revenue & Customs,98623572,43339.60,PAYE Payable Salaries
BEIS,UKRI - AHRC,13/11/2019,Student Loans,Balance Sheet,HM Revenue & Customs,98623573,4881.00,Student Loans
BEIS,UKRI - AHRC,13/11/2019,Apprenticeship Levy,Corporate Services,HM Revenue & Customs,98623574,1435.00,Apprenticeship Levy
BEIS,UKRI - AHRC,13/11/2019,Health & Safety (inc. Medicals & Opticians),"History, Heritage, Languages and Literature",Unspecified,98626633,11.50,Health & Safety (inc. Medicals & Opticians)
BEIS,UKRI - AHRC,13/11/2019,T&S UK - Public Transport,"History, Heritage, Languages and Literature",Unspecified,98626633,4.80,T&S UK - Public Transport
BEIS,UKRI - AHRC,13/11/2019,T&S UK - Subsistence,"History, Heritage, Languages and Literature",Unspecified,98626633,19.69,T&S UK - Subsistence
BEIS,UKRI - AHRC,13/11/2019,T&S UK - Subsistence,"History, Heritage, Languages and Literature",Unspecified,98626633,5.00,T&S UK - Subsistence
BEIS,UKRI - AHRC,13/11/2019,Advertising & Promotion,Public and Stakeholder Engagement,Unspecified,98628355,1200.00,Advertising & Promotion
BEIS,UKRI - AHRC,13/11/2019,T&S UK - Subsistence,Executive Office,Unspecified,98628505,13.97,T&S UK - Subsistence
BEIS,UKRI - AHRC,13/11/2019,T&S UK - Subsistence,Executive Office,Unspecified,98628505,5.00,T&S UK - Subsistence
BEIS,UKRI - AHRC,13/11/2019,T&S UK - Other Charges,International Partnership and Engagement,Unspecified,98628506,20.00,T&S UK - Other Charges
BEIS,UKRI - AHRC,13/11/2019,T&S UK - Public Transport,International Partnership and Engagement,Unspecified,98628506,19.00,T&S UK - Public Transport
BEIS,UKRI - AHRC,13/11/2019,T&S UK - Public Transport,International Partnership and Engagement,Unspecified,98628506,32.00,T&S UK - Public Transport
BEIS,UKRI - AHRC,13/11/2019,T&S UK - Subsistence,International Partnership and Engagement,Unspecified,98628506,20.36,T&S UK - Subsistence
BEIS,UKRI - AHRC,13/11/2019,T&S UK - Subsistence,International Partnership and Engagement,Unspecified,98628506,15.00,T&S UK - Subsistence
BEIS,UKRI - AHRC,14/11/2019,Voluntary Deductions,Balance Sheet,Chargive,98623575,570.83,Voluntary Deductions
BEIS,UKRI - AHRC,14/11/2019,Union Deductions,Balance Sheet,PCS Union,98623577,96.51,Union Deductions
BEIS,UKRI - AHRC,14/11/2019,Ees Pension Deductions - JSS,Balance Sheet,RCPS Pension,98623578,10882.26,Ees Pension Deductions - JSS
BEIS,UKRI - AHRC,14/11/2019,Ers Pension Deductions - JSS,Balance Sheet,RCPS Pension,98623579,48438.30,Ers Pension Deductions - JSS
BEIS,UKRI - AHRC,14/11/2019,Partnership Pension Deductions,Balance Sheet,Scottish Widows,98623580,369.68,Partnership Pension Deductions
BEIS,UKRI - AHRC,14/11/2019,Ers Pension Deductions - JSS,Balance Sheet,Cabinet Office RM Shared Services,98623581,12.83,Ers Pension Deductions - JSS
BEIS,UKRI - AHRC,14/11/2019,Ees Pension Deductions - MyCSP,Balance Sheet,Cabinet Office RM Shared Services,98623582,5036.12,Ees Pension Deductions - MyCSP
BEIS,UKRI - AHRC,14/11/2019,Ers Pension Deductions - MyCSP,Balance Sheet,Cabinet Office RM Shared Services,98623583,25413.53,Ers Pension Deductions - MyCSP
BEIS,UKRI - AHRC,14/11/2019,Ees Pension Deductions - MRC,Balance Sheet,UKRI - Medical Research Council,98623584,341.88,Ees Pension Deductions - MRC
BEIS,UKRI - AHRC,14/11/2019,Ers Pension Deductions - MRC,Balance Sheet,UKRI - Medical Research Council,98623585,788.94,Ers Pension Deductions - MRC
BEIS,UKRI - AHRC,14/11/2019,Consultancy Services,Industrial Strategy Challenge Fund (ISCF) - Creative Clusters,SQW Ltd,98628733,14995.40,Consultancy Services
BEIS,UKRI - AHRC,14/11/2019,Non-staff travel and subsistance,SMT,Non Employee Expenses Supplier,98629732,682.60,Non-staff travel and subsistance
BEIS,UKRI - AHRC,15/11/2019,T&S UK - Public Transport,SMT,Unspecified,98630514,20.50,T&S UK - Public Transport
BEIS,UKRI - AHRC,15/11/2019,T&S UK - Subsistence,SMT,Unspecified,98630514,15.20,T&S UK - Subsistence
BEIS,UKRI - AHRC,15/11/2019,T&S UK - Mileage,Digital Arts and Humanities and Creative Industries,Unspecified,98630515,77.40,T&S UK - Mileage
BEIS,UKRI - AHRC,15/11/2019,T&S UK - Other Charges,Digital Arts and Humanities and Creative Industries,Unspecified,98630515,5.35,T&S UK - Other Charges
BEIS,UKRI - AHRC,15/11/2019,T&S UK - Public Transport,Digital Arts and Humanities and Creative Industries,Unspecified,98630515,17.00,T&S UK - Public Transport
BEIS,UKRI - AHRC,15/11/2019,T&S UK - Subsistence,Digital Arts and Humanities and Creative Industries,Unspecified,98630515,87.85,T&S UK - Subsistence
BEIS,UKRI - AHRC,15/11/2019,T&S UK - Subsistence,Digital Arts and Humanities and Creative Industries,Unspecified,98630515,13.43,T&S UK - Subsistence
BEIS,UKRI - AHRC,15/11/2019,T&S UK - Subsistence,Digital Arts and Humanities and Creative Industries,Unspecified,98630515,30.00,T&S UK - Subsistence
BEIS,UKRI - AHRC,15/11/2019,T&S UK - Public Transport,Digital Arts and Humanities and Creative Industries,Unspecified,98630516,15.37,T&S UK - Public Transport
BEIS,UKRI - AHRC,15/11/2019,T&S UK - Subsistence,Digital Arts and Humanities and Creative Industries,Unspecified,98630516,18.00,T&S UK - Subsistence
BEIS,UKRI - AHRC,15/11/2019,T&S UK - Subsistence,Digital Arts and Humanities and Creative Industries,Unspecified,98630516,5.00,T&S UK - Subsistence
BEIS,UKRI - AHRC,15/11/2019,T&S UK - Subsistence,Digital Arts and Humanities and Creative Industries,Unspecified,98630516,3.45,T&S UK - Subsistence
BEIS,UKRI - AHRC,15/11/2019,T&S UK - Other Charges,Fund for International Collaboration,Unspecified,98630517,5.34,T&S UK - Other Charges
BEIS,UKRI - AHRC,15/11/2019,T&S UK - Public Transport,Fund for International Collaboration,Unspecified,98630517,3.02,T&S UK - Public Transport
BEIS,UKRI - AHRC,15/11/2019,T&S UK - Subsistence,Fund for International Collaboration,Unspecified,98630517,27.50,T&S UK - Subsistence
BEIS,UKRI - AHRC,15/11/2019,T&S UK - Subsistence,Fund for International Collaboration,Unspecified,98630517,10.00,T&S UK - Subsistence
BEIS,UKRI - AHRC,15/11/2019,Health & Safety (inc. Medicals & Opticians),Operations,Unspecified,98630991,12.99,Health & Safety (inc. Medicals & Opticians)
BEIS,UKRI - AHRC,15/11/2019,Non-staff travel and subsistance,GCRF - Programme Delivery,Corporate Travel Management (North) Ltd,98631369,65.04,Non-staff travel and subsistance
BEIS,UKRI - AHRC,15/11/2019,T&S Overseas - Accommodation,International Development and Area Studies,Corporate Travel Management (North) Ltd,98631369,435.65,T&S Overseas - Accommodation
BEIS,UKRI - AHRC,15/11/2019,T&S Overseas - Accommodation,Newton Programme,Corporate Travel Management (North) Ltd,98631369,2.00,T&S Overseas - Accommodation
BEIS,UKRI - AHRC,15/11/2019,T&S Overseas - Accommodation,Newton Programme,Corporate Travel Management (North) Ltd,98631369,5884.37,T&S Overseas - Accommodation
BEIS,UKRI - AHRC,15/11/2019,T&S Overseas - Accommodation,Newton Programme,Corporate Travel Management (North) Ltd,98631369,0.40,T&S Overseas - Accommodation
BEIS,UKRI - AHRC,15/11/2019,T&S Overseas - Flights,Digital Arts and Humanities and Creative Industries,Corporate Travel Management (North) Ltd,98631369,7.00,T&S Overseas - Flights
BEIS,UKRI - AHRC,15/11/2019,T&S Overseas - Flights,Digital Arts and Humanities and Creative Industries,Corporate Travel Management (North) Ltd,98631369,668.92,T&S Overseas - Flights
BEIS,UKRI - AHRC,15/11/2019,T&S Overseas - Flights,Fund for International Collaboration,Corporate Travel Management (North) Ltd,98631369,2.50,T&S Overseas - Flights
BEIS,UKRI - AHRC,15/11/2019,T&S Overseas - Flights,Fund for International Collaboration,Corporate Travel Management (North) Ltd,98631369,88.98,T&S Overseas - Flights
BEIS,UKRI - AHRC,15/11/2019,T&S Overseas - Flights,Fund for International Collaboration,Corporate Travel Management (North) Ltd,98631369,2.50,T&S Overseas - Flights
BEIS,UKRI - AHRC,15/11/2019,T&S Overseas - Flights,Fund for International Collaboration,Corporate Travel Management (North) Ltd,98631369,59.99,T&S Overseas - Flights
BEIS,UKRI - AHRC,15/11/2019,T&S Overseas - Flights,Fund for International Collaboration,Corporate Travel Management (North) Ltd,98631369,2.50,T&S Overseas - Flights
BEIS,UKRI - AHRC,15/11/2019,T&S Overseas - Flights,Fund for International Collaboration,Corporate Travel Management (North) Ltd,98631369,59.99,T&S Overseas - Flights
BEIS,UKRI - AHRC,15/11/2019,T&S Overseas - Flights,Fund for International Collaboration,Corporate Travel Management (North) Ltd,98631369,2.50,T&S Overseas - Flights
BEIS,UKRI - AHRC,15/11/2019,T&S Overseas - Flights,Fund for International Collaboration,Corporate Travel Management (North) Ltd,98631369,25.13,T&S Overseas - Flights
BEIS,UKRI - AHRC,15/11/2019,T&S Overseas - Flights,Fund for International Collaboration,Corporate Travel Management (North) Ltd,98631369,2.50,T&S Overseas - Flights
BEIS,UKRI - AHRC,15/11/2019,T&S Overseas - Flights,Fund for International Collaboration,Corporate Travel Management (North) Ltd,98631369,860.52,T&S Overseas - Flights
BEIS,UKRI - AHRC,15/11/2019,T&S Overseas - Flights,Fund for International Collaboration,Corporate Travel Management (North) Ltd,98631369,2.50,T&S Overseas - Flights
BEIS,UKRI - AHRC,15/11/2019,T&S Overseas - Flights,Fund for International Collaboration,Corporate Travel Management (North) Ltd,98631369,1564.52,T&S Overseas - Flights
BEIS,UKRI - AHRC,15/11/2019,T&S Overseas - Flights,"History, Heritage, Languages and Literature",Corporate Travel Management (North) Ltd,98631369,9.50,T&S Overseas - Flights
BEIS,UKRI - AHRC,15/11/2019,T&S Overseas - Flights,"History, Heritage, Languages and Literature",Corporate Travel Management (North) Ltd,98631369,1104.82,T&S Overseas - Flights
BEIS,UKRI - AHRC,15/11/2019,T&S Overseas - Flights,Industrial Strategy Challenge Fund (ISCF) - Creative Clusters,Corporate Travel Management (North) Ltd,98631369,2.50,T&S Overseas - Flights
BEIS,UKRI - AHRC,15/11/2019,T&S Overseas - Flights,Industrial Strategy Challenge Fund (ISCF) - Creative Clusters,Corporate Travel Management (North) Ltd,98631369,141.06,T&S Overseas - Flights
BEIS,UKRI - AHRC,15/11/2019,T&S Overseas - Flights,International,Corporate Travel Management (North) Ltd,98631369,2.50,T&S Overseas - Flights
BEIS,UKRI - AHRC,15/11/2019,T&S Overseas - Flights,International,Corporate Travel Management (North) Ltd,98631369,75.00,T&S Overseas - Flights
BEIS,UKRI - AHRC,15/11/2019,T&S Overseas - Flights,JPI Cultural Heritage Project,Corporate Travel Management (North) Ltd,98631369,2.50,T&S Overseas - Flights
BEIS,UKRI - AHRC,15/11/2019,T&S Overseas - Flights,JPI Cultural Heritage Project,Corporate Travel Management (North) Ltd,98631369,178.00,T&S Overseas - Flights
BEIS,UKRI - AHRC,15/11/2019,T&S Overseas - Flights,JPI Cultural Heritage Project,Corporate Travel Management (North) Ltd,98631369,2.50,T&S Overseas - Flights
BEIS,UKRI - AHRC,15/11/2019,T&S Overseas - Flights,JPI Cultural Heritage Project,Corporate Travel Management (North) Ltd,98631369,276.24,T&S Overseas - Flights
BEIS,UKRI - AHRC,15/11/2019,T&S Overseas - Flights,Newton Programme Delivery,Corporate Travel Management (North) Ltd,98631369,7.00,T&S Overseas - Flights
BEIS,UKRI - AHRC,15/11/2019,T&S Overseas - Flights,Newton Programme Delivery,Corporate Travel Management (North) Ltd,98631369,539.10,T&S Overseas - Flights
BEIS,UKRI - AHRC,15/11/2019,T&S Overseas - Flights,SMT,Corporate Travel Management (North) Ltd,98631369,2.50,T&S Overseas - Flights
BEIS,UKRI - AHRC,15/11/2019,T&S Overseas - Flights,SMT,Corporate Travel Management (North) Ltd,98631369,371.94,T&S Overseas - Flights
BEIS,UKRI - AHRC,15/11/2019,T&S Overseas - Flights,SMT,Corporate Travel Management (North) Ltd,98631369,2.50,T&S Overseas - Flights
BEIS,UKRI - AHRC,15/11/2019,T&S Overseas - Flights,SMT,Corporate Travel Management (North) Ltd,98631369,216.44,T&S Overseas - Flights
BEIS,UKRI - AHRC,15/11/2019,T&S Overseas - Other Charges,SMT,Corporate Travel Management (North) Ltd,98631369,2.50,T&S Overseas - Other Charges
BEIS,UKRI - AHRC,15/11/2019,T&S Overseas - Other Charges,SMT,Corporate Travel Management (North) Ltd,98631369,583.32,T&S Overseas - Other Charges
BEIS,UKRI - AHRC,15/11/2019,T&S Overseas - Public Transport,Fund for International Collaboration,Corporate Travel Management (North) Ltd,98631369,0.25,T&S Overseas - Public Transport
BEIS,UKRI - AHRC,15/11/2019,T&S Overseas - Public Transport,Fund for International Collaboration,Corporate Travel Management (North) Ltd,98631369,37.00,T&S Overseas - Public Transport
BEIS,UKRI - AHRC,15/11/2019,T&S UK - Accommodation,Digital Arts and Humanities and Creative Industries,Corporate Travel Management (North) Ltd,98631369,0.80,T&S UK - Accommodation
BEIS,UKRI - AHRC,15/11/2019,T&S UK - Accommodation,Digital Arts and Humanities and Creative Industries,Corporate Travel Management (North) Ltd,98631369,75.00,T&S UK - Accommodation
BEIS,UKRI - AHRC,15/11/2019,T&S UK - Accommodation,Digital Arts and Humanities and Creative Industries,Corporate Travel Management (North) Ltd,98631369,0.80,T&S UK - Accommodation
BEIS,UKRI - AHRC,15/11/2019,T&S UK - Accommodation,Digital Arts and Humanities and Creative Industries,Corporate Travel Management (North) Ltd,98631369,105.00,T&S UK - Accommodation
BEIS,UKRI - AHRC,15/11/2019,T&S UK - Accommodation,Digital Arts and Humanities and Creative Industries,Corporate Travel Management (North) Ltd,98631369,0.32,T&S UK - Accommodation
BEIS,UKRI - AHRC,15/11/2019,T&S UK - Accommodation,GCRF - Programme Delivery,Corporate Travel Management (North) Ltd,98631369,0.80,T&S UK - Accommodation
BEIS,UKRI - AHRC,15/11/2019,T&S UK - Accommodation,GCRF - Programme Delivery,Corporate Travel Management (North) Ltd,98631369,119.00,T&S UK - Accommodation
BEIS,UKRI - AHRC,15/11/2019,T&S UK - Accommodation,GCRF - Programme Delivery,Corporate Travel Management (North) Ltd,98631369,0.16,T&S UK - Accommodation
BEIS,UKRI - AHRC,15/11/2019,T&S UK - Accommodation,HR,Corporate Travel Management (North) Ltd,98631369,0.80,T&S UK - Accommodation
BEIS,UKRI - AHRC,15/11/2019,T&S UK - Accommodation,HR,Corporate Travel Management (North) Ltd,98631369,33.33,T&S UK - Accommodation
BEIS,UKRI - AHRC,15/11/2019,T&S UK - Accommodation,HR,Corporate Travel Management (North) Ltd,98631369,0.80,T&S UK - Accommodation
BEIS,UKRI - AHRC,15/11/2019,T&S UK - Accommodation,HR,Corporate Travel Management (North) Ltd,98631369,126.24,T&S UK - Accommodation
BEIS,UKRI - AHRC,15/11/2019,T&S UK - Accommodation,HR,Corporate Travel Management (North) Ltd,98631369,0.32,T&S UK - Accommodation
BEIS,UKRI - AHRC,15/11/2019,T&S UK - Accommodation,"History, Heritage, Languages and Literature",Corporate Travel Management (North) Ltd,98631369,0.80,T&S UK - Accommodation
BEIS,UKRI - AHRC,15/11/2019,T&S UK - Accommodation,"History, Heritage, Languages and Literature",Corporate Travel Management (North) Ltd,98631369,219.50,T&S UK - Accommodation
BEIS,UKRI - AHRC,15/11/2019,T&S UK - Accommodation,"History, Heritage, Languages and Literature",Corporate Travel Management (North) Ltd,98631369,0.80,T&S UK - Accommodation
BEIS,UKRI - AHRC,15/11/2019,T&S UK - Accommodation,"History, Heritage, Languages and Literature",Corporate Travel Management (North) Ltd,98631369,106.25,T&S UK - Accommodation
BEIS,UKRI - AHRC,15/11/2019,T&S UK - Accommodation,"History, Heritage, Languages and Literature",Corporate Travel Management (North) Ltd,98631369,0.80,T&S UK - Accommodation
BEIS,UKRI - AHRC,15/11/2019,T&S UK - Accommodation,"History, Heritage, Languages and Literature",Corporate Travel Management (North) Ltd,98631369,106.25,T&S UK - Accommodation
BEIS,UKRI - AHRC,15/11/2019,T&S UK - Accommodation,"History, Heritage, Languages and Literature",Corporate Travel Management (North) Ltd,98631369,0.80,T&S UK - Accommodation
BEIS,UKRI - AHRC,15/11/2019,T&S UK - Accommodation,"History, Heritage, Languages and Literature",Corporate Travel Management (North) Ltd,98631369,106.25,T&S UK - Accommodation
BEIS,UKRI - AHRC,15/11/2019,T&S UK - Accommodation,"History, Heritage, Languages and Literature",Corporate Travel Management (North) Ltd,98631369,0.64,T&S UK - Accommodation
BEIS,UKRI - AHRC,15/11/2019,T&S UK - Accommodation,Industrial Strategy Challenge Fund (ISCF) - Creative Clusters,Corporate Travel Management (North) Ltd,98631369,0.80,T&S UK - Accommodation
BEIS,UKRI - AHRC,15/11/2019,T&S UK - Accommodation,Industrial Strategy Challenge Fund (ISCF) - Creative Clusters,Corporate Travel Management (North) Ltd,98631369,55.45,T&S UK - Accommodation
BEIS,UKRI - AHRC,15/11/2019,T&S UK - Accommodation,Industrial Strategy Challenge Fund (ISCF) - Creative Clusters,Corporate Travel Management (North) Ltd,98631369,0.80,T&S UK - Accommodation
BEIS,UKRI - AHRC,15/11/2019,T&S UK - Accommodation,Industrial Strategy Challenge Fund (ISCF) - Creative Clusters,Corporate Travel Management (North) Ltd,98631369,218.00,T&S UK - Accommodation
BEIS,UKRI - AHRC,15/11/2019,T&S UK - Accommodation,Industrial Strategy Challenge Fund (ISCF) - Creative Clusters,Corporate Travel Management (North) Ltd,98631369,0.32,T&S UK - Accommodation
BEIS,UKRI - AHRC,15/11/2019,T&S UK - Accommodation,International,Corporate Travel Management (North) Ltd,98631369,0.80,T&S UK - Accommodation
BEIS,UKRI - AHRC,15/11/2019,T&S UK - Accommodation,International,Corporate Travel Management (North) Ltd,98631369,360.00,T&S UK - Accommodation
BEIS,UKRI - AHRC,15/11/2019,T&S UK - Accommodation,International,Corporate Travel Management (North) Ltd,98631369,0.80,T&S UK - Accommodation
BEIS,UKRI - AHRC,15/11/2019,T&S UK - Accommodation,International,Corporate Travel Management (North) Ltd,98631369,240.00,T&S UK - Accommodation
BEIS,UKRI - AHRC,15/11/2019,T&S UK - Accommodation,International,Corporate Travel Management (North) Ltd,98631369,0.80,T&S UK - Accommodation
BEIS,UKRI - AHRC,15/11/2019,T&S UK - Accommodation,International,Corporate Travel Management (North) Ltd,98631369,240.00,T&S UK - Accommodation
BEIS,UKRI - AHRC,15/11/2019,T&S UK - Accommodation,International,Corporate Travel Management (North) Ltd,98631369,0.80,T&S UK - Accommodation
BEIS,UKRI - AHRC,15/11/2019,T&S UK - Accommodation,International,Corporate Travel Management (North) Ltd,98631369,120.00,T&S UK - Accommodation
BEIS,UKRI - AHRC,15/11/2019,T&S UK - Accommodation,International,Corporate Travel Management (North) Ltd,98631369,0.80,T&S UK - Accommodation
BEIS,UKRI - AHRC,15/11/2019,T&S UK - Accommodation,International,Corporate Travel Management (North) Ltd,98631369,240.00,T&S UK - Accommodation
BEIS,UKRI - AHRC,15/11/2019,T&S UK - Accommodation,International,Corporate Travel Management (North) Ltd,98631369,2.00,T&S UK - Accommodation
BEIS,UKRI - AHRC,15/11/2019,T&S UK - Accommodation,International,Corporate Travel Management (North) Ltd,98631369,8479.00,T&S UK - Accommodation
BEIS,UKRI - AHRC,15/11/2019,T&S UK - Accommodation,International,Corporate Travel Management (North) Ltd,98631369,0.80,T&S UK - Accommodation
BEIS,UKRI - AHRC,15/11/2019,T&S UK - Accommodation,International,Corporate Travel Management (North) Ltd,98631369,240.00,T&S UK - Accommodation
BEIS,UKRI - AHRC,15/11/2019,T&S UK - Accommodation,International,Corporate Travel Management (North) Ltd,98631369,0.80,T&S UK - Accommodation
BEIS,UKRI - AHRC,15/11/2019,T&S UK - Accommodation,International,Corporate Travel Management (North) Ltd,98631369,240.00,T&S UK - Accommodation
BEIS,UKRI - AHRC,15/11/2019,T&S UK - Accommodation,International,Corporate Travel Management (North) Ltd,98631369,0.80,T&S UK - Accommodation
BEIS,UKRI - AHRC,15/11/2019,T&S UK - Accommodation,International,Corporate Travel Management (North) Ltd,98631369,240.00,T&S UK - Accommodation
BEIS,UKRI - AHRC,15/11/2019,T&S UK - Accommodation,International,Corporate Travel Management (North) Ltd,98631369,1.68,T&S UK - Accommodation
BEIS,UKRI - AHRC,15/11/2019,T&S UK - Accommodation,International Partnership and Engagement,Corporate Travel Management (North) Ltd,98631369,0.80,T&S UK - Accommodation
BEIS,UKRI - AHRC,15/11/2019,T&S UK - Accommodation,International Partnership and Engagement,Corporate Travel Management (North) Ltd,98631369,212.38,T&S UK - Accommodation
BEIS,UKRI - AHRC,15/11/2019,T&S UK - Accommodation,International Partnership and Engagement,Corporate Travel Management (North) Ltd,98631369,0.80,T&S UK - Accommodation
BEIS,UKRI - AHRC,15/11/2019,T&S UK - Accommodation,International Partnership and Engagement,Corporate Travel Management (North) Ltd,98631369,159.90,T&S UK - Accommodation
BEIS,UKRI - AHRC,15/11/2019,T&S UK - Accommodation,International Partnership and Engagement,Corporate Travel Management (North) Ltd,98631369,0.80,T&S UK - Accommodation
BEIS,UKRI - AHRC,15/11/2019,T&S UK - Accommodation,International Partnership and Engagement,Corporate Travel Management (North) Ltd,98631369,160.56,T&S UK - Accommodation
BEIS,UKRI - AHRC,15/11/2019,T&S UK - Accommodation,International Partnership and Engagement,Corporate Travel Management (North) Ltd,98631369,0.48,T&S UK - Accommodation
BEIS,UKRI - AHRC,15/11/2019,T&S UK - Accommodation,Newton Programme,Corporate Travel Management (North) Ltd,98631369,0.80,T&S UK - Accommodation
BEIS,UKRI - AHRC,15/11/2019,T&S UK - Accommodation,Newton Programme,Corporate Travel Management (North) Ltd,98631369,0.16,T&S UK - Accommodation
BEIS,UKRI - AHRC,15/11/2019,T&S UK - Accommodation,Operations,Corporate Travel Management (North) Ltd,98631369,0.80,T&S UK - Accommodation
BEIS,UKRI - AHRC,15/11/2019,T&S UK - Accommodation,Operations,Corporate Travel Management (North) Ltd,98631369,0.80,T&S UK - Accommodation
BEIS,UKRI - AHRC,15/11/2019,T&S UK - Accommodation,Operations,Corporate Travel Management (North) Ltd,98631369,0.80,T&S UK - Accommodation
BEIS,UKRI - AHRC,15/11/2019,T&S UK - Accommodation,Operations,Corporate Travel Management (North) Ltd,98631369,0.48,T&S UK - Accommodation
BEIS,UKRI - AHRC,15/11/2019,T&S UK - Accommodation,SMT,Corporate Travel Management (North) Ltd,98631369,189.30,T&S UK - Accommodation
BEIS,UKRI - AHRC,15/11/2019,T&S UK - Accommodation,SMT,Corporate Travel Management (North) Ltd,98631369,-229.24,T&S UK - Accommodation
BEIS,UKRI - AHRC,15/11/2019,T&S UK - Accommodation,SMT,Corporate Travel Management (North) Ltd,98631369,0.80,T&S UK - Accommodation
BEIS,UKRI - AHRC,15/11/2019,T&S UK - Accommodation,SMT,Corporate Travel Management (North) Ltd,98631369,165.00,T&S UK - Accommodation
BEIS,UKRI - AHRC,15/11/2019,T&S UK - Accommodation,SMT,Corporate Travel Management (North) Ltd,98631369,0.80,T&S UK - Accommodation
BEIS,UKRI - AHRC,15/11/2019,T&S UK - Accommodation,SMT,Corporate Travel Management (North) Ltd,98631369,165.00,T&S UK - Accommodation
BEIS,UKRI - AHRC,15/11/2019,T&S UK - Accommodation,SMT,Corporate Travel Management (North) Ltd,98631369,0.80,T&S UK - Accommodation
BEIS,UKRI - AHRC,15/11/2019,T&S UK - Accommodation,SMT,Corporate Travel Management (North) Ltd,98631369,165.00,T&S UK - Accommodation
BEIS,UKRI - AHRC,15/11/2019,T&S UK - Accommodation,SMT,Corporate Travel Management (North) Ltd,98631369,0.80,T&S UK - Accommodation
BEIS,UKRI - AHRC,15/11/2019,T&S UK - Accommodation,SMT,Corporate Travel Management (North) Ltd,98631369,165.00,T&S UK - Accommodation
BEIS,UKRI - AHRC,15/11/2019,T&S UK - Accommodation,SMT,Corporate Travel Management (North) Ltd,98631369,0.80,T&S UK - Accommodation
BEIS,UKRI - AHRC,15/11/2019,T&S UK - Accommodation,SMT,Corporate Travel Management (North) Ltd,98631369,133.95,T&S UK - Accommodation
BEIS,UKRI - AHRC,15/11/2019,T&S UK - Accommodation,SMT,Corporate Travel Management (North) Ltd,98631369,0.80,T&S UK - Accommodation
BEIS,UKRI - AHRC,15/11/2019,T&S UK - Accommodation,Secretariat,Corporate Travel Management (North) Ltd,98631369,0.80,T&S UK - Accommodation
BEIS,UKRI - AHRC,15/11/2019,T&S UK - Accommodation,Secretariat,Corporate Travel Management (North) Ltd,98631369,165.00,T&S UK - Accommodation
BEIS,UKRI - AHRC,15/11/2019,T&S UK - Accommodation,Secretariat,Corporate Travel Management (North) Ltd,98631369,0.16,T&S UK - Accommodation
BEIS,UKRI - AHRC,15/11/2019,T&S UK - Flights,Digital Arts and Humanities and Creative Industries,Corporate Travel Management (North) Ltd,98631369,2.50,T&S UK - Flights
BEIS,UKRI - AHRC,15/11/2019,T&S UK - Flights,Digital Arts and Humanities and Creative Industries,Corporate Travel Management (North) Ltd,98631369,362.76,T&S UK - Flights
BEIS,UKRI - AHRC,15/11/2019,T&S UK - Flights,Industrial Strategy Challenge Fund (ISCF) - Creative Clusters,Corporate Travel Management (North) Ltd,98631369,2.50,T&S UK - Flights
BEIS,UKRI - AHRC,15/11/2019,T&S UK - Flights,Industrial Strategy Challenge Fund (ISCF) - Creative Clusters,Corporate Travel Management (North) Ltd,98631369,91.98,T&S UK - Flights
BEIS,UKRI - AHRC,15/11/2019,T&S UK - Flights,Industrial Strategy Challenge Fund (ISCF) - Creative Clusters,Corporate Travel Management (North) Ltd,98631369,2.50,T&S UK - Flights
BEIS,UKRI - AHRC,15/11/2019,T&S UK - Flights,Industrial Strategy Challenge Fund (ISCF) - Creative Clusters,Corporate Travel Management (North) Ltd,98631369,121.06,T&S UK - Flights
BEIS,UKRI - AHRC,15/11/2019,T&S UK - Flights,International,Corporate Travel Management (North) Ltd,98631369,1.25,T&S UK - Flights
BEIS,UKRI - AHRC,15/11/2019,T&S UK - Flights,International,Corporate Travel Management (North) Ltd,98631369,979.82,T&S UK - Flights
BEIS,UKRI - AHRC,15/11/2019,T&S UK - Flights,JPI Cultural Heritage Project,Corporate Travel Management (North) Ltd,98631369,2.50,T&S UK - Flights
BEIS,UKRI - AHRC,15/11/2019,T&S UK - Flights,JPI Cultural Heritage Project,Corporate Travel Management (North) Ltd,98631369,67.44,T&S UK - Flights
BEIS,UKRI - AHRC,15/11/2019,T&S UK - Flights,SMT,Corporate Travel Management (North) Ltd,98631369,2.50,T&S UK - Flights
BEIS,UKRI - AHRC,15/11/2019,T&S UK - Flights,SMT,Corporate Travel Management (North) Ltd,98631369,322.84,T&S UK - Flights
BEIS,UKRI - AHRC,15/11/2019,T&S UK - Flights,SMT,Corporate Travel Management (North) Ltd,98631369,2.50,T&S UK - Flights
BEIS,UKRI - AHRC,15/11/2019,T&S UK - Flights,SMT,Corporate Travel Management (North) Ltd,98631369,34.98,T&S UK - Flights
BEIS,UKRI - AHRC,15/11/2019,T&S UK - Flights,SMT,Corporate Travel Management (North) Ltd,98631369,1.25,T&S UK - Flights
BEIS,UKRI - AHRC,15/11/2019,T&S UK - Flights,SMT,Corporate Travel Management (North) Ltd,98631369,979.82,T&S UK - Flights
BEIS,UKRI - AHRC,15/11/2019,T&S UK - Public Transport,Digital Arts and Humanities and Creative Industries,Corporate Travel Management (North) Ltd,98631369,0.25,T&S UK - Public Transport
BEIS,UKRI - AHRC,15/11/2019,T&S UK - Public Transport,Digital Arts and Humanities and Creative Industries,Corporate Travel Management (North) Ltd,98631369,151.10,T&S UK - Public Transport
BEIS,UKRI - AHRC,15/11/2019,T&S UK - Public Transport,Digital Arts and Humanities and Creative Industries,Corporate Travel Management (North) Ltd,98631369,0.25,T&S UK - Public Transport
BEIS,UKRI - AHRC,15/11/2019,T&S UK - Public Transport,Digital Arts and Humanities and Creative Industries,Corporate Travel Management (North) Ltd,98631369,111.50,T&S UK - Public Transport
BEIS,UKRI - AHRC,15/11/2019,T&S UK - Public Transport,Digital Arts and Humanities and Creative Industries,Corporate Travel Management (North) Ltd,98631369,0.25,T&S UK - Public Transport
BEIS,UKRI - AHRC,15/11/2019,T&S UK - Public Transport,Digital Arts and Humanities and Creative Industries,Corporate Travel Management (North) Ltd,98631369,91.90,T&S UK - Public Transport
BEIS,UKRI - AHRC,15/11/2019,T&S UK - Public Transport,Digital Arts and Humanities and Creative Industries,Corporate Travel Management (North) Ltd,98631369,0.25,T&S UK - Public Transport
BEIS,UKRI - AHRC,15/11/2019,T&S UK - Public Transport,Digital Arts and Humanities and Creative Industries,Corporate Travel Management (North) Ltd,98631369,92.85,T&S UK - Public Transport
BEIS,UKRI - AHRC,15/11/2019,T&S UK - Public Transport,Digital Arts and Humanities and Creative Industries,Corporate Travel Management (North) Ltd,98631369,0.25,T&S UK - Public Transport
BEIS,UKRI - AHRC,15/11/2019,T&S UK - Public Transport,Digital Arts and Humanities and Creative Industries,Corporate Travel Management (North) Ltd,98631369,36.00,T&S UK - Public Transport
BEIS,UKRI - AHRC,15/11/2019,T&S UK - Public Transport,Digital Arts and Humanities and Creative Industries,Corporate Travel Management (North) Ltd,98631369,0.25,T&S UK - Public Transport
BEIS,UKRI - AHRC,15/11/2019,T&S UK - Public Transport,Digital Arts and Humanities and Creative Industries,Corporate Travel Management (North) Ltd,98631369,151.10,T&S UK - Public Transport
BEIS,UKRI - AHRC,15/11/2019,T&S UK - Public Transport,Digital Arts and Humanities and Creative Industries,Corporate Travel Management (North) Ltd,98631369,0.25,T&S UK - Public Transport
BEIS,UKRI - AHRC,15/11/2019,T&S UK - Public Transport,Digital Arts and Humanities and Creative Industries,Corporate Travel Management (North) Ltd,98631369,138.60,T&S UK - Public Transport
BEIS,UKRI - AHRC,15/11/2019,T&S UK - Public Transport,Digital Arts and Humanities and Creative Industries,Corporate Travel Management (North) Ltd,98631369,0.25,T&S UK - Public Transport
BEIS,UKRI - AHRC,15/11/2019,T&S UK - Public Transport,Digital Arts and Humanities and Creative Industries,Corporate Travel Management (North) Ltd,98631369,126.00,T&S UK - Public Transport
BEIS,UKRI - AHRC,15/11/2019,T&S UK - Public Transport,Digital Arts and Humanities and Creative Industries,Corporate Travel Management (North) Ltd,98631369,0.25,T&S UK - Public Transport
BEIS,UKRI - AHRC,15/11/2019,T&S UK - Public Transport,Digital Arts and Humanities and Creative Industries,Corporate Travel Management (North) Ltd,98631369,138.60,T&S UK - Public Transport
BEIS,UKRI - AHRC,15/11/2019,T&S UK - Public Transport,Digital Arts and Humanities and Creative Industries,Corporate Travel Management (North) Ltd,98631369,0.25,T&S UK - Public Transport
BEIS,UKRI - AHRC,15/11/2019,T&S UK - Public Transport,Digital Arts and Humanities and Creative Industries,Corporate Travel Management (North) Ltd,98631369,421.00,T&S UK - Public Transport
BEIS,UKRI - AHRC,15/11/2019,T&S UK - Public Transport,Digital Arts and Humanities and Creative Industries,Corporate Travel Management (North) Ltd,98631369,0.25,T&S UK - Public Transport
BEIS,UKRI - AHRC,15/11/2019,T&S UK - Public Transport,Digital Arts and Humanities and Creative Industries,Corporate Travel Management (North) Ltd,98631369,28.40,T&S UK - Public Transport
BEIS,UKRI - AHRC,15/11/2019,T&S UK - Public Transport,Digital Arts and Humanities and Creative Industries,Corporate Travel Management (North) Ltd,98631369,0.25,T&S UK - Public Transport
BEIS,UKRI - AHRC,15/11/2019,T&S UK - Public Transport,Digital Arts and Humanities and Creative Industries,Corporate Travel Management (North) Ltd,98631369,89.75,T&S UK - Public Transport
BEIS,UKRI - AHRC,15/11/2019,T&S UK - Public Transport,Digital Arts and Humanities and Creative Industries,Corporate Travel Management (North) Ltd,98631369,50.25,T&S UK - Public Transport
BEIS,UKRI - AHRC,15/11/2019,T&S UK - Public Transport,Executive Office,Corporate Travel Management (North) Ltd,98631369,0.25,T&S UK - Public Transport
BEIS,UKRI - AHRC,15/11/2019,T&S UK - Public Transport,Executive Office,Corporate Travel Management (North) Ltd,98631369,144.00,T&S UK - Public Transport
BEIS,UKRI - AHRC,15/11/2019,T&S UK - Public Transport,Executive Office,Corporate Travel Management (North) Ltd,98631369,0.25,T&S UK - Public Transport
BEIS,UKRI - AHRC,15/11/2019,T&S UK - Public Transport,Executive Office,Corporate Travel Management (North) Ltd,98631369,144.00,T&S UK - Public Transport
BEIS,UKRI - AHRC,15/11/2019,T&S UK - Public Transport,Finance,Corporate Travel Management (North) Ltd,98631369,0.25,T&S UK - Public Transport
BEIS,UKRI - AHRC,15/11/2019,T&S UK - Public Transport,Finance,Corporate Travel Management (North) Ltd,98631369,23.70,T&S UK - Public Transport
BEIS,UKRI - AHRC,15/11/2019,T&S UK - Public Transport,Finance,Corporate Travel Management (North) Ltd,98631369,0.25,T&S UK - Public Transport
BEIS,UKRI - AHRC,15/11/2019,T&S UK - Public Transport,Finance,Corporate Travel Management (North) Ltd,98631369,23.70,T&S UK - Public Transport
BEIS,UKRI - AHRC,15/11/2019,T&S UK - Public Transport,Finance,Corporate Travel Management (North) Ltd,98631369,0.25,T&S UK - Public Transport
BEIS,UKRI - AHRC,15/11/2019,T&S UK - Public Transport,Finance,Corporate Travel Management (North) Ltd,98631369,23.70,T&S UK - Public Transport
BEIS,UKRI - AHRC,15/11/2019,T&S UK - Public Transport,Fund for International Collaboration,Corporate Travel Management (North) Ltd,98631369,0.25,T&S UK - Public Transport
BEIS,UKRI - AHRC,15/11/2019,T&S UK - Public Transport,Fund for International Collaboration,Corporate Travel Management (North) Ltd,98631369,94.00,T&S UK - Public Transport
BEIS,UKRI - AHRC,15/11/2019,T&S UK - Public Transport,Fund for International Collaboration,Corporate Travel Management (North) Ltd,98631369,0.25,T&S UK - Public Transport
BEIS,UKRI - AHRC,15/11/2019,T&S UK - Public Transport,Fund for International Collaboration,Corporate Travel Management (North) Ltd,98631369,94.00,T&S UK - Public Transport
BEIS,UKRI - AHRC,15/11/2019,T&S UK - Public Transport,Fund for International Collaboration,Corporate Travel Management (North) Ltd,98631369,0.25,T&S UK - Public Transport
BEIS,UKRI - AHRC,15/11/2019,T&S UK - Public Transport,Fund for International Collaboration,Corporate Travel Management (North) Ltd,98631369,71.20,T&S UK - Public Transport
BEIS,UKRI - AHRC,15/11/2019,T&S UK - Public Transport,GCRF - Programme Delivery,Corporate Travel Management (North) Ltd,98631369,0.25,T&S UK - Public Transport
BEIS,UKRI - AHRC,15/11/2019,T&S UK - Public Transport,GCRF - Programme Delivery,Corporate Travel Management (North) Ltd,98631369,144.70,T&S UK - Public Transport
BEIS,UKRI - AHRC,15/11/2019,T&S UK - Public Transport,GCRF - Programme Delivery,Corporate Travel Management (North) Ltd,98631369,0.25,T&S UK - Public Transport
BEIS,UKRI - AHRC,15/11/2019,T&S UK - Public Transport,GCRF - Programme Delivery,Corporate Travel Management (North) Ltd,98631369,27.05,T&S UK - Public Transport
BEIS,UKRI - AHRC,15/11/2019,T&S UK - Public Transport,GCRF - Programme Delivery,Corporate Travel Management (North) Ltd,98631369,0.25,T&S UK - Public Transport
BEIS,UKRI - AHRC,15/11/2019,T&S UK - Public Transport,GCRF - Programme Delivery,Corporate Travel Management (North) Ltd,98631369,122.90,T&S UK - Public Transport
BEIS,UKRI - AHRC,15/11/2019,T&S UK - Public Transport,GCRF - Programme Delivery,Corporate Travel Management (North) Ltd,98631369,5.00,T&S UK - Public Transport
BEIS,UKRI - AHRC,15/11/2019,T&S UK - Public Transport,GCRF - Programme Delivery,Corporate Travel Management (North) Ltd,98631369,-42.50,T&S UK - Public Transport
BEIS,UKRI - AHRC,15/11/2019,T&S UK - Public Transport,GCRF - Programme Delivery,Corporate Travel Management (North) Ltd,98631369,0.50,T&S UK - Public Transport
BEIS,UKRI - AHRC,15/11/2019,T&S UK - Public Transport,GCRF - Programme Delivery,Corporate Travel Management (North) Ltd,98631369,1.44,T&S UK - Public Transport
BEIS,UKRI - AHRC,15/11/2019,T&S UK - Public Transport,GCRF - Programme Delivery,Corporate Travel Management (North) Ltd,98631369,94.00,T&S UK - Public Transport
BEIS,UKRI - AHRC,15/11/2019,T&S UK - Public Transport,GCRF - Programme Delivery,Corporate Travel Management (North) Ltd,98631369,0.50,T&S UK - Public Transport
BEIS,UKRI - AHRC,15/11/2019,T&S UK - Public Transport,GCRF - Programme Delivery,Corporate Travel Management (North) Ltd,98631369,239.70,T&S UK - Public Transport
BEIS,UKRI - AHRC,15/11/2019,T&S UK - Public Transport,GCRF - Programme Delivery,Corporate Travel Management (North) Ltd,98631369,0.25,T&S UK - Public Transport
BEIS,UKRI - AHRC,15/11/2019,T&S UK - Public Transport,GCRF - Programme Delivery,Corporate Travel Management (North) Ltd,98631369,135.10,T&S UK - Public Transport
BEIS,UKRI - AHRC,15/11/2019,T&S UK - Public Transport,GCRF - Programme Delivery,Corporate Travel Management (North) Ltd,98631369,0.25,T&S UK - Public Transport
BEIS,UKRI - AHRC,15/11/2019,T&S UK - Public Transport,GCRF - Programme Delivery,Corporate Travel Management (North) Ltd,98631369,172.20,T&S UK - Public Transport
BEIS,UKRI - AHRC,15/11/2019,T&S UK - Public Transport,GCRF - Programme Delivery,Corporate Travel Management (North) Ltd,98631369,0.50,T&S UK - Public Transport
BEIS,UKRI - AHRC,15/11/2019,T&S UK - Public Transport,GCRF - Programme Delivery,Corporate Travel Management (North) Ltd,98631369,16.50,T&S UK - Public Transport
BEIS,UKRI - AHRC,15/11/2019,T&S UK - Public Transport,GCRF - Programme Delivery,Corporate Travel Management (North) Ltd,98631369,156.60,T&S UK - Public Transport
BEIS,UKRI - AHRC,15/11/2019,T&S UK - Public Transport,GCRF - Programme Delivery,Corporate Travel Management (North) Ltd,98631369,0.25,T&S UK - Public Transport
BEIS,UKRI - AHRC,15/11/2019,T&S UK - Public Transport,GCRF - Programme Delivery,Corporate Travel Management (North) Ltd,98631369,138.00,T&S UK - Public Transport
BEIS,UKRI - AHRC,15/11/2019,T&S UK - Public Transport,GCRF - Programme Delivery,Corporate Travel Management (North) Ltd,98631369,0.50,T&S UK - Public Transport
BEIS,UKRI - AHRC,15/11/2019,T&S UK - Public Transport,GCRF - Programme Delivery,Corporate Travel Management (North) Ltd,98631369,159.10,T&S UK - Public Transport
BEIS,UKRI - AHRC,15/11/2019,T&S UK - Public Transport,GCRF - Programme Delivery,Corporate Travel Management (North) Ltd,98631369,9.80,T&S UK - Public Transport
BEIS,UKRI - AHRC,15/11/2019,T&S UK - Public Transport,GCRF - Programme Delivery,Corporate Travel Management (North) Ltd,98631369,0.25,T&S UK - Public Transport
BEIS,UKRI - AHRC,15/11/2019,T&S UK - Public Transport,GCRF - Programme Delivery,Corporate Travel Management (North) Ltd,98631369,113.60,T&S UK - Public Transport
BEIS,UKRI - AHRC,15/11/2019,T&S UK - Public Transport,GCRF - Programme Delivery,Corporate Travel Management (North) Ltd,98631369,0.25,T&S UK - Public Transport
BEIS,UKRI - AHRC,15/11/2019,T&S UK - Public Transport,GCRF - Programme Delivery,Corporate Travel Management (North) Ltd,98631369,151.10,T&S UK - Public Transport
BEIS,UKRI - AHRC,15/11/2019,T&S UK - Public Transport,GCRF - Programme Delivery,Corporate Travel Management (North) Ltd,98631369,0.25,T&S UK - Public Transport
BEIS,UKRI - AHRC,15/11/2019,T&S UK - Public Transport,GCRF - Programme Delivery,Corporate Travel Management (North) Ltd,98631369,163.00,T&S UK - Public Transport
BEIS,UKRI - AHRC,15/11/2019,T&S UK - Public Transport,GCRF - Programme Delivery,Corporate Travel Management (North) Ltd,98631369,0.25,T&S UK - Public Transport
BEIS,UKRI - AHRC,15/11/2019,T&S UK - Public Transport,GCRF - Programme Delivery,Corporate Travel Management (North) Ltd,98631369,16.50,T&S UK - Public Transport
BEIS,UKRI - AHRC,15/11/2019,T&S UK - Public Transport,GCRF - Programme Delivery,Corporate Travel Management (North) Ltd,98631369,0.25,T&S UK - Public Transport
BEIS,UKRI - AHRC,15/11/2019,T&S UK - Public Transport,GCRF - Programme Delivery,Corporate Travel Management (North) Ltd,98631369,64.95,T&S UK - Public Transport
BEIS,UKRI - AHRC,15/11/2019,T&S UK - Public Transport,GCRF - Programme Delivery,Corporate Travel Management (North) Ltd,98631369,0.39,T&S UK - Public Transport
BEIS,UKRI - AHRC,15/11/2019,T&S UK - Public Transport,HR,Corporate Travel Management (North) Ltd,98631369,0.25,T&S UK - Public Transport
BEIS,UKRI - AHRC,15/11/2019,T&S UK - Public Transport,HR,Corporate Travel Management (North) Ltd,98631369,72.40,T&S UK - Public Transport
BEIS,UKRI - AHRC,15/11/2019,T&S UK - Public Transport,HR,Corporate Travel Management (North) Ltd,98631369,0.25,T&S UK - Public Transport
BEIS,UKRI - AHRC,15/11/2019,T&S UK - Public Transport,HR,Corporate Travel Management (North) Ltd,98631369,72.40,T&S UK - Public Transport
BEIS,UKRI - AHRC,15/11/2019,T&S UK - Public Transport,HR,Corporate Travel Management (North) Ltd,98631369,0.25,T&S UK - Public Transport
BEIS,UKRI - AHRC,15/11/2019,T&S UK - Public Transport,HR,Corporate Travel Management (North) Ltd,98631369,96.10,T&S UK - Public Transport
BEIS,UKRI - AHRC,15/11/2019,T&S UK - Public Transport,HR,Corporate Travel Management (North) Ltd,98631369,0.25,T&S UK - Public Transport
BEIS,UKRI - AHRC,15/11/2019,T&S UK - Public Transport,HR,Corporate Travel Management (North) Ltd,98631369,75.00,T&S UK - Public Transport
BEIS,UKRI - AHRC,15/11/2019,T&S UK - Public Transport,HR,Corporate Travel Management (North) Ltd,98631369,0.25,T&S UK - Public Transport
BEIS,UKRI - AHRC,15/11/2019,T&S UK - Public Transport,HR,Corporate Travel Management (North) Ltd,98631369,75.00,T&S UK - Public Transport
BEIS,UKRI - AHRC,15/11/2019,T&S UK - Public Transport,HR,Corporate Travel Management (North) Ltd,98631369,0.25,T&S UK - Public Transport
BEIS,UKRI - AHRC,15/11/2019,T&S UK - Public Transport,HR,Corporate Travel Management (North) Ltd,98631369,96.10,T&S UK - Public Transport
BEIS,UKRI - AHRC,15/11/2019,T&S UK - Public Transport,HR,Corporate Travel Management (North) Ltd,98631369,0.25,T&S UK - Public Transport
BEIS,UKRI - AHRC,15/11/2019,T&S UK - Public Transport,HR,Corporate Travel Management (North) Ltd,98631369,75.00,T&S UK - Public Transport
BEIS,UKRI - AHRC,15/11/2019,T&S UK - Public Transport,HR,Corporate Travel Management (North) Ltd,98631369,0.25,T&S UK - Public Transport
BEIS,UKRI - AHRC,15/11/2019,T&S UK - Public Transport,HR,Corporate Travel Management (North) Ltd,98631369,93.00,T&S UK - Public Transport
BEIS,UKRI - AHRC,15/11/2019,T&S UK - Public Transport,"History, Heritage, Languages and Literature",Corporate Travel Management (North) Ltd,98631369,0.25,T&S UK - Public Transport
BEIS,UKRI - AHRC,15/11/2019,T&S UK - Public Transport,"History, Heritage, Languages and Literature",Corporate Travel Management (North) Ltd,98631369,151.10,T&S UK - Public Transport
BEIS,UKRI - AHRC,15/11/2019,T&S UK - Public Transport,"History, Heritage, Languages and Literature",Corporate Travel Management (North) Ltd,98631369,10.00,T&S UK - Public Transport
BEIS,UKRI - AHRC,15/11/2019,T&S UK - Public Transport,"History, Heritage, Languages and Literature",Corporate Travel Management (North) Ltd,98631369,-140.40,T&S UK - Public Transport
BEIS,UKRI - AHRC,15/11/2019,T&S UK - Public Transport,"History, Heritage, Languages and Literature",Corporate Travel Management (North) Ltd,98631369,0.25,T&S UK - Public Transport
BEIS,UKRI - AHRC,15/11/2019,T&S UK - Public Transport,"History, Heritage, Languages and Literature",Corporate Travel Management (North) Ltd,98631369,151.10,T&S UK - Public Transport
BEIS,UKRI - AHRC,15/11/2019,T&S UK - Public Transport,"History, Heritage, Languages and Literature",Corporate Travel Management (North) Ltd,98631369,0.25,T&S UK - Public Transport
BEIS,UKRI - AHRC,15/11/2019,T&S UK - Public Transport,"History, Heritage, Languages and Literature",Corporate Travel Management (North) Ltd,98631369,151.10,T&S UK - Public Transport
BEIS,UKRI - AHRC,15/11/2019,T&S UK - Public Transport,"History, Heritage, Languages and Literature",Corporate Travel Management (North) Ltd,98631369,0.25,T&S UK - Public Transport
BEIS,UKRI - AHRC,15/11/2019,T&S UK - Public Transport,"History, Heritage, Languages and Literature",Corporate Travel Management (North) Ltd,98631369,151.10,T&S UK - Public Transport
BEIS,UKRI - AHRC,15/11/2019,T&S UK - Public Transport,"History, Heritage, Languages and Literature",Corporate Travel Management (North) Ltd,98631369,0.25,T&S UK - Public Transport
BEIS,UKRI - AHRC,15/11/2019,T&S UK - Public Transport,"History, Heritage, Languages and Literature",Corporate Travel Management (North) Ltd,98631369,151.10,T&S UK - Public Transport
BEIS,UKRI - AHRC,15/11/2019,T&S UK - Public Transport,"History, Heritage, Languages and Literature",Corporate Travel Management (North) Ltd,98631369,0.25,T&S UK - Public Transport
BEIS,UKRI - AHRC,15/11/2019,T&S UK - Public Transport,"History, Heritage, Languages and Literature",Corporate Travel Management (North) Ltd,98631369,55.40,T&S UK - Public Transport
BEIS,UKRI - AHRC,15/11/2019,T&S UK - Public Transport,"History, Heritage, Languages and Literature",Corporate Travel Management (North) Ltd,98631369,0.25,T&S UK - Public Transport
BEIS,UKRI - AHRC,15/11/2019,T&S UK - Public Transport,"History, Heritage, Languages and Literature",Corporate Travel Management (North) Ltd,98631369,22.80,T&S UK - Public Transport
BEIS,UKRI - AHRC,15/11/2019,T&S UK - Public Transport,"History, Heritage, Languages and Literature",Corporate Travel Management (North) Ltd,98631369,0.25,T&S UK - Public Transport
BEIS,UKRI - AHRC,15/11/2019,T&S UK - Public Transport,"History, Heritage, Languages and Literature",Corporate Travel Management (North) Ltd,98631369,23.70,T&S UK - Public Transport
BEIS,UKRI - AHRC,15/11/2019,T&S UK - Public Transport,"History, Heritage, Languages and Literature",Corporate Travel Management (North) Ltd,98631369,0.50,T&S UK - Public Transport
BEIS,UKRI - AHRC,15/11/2019,T&S UK - Public Transport,"History, Heritage, Languages and Literature",Corporate Travel Management (North) Ltd,98631369,53.10,T&S UK - Public Transport
BEIS,UKRI - AHRC,15/11/2019,T&S UK - Public Transport,"History, Heritage, Languages and Literature",Corporate Travel Management (North) Ltd,98631369,20.00,T&S UK - Public Transport
BEIS,UKRI - AHRC,15/11/2019,T&S UK - Public Transport,"History, Heritage, Languages and Literature",Corporate Travel Management (North) Ltd,98631369,0.25,T&S UK - Public Transport
BEIS,UKRI - AHRC,15/11/2019,T&S UK - Public Transport,"History, Heritage, Languages and Literature",Corporate Travel Management (North) Ltd,98631369,91.50,T&S UK - Public Transport
BEIS,UKRI - AHRC,15/11/2019,T&S UK - Public Transport,"History, Heritage, Languages and Literature",Corporate Travel Management (North) Ltd,98631369,0.25,T&S UK - Public Transport
BEIS,UKRI - AHRC,15/11/2019,T&S UK - Public Transport,"History, Heritage, Languages and Literature",Corporate Travel Management (North) Ltd,98631369,27.50,T&S UK - Public Transport
BEIS,UKRI - AHRC,15/11/2019,T&S UK - Public Transport,"History, Heritage, Languages and Literature",Corporate Travel Management (North) Ltd,98631369,0.25,T&S UK - Public Transport
BEIS,UKRI - AHRC,15/11/2019,T&S UK - Public Transport,"History, Heritage, Languages and Literature",Corporate Travel Management (North) Ltd,98631369,177.10,T&S UK - Public Transport
BEIS,UKRI - AHRC,15/11/2019,T&S UK - Public Transport,"History, Heritage, Languages and Literature",Corporate Travel Management (North) Ltd,98631369,0.25,T&S UK - Public Transport
BEIS,UKRI - AHRC,15/11/2019,T&S UK - Public Transport,"History, Heritage, Languages and Literature",Corporate Travel Management (North) Ltd,98631369,126.70,T&S UK - Public Transport
BEIS,UKRI - AHRC,15/11/2019,T&S UK - Public Transport,"History, Heritage, Languages and Literature",Corporate Travel Management (North) Ltd,98631369,0.50,T&S UK - Public Transport
BEIS,UKRI - AHRC,15/11/2019,T&S UK - Public Transport,"History, Heritage, Languages and Literature",Corporate Travel Management (North) Ltd,98631369,8.50,T&S UK - Public Transport
BEIS,UKRI - AHRC,15/11/2019,T&S UK - Public Transport,"History, Heritage, Languages and Literature",Corporate Travel Management (North) Ltd,98631369,76.75,T&S UK - Public Transport
BEIS,UKRI - AHRC,15/11/2019,T&S UK - Public Transport,"History, Heritage, Languages and Literature",Corporate Travel Management (North) Ltd,98631369,0.50,T&S UK - Public Transport
BEIS,UKRI - AHRC,15/11/2019,T&S UK - Public Transport,"History, Heritage, Languages and Literature",Corporate Travel Management (North) Ltd,98631369,100.50,T&S UK - Public Transport
BEIS,UKRI - AHRC,15/11/2019,T&S UK - Public Transport,"History, Heritage, Languages and Literature",Corporate Travel Management (North) Ltd,98631369,103.00,T&S UK - Public Transport
BEIS,UKRI - AHRC,15/11/2019,T&S UK - Public Transport,"History, Heritage, Languages and Literature",Corporate Travel Management (North) Ltd,98631369,0.50,T&S UK - Public Transport
BEIS,UKRI - AHRC,15/11/2019,T&S UK - Public Transport,"History, Heritage, Languages and Literature",Corporate Travel Management (North) Ltd,98631369,81.25,T&S UK - Public Transport
BEIS,UKRI - AHRC,15/11/2019,T&S UK - Public Transport,"History, Heritage, Languages and Literature",Corporate Travel Management (North) Ltd,98631369,81.30,T&S UK - Public Transport
BEIS,UKRI - AHRC,15/11/2019,T&S UK - Public Transport,"History, Heritage, Languages and Literature",Corporate Travel Management (North) Ltd,98631369,0.50,T&S UK - Public Transport
BEIS,UKRI - AHRC,15/11/2019,T&S UK - Public Transport,"History, Heritage, Languages and Literature",Corporate Travel Management (North) Ltd,98631369,79.70,T&S UK - Public Transport
BEIS,UKRI - AHRC,15/11/2019,T&S UK - Public Transport,"History, Heritage, Languages and Literature",Corporate Travel Management (North) Ltd,98631369,51.00,T&S UK - Public Transport
BEIS,UKRI - AHRC,15/11/2019,T&S UK - Public Transport,"History, Heritage, Languages and Literature",Corporate Travel Management (North) Ltd,98631369,0.25,T&S UK - Public Transport
BEIS,UKRI - AHRC,15/11/2019,T&S UK - Public Transport,"History, Heritage, Languages and Literature",Corporate Travel Management (North) Ltd,98631369,19.60,T&S UK - Public Transport
BEIS,UKRI - AHRC,15/11/2019,T&S UK - Public Transport,Industrial Strategy Challenge Fund (ISCF) - Creative Clusters,Corporate Travel Management (North) Ltd,98631369,0.25,T&S UK - Public Transport
BEIS,UKRI - AHRC,15/11/2019,T&S UK - Public Transport,Industrial Strategy Challenge Fund (ISCF) - Creative Clusters,Corporate Travel Management (North) Ltd,98631369,65.20,T&S UK - Public Transport
BEIS,UKRI - AHRC,15/11/2019,T&S UK - Public Transport,Industrial Strategy Challenge Fund (ISCF) - Creative Clusters,Corporate Travel Management (North) Ltd,98631369,0.25,T&S UK - Public Transport
BEIS,UKRI - AHRC,15/11/2019,T&S UK - Public Transport,Industrial Strategy Challenge Fund (ISCF) - Creative Clusters,Corporate Travel Management (North) Ltd,98631369,103.80,T&S UK - Public Transport
BEIS,UKRI - AHRC,15/11/2019,T&S UK - Public Transport,Industrial Strategy Challenge Fund (ISCF) - Creative Clusters,Corporate Travel Management (North) Ltd,98631369,0.50,T&S UK - Public Transport
BEIS,UKRI - AHRC,15/11/2019,T&S UK - Public Transport,Industrial Strategy Challenge Fund (ISCF) - Creative Clusters,Corporate Travel Management (North) Ltd,98631369,9.80,T&S UK - Public Transport
BEIS,UKRI - AHRC,15/11/2019,T&S UK - Public Transport,Industrial Strategy Challenge Fund (ISCF) - Creative Clusters,Corporate Travel Management (North) Ltd,98631369,138.00,T&S UK - Public Transport
BEIS,UKRI - AHRC,15/11/2019,T&S UK - Public Transport,Industrial Strategy Challenge Fund (ISCF) - Creative Clusters,Corporate Travel Management (North) Ltd,98631369,0.50,T&S UK - Public Transport
BEIS,UKRI - AHRC,15/11/2019,T&S UK - Public Transport,Industrial Strategy Challenge Fund (ISCF) - Creative Clusters,Corporate Travel Management (North) Ltd,98631369,9.80,T&S UK - Public Transport
BEIS,UKRI - AHRC,15/11/2019,T&S UK - Public Transport,Industrial Strategy Challenge Fund (ISCF) - Creative Clusters,Corporate Travel Management (North) Ltd,98631369,122.20,T&S UK - Public Transport
BEIS,UKRI - AHRC,15/11/2019,T&S UK - Public Transport,Industrial Strategy Challenge Fund (ISCF) - Creative Clusters,Corporate Travel Management (North) Ltd,98631369,0.25,T&S UK - Public Transport
BEIS,UKRI - AHRC,15/11/2019,T&S UK - Public Transport,Industrial Strategy Challenge Fund (ISCF) - Creative Clusters,Corporate Travel Management (North) Ltd,98631369,27.60,T&S UK - Public Transport
BEIS,UKRI - AHRC,15/11/2019,T&S UK - Public Transport,Industrial Strategy Challenge Fund (ISCF) - Creative Clusters,Corporate Travel Management (North) Ltd,98631369,0.25,T&S UK - Public Transport
BEIS,UKRI - AHRC,15/11/2019,T&S UK - Public Transport,Industrial Strategy Challenge Fund (ISCF) - Creative Clusters,Corporate Travel Management (North) Ltd,98631369,138.00,T&S UK - Public Transport
BEIS,UKRI - AHRC,15/11/2019,T&S UK - Public Transport,Industrial Strategy Challenge Fund (ISCF) - Creative Clusters,Corporate Travel Management (North) Ltd,98631369,0.25,T&S UK - Public Transport
BEIS,UKRI - AHRC,15/11/2019,T&S UK - Public Transport,Industrial Strategy Challenge Fund (ISCF) - Creative Clusters,Corporate Travel Management (North) Ltd,98631369,9.80,T&S UK - Public Transport
BEIS,UKRI - AHRC,15/11/2019,T&S UK - Public Transport,Industrial Strategy Challenge Fund (ISCF) - Creative Clusters,Corporate Travel Management (North) Ltd,98631369,0.25,T&S UK - Public Transport
BEIS,UKRI - AHRC,15/11/2019,T&S UK - Public Transport,Industrial Strategy Challenge Fund (ISCF) - Creative Clusters,Corporate Travel Management (North) Ltd,98631369,144.00,T&S UK - Public Transport
BEIS,UKRI - AHRC,15/11/2019,T&S UK - Public Transport,Industrial Strategy Challenge Fund (ISCF) - Creative Clusters,Corporate Travel Management (North) Ltd,98631369,0.50,T&S UK - Public Transport
BEIS,UKRI - AHRC,15/11/2019,T&S UK - Public Transport,Industrial Strategy Challenge Fund (ISCF) - Creative Clusters,Corporate Travel Management (North) Ltd,98631369,79.70,T&S UK - Public Transport
BEIS,UKRI - AHRC,15/11/2019,T&S UK - Public Transport,Industrial Strategy Challenge Fund (ISCF) - Creative Clusters,Corporate Travel Management (North) Ltd,98631369,51.00,T&S UK - Public Transport
BEIS,UKRI - AHRC,15/11/2019,T&S UK - Public Transport,Industrial Strategy Challenge Fund (ISCF) - Creative Clusters,Corporate Travel Management (North) Ltd,98631369,0.25,T&S UK - Public Transport
BEIS,UKRI - AHRC,15/11/2019,T&S UK - Public Transport,Industrial Strategy Challenge Fund (ISCF) - Creative Clusters,Corporate Travel Management (North) Ltd,98631369,121.50,T&S UK - Public Transport
BEIS,UKRI - AHRC,15/11/2019,T&S UK - Public Transport,Industrial Strategy Challenge Fund (ISCF) - Creative Clusters,Corporate Travel Management (North) Ltd,98631369,0.50,T&S UK - Public Transport
BEIS,UKRI - AHRC,15/11/2019,T&S UK - Public Transport,Industrial Strategy Challenge Fund (ISCF) - Creative Clusters,Corporate Travel Management (North) Ltd,98631369,9.80,T&S UK - Public Transport
BEIS,UKRI - AHRC,15/11/2019,T&S UK - Public Transport,Industrial Strategy Challenge Fund (ISCF) - Creative Clusters,Corporate Travel Management (North) Ltd,98631369,62.80,T&S UK - Public Transport
BEIS,UKRI - AHRC,15/11/2019,T&S UK - Public Transport,Industrial Strategy Challenge Fund (ISCF) - Creative Clusters,Corporate Travel Management (North) Ltd,98631369,0.50,T&S UK - Public Transport
BEIS,UKRI - AHRC,15/11/2019,T&S UK - Public Transport,Industrial Strategy Challenge Fund (ISCF) - Creative Clusters,Corporate Travel Management (North) Ltd,98631369,79.70,T&S UK - Public Transport
BEIS,UKRI - AHRC,15/11/2019,T&S UK - Public Transport,Industrial Strategy Challenge Fund (ISCF) - Creative Clusters,Corporate Travel Management (North) Ltd,98631369,51.00,T&S UK - Public Transport
BEIS,UKRI - AHRC,15/11/2019,T&S UK - Public Transport,Industrial Strategy Challenge Fund (ISCF) - Creative Clusters,Corporate Travel Management (North) Ltd,98631369,0.25,T&S UK - Public Transport
BEIS,UKRI - AHRC,15/11/2019,T&S UK - Public Transport,Industrial Strategy Challenge Fund (ISCF) - Creative Clusters,Corporate Travel Management (North) Ltd,98631369,127.00,T&S UK - Public Transport
BEIS,UKRI - AHRC,15/11/2019,T&S UK - Public Transport,Industrial Strategy Challenge Fund (ISCF) - Creative Clusters,Corporate Travel Management (North) Ltd,98631369,0.25,T&S UK - Public Transport
BEIS,UKRI - AHRC,15/11/2019,T&S UK - Public Transport,Industrial Strategy Challenge Fund (ISCF) - Creative Clusters,Corporate Travel Management (North) Ltd,98631369,124.75,T&S UK - Public Transport
BEIS,UKRI - AHRC,15/11/2019,T&S UK - Public Transport,Industrial Strategy Challenge Fund (ISCF) - Creative Clusters,Corporate Travel Management (North) Ltd,98631369,0.25,T&S UK - Public Transport
BEIS,UKRI - AHRC,15/11/2019,T&S UK - Public Transport,Industrial Strategy Challenge Fund (ISCF) - Creative Clusters,Corporate Travel Management (North) Ltd,98631369,130.50,T&S UK - Public Transport
BEIS,UKRI - AHRC,15/11/2019,T&S UK - Public Transport,Industrial Strategy Challenge Fund (ISCF) - Creative Clusters,Corporate Travel Management (North) Ltd,98631369,2.60,T&S UK - Public Transport
BEIS,UKRI - AHRC,15/11/2019,T&S UK - Public Transport,Industrial Strategy Challenge Fund (ISCF) - Creative Clusters,Corporate Travel Management (North) Ltd,98631369,140.00,T&S UK - Public Transport
BEIS,UKRI - AHRC,15/11/2019,T&S UK - Public Transport,Industrial Strategy Challenge Fund (ISCF) - Creative Clusters,Corporate Travel Management (North) Ltd,98631369,0.50,T&S UK - Public Transport
BEIS,UKRI - AHRC,15/11/2019,T&S UK - Public Transport,Industrial Strategy Challenge Fund (ISCF) - Creative Clusters,Corporate Travel Management (North) Ltd,98631369,9.55,T&S UK - Public Transport
BEIS,UKRI - AHRC,15/11/2019,T&S UK - Public Transport,Industrial Strategy Challenge Fund (ISCF) - Creative Clusters,Corporate Travel Management (North) Ltd,98631369,8.50,T&S UK - Public Transport
BEIS,UKRI - AHRC,15/11/2019,T&S UK - Public Transport,Industrial Strategy Challenge Fund (ISCF) - Creative Clusters,Corporate Travel Management (North) Ltd,98631369,0.25,T&S UK - Public Transport
BEIS,UKRI - AHRC,15/11/2019,T&S UK - Public Transport,Industrial Strategy Challenge Fund (ISCF) - Creative Clusters,Corporate Travel Management (North) Ltd,98631369,23.70,T&S UK - Public Transport
BEIS,UKRI - AHRC,15/11/2019,T&S UK - Public Transport,Industrial Strategy Challenge Fund (ISCF) - Creative Clusters,Corporate Travel Management (North) Ltd,98631369,0.25,T&S UK - Public Transport
BEIS,UKRI - AHRC,15/11/2019,T&S UK - Public Transport,Industrial Strategy Challenge Fund (ISCF) - Creative Clusters,Corporate Travel Management (North) Ltd,98631369,168.40,T&S UK - Public Transport
BEIS,UKRI - AHRC,15/11/2019,T&S UK - Public Transport,Industrial Strategy Challenge Fund (ISCF) - Creative Clusters,Corporate Travel Management (North) Ltd,98631369,0.25,T&S UK - Public Transport
BEIS,UKRI - AHRC,15/11/2019,T&S UK - Public Transport,Industrial Strategy Challenge Fund (ISCF) - Creative Clusters,Corporate Travel Management (North) Ltd,98631369,196.30,T&S UK - Public Transport
BEIS,UKRI - AHRC,15/11/2019,T&S UK - Public Transport,Industrial Strategy Challenge Fund (ISCF) - Creative Clusters,Corporate Travel Management (North) Ltd,98631369,0.25,T&S UK - Public Transport
BEIS,UKRI - AHRC,15/11/2019,T&S UK - Public Transport,Industrial Strategy Challenge Fund (ISCF) - Creative Clusters,Corporate Travel Management (North) Ltd,98631369,27.50,T&S UK - Public Transport
BEIS,UKRI - AHRC,15/11/2019,T&S UK - Public Transport,International,Corporate Travel Management (North) Ltd,98631369,0.25,T&S UK - Public Transport
BEIS,UKRI - AHRC,15/11/2019,T&S UK - Public Transport,International,Corporate Travel Management (North) Ltd,98631369,153.10,T&S UK - Public Transport
BEIS,UKRI - AHRC,15/11/2019,T&S UK - Public Transport,International,Corporate Travel Management (North) Ltd,98631369,0.25,T&S UK - Public Transport
BEIS,UKRI - AHRC,15/11/2019,T&S UK - Public Transport,International,Corporate Travel Management (North) Ltd,98631369,46.80,T&S UK - Public Transport
BEIS,UKRI - AHRC,15/11/2019,T&S UK - Public Transport,International,Corporate Travel Management (North) Ltd,98631369,0.25,T&S UK - Public Transport
BEIS,UKRI - AHRC,15/11/2019,T&S UK - Public Transport,International,Corporate Travel Management (North) Ltd,98631369,53.80,T&S UK - Public Transport
BEIS,UKRI - AHRC,15/11/2019,T&S UK - Public Transport,International,Corporate Travel Management (North) Ltd,98631369,0.25,T&S UK - Public Transport
BEIS,UKRI - AHRC,15/11/2019,T&S UK - Public Transport,International,Corporate Travel Management (North) Ltd,98631369,51.10,T&S UK - Public Transport
BEIS,UKRI - AHRC,15/11/2019,T&S UK - Public Transport,International,Corporate Travel Management (North) Ltd,98631369,0.25,T&S UK - Public Transport
BEIS,UKRI - AHRC,15/11/2019,T&S UK - Public Transport,International,Corporate Travel Management (North) Ltd,98631369,144.00,T&S UK - Public Transport
BEIS,UKRI - AHRC,15/11/2019,T&S UK - Public Transport,International,Corporate Travel Management (North) Ltd,98631369,0.50,T&S UK - Public Transport
BEIS,UKRI - AHRC,15/11/2019,T&S UK - Public Transport,International,Corporate Travel Management (North) Ltd,98631369,65.00,T&S UK - Public Transport
BEIS,UKRI - AHRC,15/11/2019,T&S UK - Public Transport,International,Corporate Travel Management (North) Ltd,98631369,72.60,T&S UK - Public Transport
BEIS,UKRI - AHRC,15/11/2019,T&S UK - Public Transport,International,Corporate Travel Management (North) Ltd,98631369,0.25,T&S UK - Public Transport
BEIS,UKRI - AHRC,15/11/2019,T&S UK - Public Transport,International,Corporate Travel Management (North) Ltd,98631369,62.80,T&S UK - Public Transport
BEIS,UKRI - AHRC,15/11/2019,T&S UK - Public Transport,International,Corporate Travel Management (North) Ltd,98631369,0.25,T&S UK - Public Transport
BEIS,UKRI - AHRC,15/11/2019,T&S UK - Public Transport,International,Corporate Travel Management (North) Ltd,98631369,28.00,T&S UK - Public Transport
BEIS,UKRI - AHRC,15/11/2019,T&S UK - Public Transport,International,Corporate Travel Management (North) Ltd,98631369,0.25,T&S UK - Public Transport
BEIS,UKRI - AHRC,15/11/2019,T&S UK - Public Transport,International,Corporate Travel Management (North) Ltd,98631369,42.60,T&S UK - Public Transport
BEIS,UKRI - AHRC,15/11/2019,T&S UK - Public Transport,International Development and Area Studies,Corporate Travel Management (North) Ltd,98631369,0.25,T&S UK - Public Transport
BEIS,UKRI - AHRC,15/11/2019,T&S UK - Public Transport,International Development and Area Studies,Corporate Travel Management (North) Ltd,98631369,138.00,T&S UK - Public Transport
BEIS,UKRI - AHRC,15/11/2019,T&S UK - Public Transport,International Development and Area Studies,Corporate Travel Management (North) Ltd,98631369,0.25,T&S UK - Public Transport
BEIS,UKRI - AHRC,15/11/2019,T&S UK - Public Transport,International Development and Area Studies,Corporate Travel Management (North) Ltd,98631369,97.80,T&S UK - Public Transport
BEIS,UKRI - AHRC,15/11/2019,T&S UK - Public Transport,International Development and Area Studies,Corporate Travel Management (North) Ltd,98631369,0.25,T&S UK - Public Transport
BEIS,UKRI - AHRC,15/11/2019,T&S UK - Public Transport,International Development and Area Studies,Corporate Travel Management (North) Ltd,98631369,69.90,T&S UK - Public Transport
BEIS,UKRI - AHRC,15/11/2019,T&S UK - Public Transport,International Development and Area Studies,Corporate Travel Management (North) Ltd,98631369,84.22,T&S UK - Public Transport
BEIS,UKRI - AHRC,15/11/2019,T&S UK - Public Transport,International Partnership and Engagement,Corporate Travel Management (North) Ltd,98631369,0.25,T&S UK - Public Transport
BEIS,UKRI - AHRC,15/11/2019,T&S UK - Public Transport,International Partnership and Engagement,Corporate Travel Management (North) Ltd,98631369,122.90,T&S UK - Public Transport
BEIS,UKRI - AHRC,15/11/2019,T&S UK - Public Transport,International Partnership and Engagement,Corporate Travel Management (North) Ltd,98631369,0.25,T&S UK - Public Transport
BEIS,UKRI - AHRC,15/11/2019,T&S UK - Public Transport,International Partnership and Engagement,Corporate Travel Management (North) Ltd,98631369,19.00,T&S UK - Public Transport
BEIS,UKRI - AHRC,15/11/2019,T&S UK - Public Transport,International Partnership and Engagement,Corporate Travel Management (North) Ltd,98631369,0.25,T&S UK - Public Transport
BEIS,UKRI - AHRC,15/11/2019,T&S UK - Public Transport,International Partnership and Engagement,Corporate Travel Management (North) Ltd,98631369,119.00,T&S UK - Public Transport
BEIS,UKRI - AHRC,15/11/2019,T&S UK - Public Transport,International Partnership and Engagement,Corporate Travel Management (North) Ltd,98631369,0.25,T&S UK - Public Transport
BEIS,UKRI - AHRC,15/11/2019,T&S UK - Public Transport,International Partnership and Engagement,Corporate Travel Management (North) Ltd,98631369,92.00,T&S UK - Public Transport
BEIS,UKRI - AHRC,15/11/2019,T&S UK - Public Transport,Landscape Decisions (SPF),Corporate Travel Management (North) Ltd,98631369,0.25,T&S UK - Public Transport
BEIS,UKRI - AHRC,15/11/2019,T&S UK - Public Transport,Landscape Decisions (SPF),Corporate Travel Management (North) Ltd,98631369,111.50,T&S UK - Public Transport
BEIS,UKRI - AHRC,15/11/2019,T&S UK - Public Transport,Landscape Decisions (SPF),Corporate Travel Management (North) Ltd,98631369,0.25,T&S UK - Public Transport
BEIS,UKRI - AHRC,15/11/2019,T&S UK - Public Transport,Landscape Decisions (SPF),Corporate Travel Management (North) Ltd,98631369,87.00,T&S UK - Public Transport
BEIS,UKRI - AHRC,15/11/2019,T&S UK - Public Transport,Newton Programme Delivery,Corporate Travel Management (North) Ltd,98631369,0.25,T&S UK - Public Transport
BEIS,UKRI - AHRC,15/11/2019,T&S UK - Public Transport,Newton Programme Delivery,Corporate Travel Management (North) Ltd,98631369,228.00,T&S UK - Public Transport
BEIS,UKRI - AHRC,15/11/2019,T&S UK - Public Transport,Newton Programme Delivery,Corporate Travel Management (North) Ltd,98631369,0.25,T&S UK - Public Transport
BEIS,UKRI - AHRC,15/11/2019,T&S UK - Public Transport,Newton Programme Delivery,Corporate Travel Management (North) Ltd,98631369,94.00,T&S UK - Public Transport
BEIS,UKRI - AHRC,15/11/2019,T&S UK - Public Transport,Newton Programme Delivery,Corporate Travel Management (North) Ltd,98631369,0.25,T&S UK - Public Transport
BEIS,UKRI - AHRC,15/11/2019,T&S UK - Public Transport,Newton Programme Delivery,Corporate Travel Management (North) Ltd,98631369,144.00,T&S UK - Public Transport
BEIS,UKRI - AHRC,15/11/2019,T&S UK - Public Transport,Newton Programme Delivery,Corporate Travel Management (North) Ltd,98631369,0.25,T&S UK - Public Transport
BEIS,UKRI - AHRC,15/11/2019,T&S UK - Public Transport,Newton Programme Delivery,Corporate Travel Management (North) Ltd,98631369,103.80,T&S UK - Public Transport
BEIS,UKRI - AHRC,15/11/2019,T&S UK - Public Transport,Operations,Corporate Travel Management (North) Ltd,98631369,0.12,T&S UK - Public Transport
BEIS,UKRI - AHRC,15/11/2019,T&S UK - Public Transport,Operations,Corporate Travel Management (North) Ltd,98631369,114.40,T&S UK - Public Transport
BEIS,UKRI - AHRC,15/11/2019,T&S UK - Public Transport,Operations,Corporate Travel Management (North) Ltd,98631369,0.13,T&S UK - Public Transport
BEIS,UKRI - AHRC,15/11/2019,T&S UK - Public Transport,Operations,Corporate Travel Management (North) Ltd,98631369,114.40,T&S UK - Public Transport
BEIS,UKRI - AHRC,15/11/2019,T&S UK - Public Transport,Operations,Corporate Travel Management (North) Ltd,98631369,0.24,T&S UK - Public Transport
BEIS,UKRI - AHRC,15/11/2019,T&S UK - Public Transport,Operations,Corporate Travel Management (North) Ltd,98631369,254.40,T&S UK - Public Transport
BEIS,UKRI - AHRC,15/11/2019,T&S UK - Public Transport,Operations,Corporate Travel Management (North) Ltd,98631369,0.26,T&S UK - Public Transport
BEIS,UKRI - AHRC,15/11/2019,T&S UK - Public Transport,Operations,Corporate Travel Management (North) Ltd,98631369,254.40,T&S UK - Public Transport
BEIS,UKRI - AHRC,15/11/2019,T&S UK - Public Transport,PSU JRS,Corporate Travel Management (North) Ltd,98631369,0.25,T&S UK - Public Transport
BEIS,UKRI - AHRC,15/11/2019,T&S UK - Public Transport,PSU JRS,Corporate Travel Management (North) Ltd,98631369,138.00,T&S UK - Public Transport
BEIS,UKRI - AHRC,15/11/2019,T&S UK - Public Transport,PSU JRS,Corporate Travel Management (North) Ltd,98631369,0.25,T&S UK - Public Transport
BEIS,UKRI - AHRC,15/11/2019,T&S UK - Public Transport,PSU JRS,Corporate Travel Management (North) Ltd,98631369,71.20,T&S UK - Public Transport
BEIS,UKRI - AHRC,15/11/2019,T&S UK - Public Transport,PSU Project Office,Corporate Travel Management (North) Ltd,98631369,0.25,T&S UK - Public Transport
BEIS,UKRI - AHRC,15/11/2019,T&S UK - Public Transport,PSU Project Office,Corporate Travel Management (North) Ltd,98631369,144.70,T&S UK - Public Transport
BEIS,UKRI - AHRC,15/11/2019,T&S UK - Public Transport,PSU Project Office,Corporate Travel Management (North) Ltd,98631369,0.25,T&S UK - Public Transport
BEIS,UKRI - AHRC,15/11/2019,T&S UK - Public Transport,PSU Project Office,Corporate Travel Management (North) Ltd,98631369,55.40,T&S UK - Public Transport
BEIS,UKRI - AHRC,15/11/2019,T&S UK - Public Transport,PSU Project Office,Corporate Travel Management (North) Ltd,98631369,0.25,T&S UK - Public Transport
BEIS,UKRI - AHRC,15/11/2019,T&S UK - Public Transport,PSU Project Office,Corporate Travel Management (North) Ltd,98631369,144.70,T&S UK - Public Transport
BEIS,UKRI - AHRC,15/11/2019,T&S UK - Public Transport,PSU Project Office,Corporate Travel Management (North) Ltd,98631369,0.25,T&S UK - Public Transport
BEIS,UKRI - AHRC,15/11/2019,T&S UK - Public Transport,PSU Project Office,Corporate Travel Management (North) Ltd,98631369,144.00,T&S UK - Public Transport
BEIS,UKRI - AHRC,15/11/2019,T&S UK - Public Transport,Public and Stakeholder Engagement,Corporate Travel Management (North) Ltd,98631369,0.25,T&S UK - Public Transport
BEIS,UKRI - AHRC,15/11/2019,T&S UK - Public Transport,Public and Stakeholder Engagement,Corporate Travel Management (North) Ltd,98631369,14.50,T&S UK - Public Transport
BEIS,UKRI - AHRC,15/11/2019,T&S UK - Public Transport,Public and Stakeholder Engagement,Corporate Travel Management (North) Ltd,98631369,0.25,T&S UK - Public Transport
BEIS,UKRI - AHRC,15/11/2019,T&S UK - Public Transport,Public and Stakeholder Engagement,Corporate Travel Management (North) Ltd,98631369,47.20,T&S UK - Public Transport
BEIS,UKRI - AHRC,15/11/2019,T&S UK - Public Transport,Public and Stakeholder Engagement,Corporate Travel Management (North) Ltd,98631369,0.50,T&S UK - Public Transport
BEIS,UKRI - AHRC,15/11/2019,T&S UK - Public Transport,Public and Stakeholder Engagement,Corporate Travel Management (North) Ltd,98631369,9.80,T&S UK - Public Transport
BEIS,UKRI - AHRC,15/11/2019,T&S UK - Public Transport,Public and Stakeholder Engagement,Corporate Travel Management (North) Ltd,98631369,138.00,T&S UK - Public Transport
BEIS,UKRI - AHRC,15/11/2019,T&S UK - Public Transport,Public and Stakeholder Engagement,Corporate Travel Management (North) Ltd,98631369,0.50,T&S UK - Public Transport
BEIS,UKRI - AHRC,15/11/2019,T&S UK - Public Transport,Public and Stakeholder Engagement,Corporate Travel Management (North) Ltd,98631369,203.00,T&S UK - Public Transport
BEIS,UKRI - AHRC,15/11/2019,T&S UK - Public Transport,Public and Stakeholder Engagement,Corporate Travel Management (North) Ltd,98631369,9.80,T&S UK - Public Transport
BEIS,UKRI - AHRC,15/11/2019,T&S UK - Public Transport,Public and Stakeholder Engagement,Corporate Travel Management (North) Ltd,98631369,0.25,T&S UK - Public Transport
BEIS,UKRI - AHRC,15/11/2019,T&S UK - Public Transport,Public and Stakeholder Engagement,Corporate Travel Management (North) Ltd,98631369,68.80,T&S UK - Public Transport
BEIS,UKRI - AHRC,15/11/2019,T&S UK - Public Transport,Public and Stakeholder Engagement,Corporate Travel Management (North) Ltd,98631369,0.25,T&S UK - Public Transport
BEIS,UKRI - AHRC,15/11/2019,T&S UK - Public Transport,Public and Stakeholder Engagement,Corporate Travel Management (North) Ltd,98631369,60.60,T&S UK - Public Transport
BEIS,UKRI - AHRC,15/11/2019,T&S UK - Public Transport,Public and Stakeholder Engagement,Corporate Travel Management (North) Ltd,98631369,0.25,T&S UK - Public Transport
BEIS,UKRI - AHRC,15/11/2019,T&S UK - Public Transport,Public and Stakeholder Engagement,Corporate Travel Management (North) Ltd,98631369,38.90,T&S UK - Public Transport
BEIS,UKRI - AHRC,15/11/2019,T&S UK - Public Transport,Public and Stakeholder Engagement,Corporate Travel Management (North) Ltd,98631369,1.00,T&S UK - Public Transport
BEIS,UKRI - AHRC,15/11/2019,T&S UK - Public Transport,Public and Stakeholder Engagement,Corporate Travel Management (North) Ltd,98631369,101.50,T&S UK - Public Transport
BEIS,UKRI - AHRC,15/11/2019,T&S UK - Public Transport,Public and Stakeholder Engagement,Corporate Travel Management (North) Ltd,98631369,9.80,T&S UK - Public Transport
BEIS,UKRI - AHRC,15/11/2019,T&S UK - Public Transport,Public and Stakeholder Engagement,Corporate Travel Management (North) Ltd,98631369,221.60,T&S UK - Public Transport
BEIS,UKRI - AHRC,15/11/2019,T&S UK - Public Transport,Public and Stakeholder Engagement,Corporate Travel Management (North) Ltd,98631369,43.40,T&S UK - Public Transport
BEIS,UKRI - AHRC,15/11/2019,T&S UK - Public Transport,Public and Stakeholder Engagement,Corporate Travel Management (North) Ltd,98631369,0.25,T&S UK - Public Transport
BEIS,UKRI - AHRC,15/11/2019,T&S UK - Public Transport,Public and Stakeholder Engagement,Corporate Travel Management (North) Ltd,98631369,41.45,T&S UK - Public Transport
BEIS,UKRI - AHRC,15/11/2019,T&S UK - Public Transport,Public and Stakeholder Engagement,Corporate Travel Management (North) Ltd,98631369,0.25,T&S UK - Public Transport
BEIS,UKRI - AHRC,15/11/2019,T&S UK - Public Transport,Public and Stakeholder Engagement,Corporate Travel Management (North) Ltd,98631369,57.40,T&S UK - Public Transport
BEIS,UKRI - AHRC,15/11/2019,T&S UK - Public Transport,Public and Stakeholder Engagement,Corporate Travel Management (North) Ltd,98631369,0.25,T&S UK - Public Transport
BEIS,UKRI - AHRC,15/11/2019,T&S UK - Public Transport,Public and Stakeholder Engagement,Corporate Travel Management (North) Ltd,98631369,194.80,T&S UK - Public Transport
BEIS,UKRI - AHRC,15/11/2019,T&S UK - Public Transport,Public and Stakeholder Engagement,Corporate Travel Management (North) Ltd,98631369,0.25,T&S UK - Public Transport
BEIS,UKRI - AHRC,15/11/2019,T&S UK - Public Transport,Public and Stakeholder Engagement,Corporate Travel Management (North) Ltd,98631369,35.70,T&S UK - Public Transport
BEIS,UKRI - AHRC,15/11/2019,T&S UK - Public Transport,SMT,Corporate Travel Management (North) Ltd,98631369,0.25,T&S UK - Public Transport
BEIS,UKRI - AHRC,15/11/2019,T&S UK - Public Transport,SMT,Corporate Travel Management (North) Ltd,98631369,133.00,T&S UK - Public Transport
BEIS,UKRI - AHRC,15/11/2019,T&S UK - Public Transport,SMT,Corporate Travel Management (North) Ltd,98631369,0.25,T&S UK - Public Transport
BEIS,UKRI - AHRC,15/11/2019,T&S UK - Public Transport,SMT,Corporate Travel Management (North) Ltd,98631369,38.90,T&S UK - Public Transport
BEIS,UKRI - AHRC,15/11/2019,T&S UK - Public Transport,SMT,Corporate Travel Management (North) Ltd,98631369,0.25,T&S UK - Public Transport
BEIS,UKRI - AHRC,15/11/2019,T&S UK - Public Transport,SMT,Corporate Travel Management (North) Ltd,98631369,168.40,T&S UK - Public Transport
BEIS,UKRI - AHRC,15/11/2019,T&S UK - Public Transport,SMT,Corporate Travel Management (North) Ltd,98631369,0.25,T&S UK - Public Transport
BEIS,UKRI - AHRC,15/11/2019,T&S UK - Public Transport,SMT,Corporate Travel Management (North) Ltd,98631369,57.60,T&S UK - Public Transport
BEIS,UKRI - AHRC,15/11/2019,T&S UK - Public Transport,SMT,Corporate Travel Management (North) Ltd,98631369,-22.30,T&S UK - Public Transport
BEIS,UKRI - AHRC,15/11/2019,T&S UK - Public Transport,SMT,Corporate Travel Management (North) Ltd,98631369,0.25,T&S UK - Public Transport
BEIS,UKRI - AHRC,15/11/2019,T&S UK - Public Transport,SMT,Corporate Travel Management (North) Ltd,98631369,218.00,T&S UK - Public Transport
BEIS,UKRI - AHRC,15/11/2019,T&S UK - Public Transport,SMT,Corporate Travel Management (North) Ltd,98631369,0.25,T&S UK - Public Transport
BEIS,UKRI - AHRC,15/11/2019,T&S UK - Public Transport,SMT,Corporate Travel Management (North) Ltd,98631369,66.60,T&S UK - Public Transport
BEIS,UKRI - AHRC,15/11/2019,T&S UK - Public Transport,SMT,Corporate Travel Management (North) Ltd,98631369,0.25,T&S UK - Public Transport
BEIS,UKRI - AHRC,15/11/2019,T&S UK - Public Transport,SMT,Corporate Travel Management (North) Ltd,98631369,97.80,T&S UK - Public Transport
BEIS,UKRI - AHRC,15/11/2019,T&S UK - Public Transport,SMT,Corporate Travel Management (North) Ltd,98631369,0.50,T&S UK - Public Transport
BEIS,UKRI - AHRC,15/11/2019,T&S UK - Public Transport,SMT,Corporate Travel Management (North) Ltd,98631369,356.00,T&S UK - Public Transport
BEIS,UKRI - AHRC,15/11/2019,T&S UK - Public Transport,SMT,Corporate Travel Management (North) Ltd,98631369,0.25,T&S UK - Public Transport
BEIS,UKRI - AHRC,15/11/2019,T&S UK - Public Transport,SMT,Corporate Travel Management (North) Ltd,98631369,94.00,T&S UK - Public Transport
BEIS,UKRI - AHRC,15/11/2019,T&S UK - Public Transport,SMT,Corporate Travel Management (North) Ltd,98631369,0.25,T&S UK - Public Transport
BEIS,UKRI - AHRC,15/11/2019,T&S UK - Public Transport,SMT,Corporate Travel Management (North) Ltd,98631369,97.80,T&S UK - Public Transport
BEIS,UKRI - AHRC,15/11/2019,T&S UK - Public Transport,SMT,Corporate Travel Management (North) Ltd,98631369,0.25,T&S UK - Public Transport
BEIS,UKRI - AHRC,15/11/2019,T&S UK - Public Transport,SMT,Corporate Travel Management (North) Ltd,98631369,64.40,T&S UK - Public Transport
BEIS,UKRI - AHRC,15/11/2019,T&S UK - Public Transport,SMT,Corporate Travel Management (North) Ltd,98631369,0.50,T&S UK - Public Transport
BEIS,UKRI - AHRC,15/11/2019,T&S UK - Public Transport,SMT,Corporate Travel Management (North) Ltd,98631369,27.40,T&S UK - Public Transport
BEIS,UKRI - AHRC,15/11/2019,T&S UK - Public Transport,SMT,Corporate Travel Management (North) Ltd,98631369,32.00,T&S UK - Public Transport
BEIS,UKRI - AHRC,15/11/2019,T&S UK - Public Transport,SMT,Corporate Travel Management (North) Ltd,98631369,0.25,T&S UK - Public Transport
BEIS,UKRI - AHRC,15/11/2019,T&S UK - Public Transport,SMT,Corporate Travel Management (North) Ltd,98631369,33.70,T&S UK - Public Transport
BEIS,UKRI - AHRC,15/11/2019,T&S UK - Public Transport,SMT,Corporate Travel Management (North) Ltd,98631369,0.25,T&S UK - Public Transport
BEIS,UKRI - AHRC,15/11/2019,T&S UK - Public Transport,SMT,Corporate Travel Management (North) Ltd,98631369,45.60,T&S UK - Public Transport
BEIS,UKRI - AHRC,15/11/2019,T&S UK - Public Transport,SMT,Corporate Travel Management (North) Ltd,98631369,0.25,T&S UK - Public Transport
BEIS,UKRI - AHRC,15/11/2019,T&S UK - Public Transport,SMT,Corporate Travel Management (North) Ltd,98631369,159.10,T&S UK - Public Transport
BEIS,UKRI - AHRC,15/11/2019,T&S UK - Public Transport,SMT,Corporate Travel Management (North) Ltd,98631369,0.50,T&S UK - Public Transport
BEIS,UKRI - AHRC,15/11/2019,T&S UK - Public Transport,SMT,Corporate Travel Management (North) Ltd,98631369,23.70,T&S UK - Public Transport
BEIS,UKRI - AHRC,15/11/2019,T&S UK - Public Transport,SMT,Corporate Travel Management (North) Ltd,98631369,65.20,T&S UK - Public Transport
BEIS,UKRI - AHRC,15/11/2019,T&S UK - Public Transport,SMT,Corporate Travel Management (North) Ltd,98631369,0.25,T&S UK - Public Transport
BEIS,UKRI - AHRC,15/11/2019,T&S UK - Public Transport,SMT,Corporate Travel Management (North) Ltd,98631369,97.80,T&S UK - Public Transport
BEIS,UKRI - AHRC,15/11/2019,T&S UK - Public Transport,SMT,Corporate Travel Management (North) Ltd,98631369,0.25,T&S UK - Public Transport
BEIS,UKRI - AHRC,15/11/2019,T&S UK - Public Transport,SMT,Corporate Travel Management (North) Ltd,98631369,51.70,T&S UK - Public Transport
BEIS,UKRI - AHRC,15/11/2019,T&S UK - Public Transport,SMT,Corporate Travel Management (North) Ltd,98631369,0.50,T&S UK - Public Transport
BEIS,UKRI - AHRC,15/11/2019,T&S UK - Public Transport,SMT,Corporate Travel Management (North) Ltd,98631369,20.50,T&S UK - Public Transport
BEIS,UKRI - AHRC,15/11/2019,T&S UK - Public Transport,SMT,Corporate Travel Management (North) Ltd,98631369,71.10,T&S UK - Public Transport
BEIS,UKRI - AHRC,15/11/2019,T&S UK - Public Transport,SMT,Corporate Travel Management (North) Ltd,98631369,0.50,T&S UK - Public Transport
BEIS,UKRI - AHRC,15/11/2019,T&S UK - Public Transport,SMT,Corporate Travel Management (North) Ltd,98631369,33.70,T&S UK - Public Transport
BEIS,UKRI - AHRC,15/11/2019,T&S UK - Public Transport,SMT,Corporate Travel Management (North) Ltd,98631369,27.30,T&S UK - Public Transport
BEIS,UKRI - AHRC,15/11/2019,T&S UK - Public Transport,SMT,Corporate Travel Management (North) Ltd,98631369,0.25,T&S UK - Public Transport
BEIS,UKRI - AHRC,15/11/2019,T&S UK - Public Transport,SMT,Corporate Travel Management (North) Ltd,98631369,31.10,T&S UK - Public Transport
BEIS,UKRI - AHRC,15/11/2019,T&S UK - Public Transport,SMT,Corporate Travel Management (North) Ltd,98631369,0.25,T&S UK - Public Transport
BEIS,UKRI - AHRC,15/11/2019,T&S UK - Public Transport,SMT,Corporate Travel Management (North) Ltd,98631369,35.10,T&S UK - Public Transport
BEIS,UKRI - AHRC,15/11/2019,T&S UK - Public Transport,SMT,Corporate Travel Management (North) Ltd,98631369,0.25,T&S UK - Public Transport
BEIS,UKRI - AHRC,15/11/2019,T&S UK - Public Transport,SMT,Corporate Travel Management (North) Ltd,98631369,53.80,T&S UK - Public Transport
BEIS,UKRI - AHRC,15/11/2019,T&S UK - Public Transport,SMT,Corporate Travel Management (North) Ltd,98631369,0.25,T&S UK - Public Transport
BEIS,UKRI - AHRC,15/11/2019,T&S UK - Public Transport,SMT,Corporate Travel Management (North) Ltd,98631369,41.50,T&S UK - Public Transport
BEIS,UKRI - AHRC,15/11/2019,T&S UK - Public Transport,SMT,Corporate Travel Management (North) Ltd,98631369,0.50,T&S UK - Public Transport
BEIS,UKRI - AHRC,15/11/2019,T&S UK - Public Transport,SMT,Corporate Travel Management (North) Ltd,98631369,33.70,T&S UK - Public Transport
BEIS,UKRI - AHRC,15/11/2019,T&S UK - Public Transport,SMT,Corporate Travel Management (North) Ltd,98631369,27.30,T&S UK - Public Transport
BEIS,UKRI - AHRC,15/11/2019,T&S UK - Public Transport,SMT,Corporate Travel Management (North) Ltd,98631369,0.25,T&S UK - Public Transport
BEIS,UKRI - AHRC,15/11/2019,T&S UK - Public Transport,SMT,Corporate Travel Management (North) Ltd,98631369,65.20,T&S UK - Public Transport
BEIS,UKRI - AHRC,15/11/2019,T&S UK - Public Transport,SMT,Corporate Travel Management (North) Ltd,98631369,0.50,T&S UK - Public Transport
BEIS,UKRI - AHRC,15/11/2019,T&S UK - Public Transport,SMT,Corporate Travel Management (North) Ltd,98631369,27.30,T&S UK - Public Transport
BEIS,UKRI - AHRC,15/11/2019,T&S UK - Public Transport,SMT,Corporate Travel Management (North) Ltd,98631369,103.00,T&S UK - Public Transport
BEIS,UKRI - AHRC,15/11/2019,T&S UK - Public Transport,SMT,Corporate Travel Management (North) Ltd,98631369,0.25,T&S UK - Public Transport
BEIS,UKRI - AHRC,15/11/2019,T&S UK - Public Transport,SMT,Corporate Travel Management (North) Ltd,98631369,109.20,T&S UK - Public Transport
BEIS,UKRI - AHRC,15/11/2019,T&S UK - Public Transport,SMT,Corporate Travel Management (North) Ltd,98631369,0.25,T&S UK - Public Transport
BEIS,UKRI - AHRC,15/11/2019,T&S UK - Public Transport,SMT,Corporate Travel Management (North) Ltd,98631369,29.00,T&S UK - Public Transport
BEIS,UKRI - AHRC,15/11/2019,T&S UK - Public Transport,SMT,Corporate Travel Management (North) Ltd,98631369,0.25,T&S UK - Public Transport
BEIS,UKRI - AHRC,15/11/2019,T&S UK - Public Transport,SMT,Corporate Travel Management (North) Ltd,98631369,51.70,T&S UK - Public Transport
BEIS,UKRI - AHRC,15/11/2019,T&S UK - Public Transport,SMT,Corporate Travel Management (North) Ltd,98631369,0.25,T&S UK - Public Transport
BEIS,UKRI - AHRC,15/11/2019,T&S UK - Public Transport,SMT,Corporate Travel Management (North) Ltd,98631369,109.00,T&S UK - Public Transport
BEIS,UKRI - AHRC,15/11/2019,T&S UK - Public Transport,SMT,Corporate Travel Management (North) Ltd,98631369,0.25,T&S UK - Public Transport
BEIS,UKRI - AHRC,15/11/2019,T&S UK - Public Transport,SMT,Corporate Travel Management (North) Ltd,98631369,63.50,T&S UK - Public Transport
BEIS,UKRI - AHRC,15/11/2019,T&S UK - Public Transport,SMT,Corporate Travel Management (North) Ltd,98631369,0.25,T&S UK - Public Transport
BEIS,UKRI - AHRC,15/11/2019,T&S UK - Public Transport,SMT,Corporate Travel Management (North) Ltd,98631369,32.60,T&S UK - Public Transport
BEIS,UKRI - AHRC,15/11/2019,T&S UK - Public Transport,SMT,Corporate Travel Management (North) Ltd,98631369,0.25,T&S UK - Public Transport
BEIS,UKRI - AHRC,15/11/2019,T&S UK - Public Transport,SMT,Corporate Travel Management (North) Ltd,98631369,69.00,T&S UK - Public Transport
BEIS,UKRI - AHRC,15/11/2019,T&S UK - Public Transport,SMT,Corporate Travel Management (North) Ltd,98631369,0.25,T&S UK - Public Transport
BEIS,UKRI - AHRC,15/11/2019,T&S UK - Public Transport,SMT,Corporate Travel Management (North) Ltd,98631369,159.10,T&S UK - Public Transport
BEIS,UKRI - AHRC,15/11/2019,T&S UK - Public Transport,SMT,Corporate Travel Management (North) Ltd,98631369,0.25,T&S UK - Public Transport
BEIS,UKRI - AHRC,15/11/2019,T&S UK - Public Transport,SMT,Corporate Travel Management (North) Ltd,98631369,69.00,T&S UK - Public Transport
BEIS,UKRI - AHRC,15/11/2019,T&S UK - Public Transport,SMT,Corporate Travel Management (North) Ltd,98631369,0.25,T&S UK - Public Transport
BEIS,UKRI - AHRC,15/11/2019,T&S UK - Public Transport,SMT,Corporate Travel Management (North) Ltd,98631369,39.40,T&S UK - Public Transport
BEIS,UKRI - AHRC,15/11/2019,T&S UK - Public Transport,SMT,Corporate Travel Management (North) Ltd,98631369,326.83,T&S UK - Public Transport
BEIS,UKRI - AHRC,15/11/2019,T&S UK - Public Transport,SMT,Corporate Travel Management (North) Ltd,98631369,0.25,T&S UK - Public Transport
BEIS,UKRI - AHRC,15/11/2019,T&S UK - Public Transport,SMT,Corporate Travel Management (North) Ltd,98631369,39.70,T&S UK - Public Transport
BEIS,UKRI - AHRC,15/11/2019,T&S UK - Public Transport,SMT,Corporate Travel Management (North) Ltd,98631369,0.75,T&S UK - Public Transport
BEIS,UKRI - AHRC,15/11/2019,T&S UK - Public Transport,SMT,Corporate Travel Management (North) Ltd,98631369,32.60,T&S UK - Public Transport
BEIS,UKRI - AHRC,15/11/2019,T&S UK - Public Transport,SMT,Corporate Travel Management (North) Ltd,98631369,44.10,T&S UK - Public Transport
BEIS,UKRI - AHRC,15/11/2019,T&S UK - Public Transport,SMT,Corporate Travel Management (North) Ltd,98631369,28.80,T&S UK - Public Transport
BEIS,UKRI - AHRC,15/11/2019,T&S UK - Public Transport,SMT,Corporate Travel Management (North) Ltd,98631369,0.25,T&S UK - Public Transport
BEIS,UKRI - AHRC,15/11/2019,T&S UK - Public Transport,SMT,Corporate Travel Management (North) Ltd,98631369,58.00,T&S UK - Public Transport
BEIS,UKRI - AHRC,15/11/2019,T&S UK - Public Transport,SMT,Corporate Travel Management (North) Ltd,98631369,0.25,T&S UK - Public Transport
BEIS,UKRI - AHRC,15/11/2019,T&S UK - Public Transport,SMT,Corporate Travel Management (North) Ltd,98631369,159.10,T&S UK - Public Transport
BEIS,UKRI - AHRC,15/11/2019,T&S UK - Public Transport,SMT,Corporate Travel Management (North) Ltd,98631369,0.50,T&S UK - Public Transport
BEIS,UKRI - AHRC,15/11/2019,T&S UK - Public Transport,SMT,Corporate Travel Management (North) Ltd,98631369,147.80,T&S UK - Public Transport
BEIS,UKRI - AHRC,15/11/2019,T&S UK - Public Transport,SMT,Corporate Travel Management (North) Ltd,98631369,0.25,T&S UK - Public Transport
BEIS,UKRI - AHRC,15/11/2019,T&S UK - Public Transport,SMT,Corporate Travel Management (North) Ltd,98631369,32.60,T&S UK - Public Transport
BEIS,UKRI - AHRC,15/11/2019,T&S UK - Public Transport,SMT,Corporate Travel Management (North) Ltd,98631369,0.25,T&S UK - Public Transport
BEIS,UKRI - AHRC,15/11/2019,T&S UK - Public Transport,SMT,Corporate Travel Management (North) Ltd,98631369,33.70,T&S UK - Public Transport
BEIS,UKRI - AHRC,15/11/2019,T&S UK - Public Transport,SMT,Corporate Travel Management (North) Ltd,98631369,0.25,T&S UK - Public Transport
BEIS,UKRI - AHRC,15/11/2019,T&S UK - Public Transport,SMT,Corporate Travel Management (North) Ltd,98631369,71.10,T&S UK - Public Transport
BEIS,UKRI - AHRC,15/11/2019,T&S UK - Public Transport,SMT,Corporate Travel Management (North) Ltd,98631369,0.25,T&S UK - Public Transport
BEIS,UKRI - AHRC,15/11/2019,T&S UK - Public Transport,SMT,Corporate Travel Management (North) Ltd,98631369,69.00,T&S UK - Public Transport
BEIS,UKRI - AHRC,15/11/2019,T&S UK - Public Transport,SMT,Corporate Travel Management (North) Ltd,98631369,0.25,T&S UK - Public Transport
BEIS,UKRI - AHRC,15/11/2019,T&S UK - Public Transport,SMT,Corporate Travel Management (North) Ltd,98631369,97.70,T&S UK - Public Transport
BEIS,UKRI - AHRC,15/11/2019,T&S UK - Public Transport,SMT,Corporate Travel Management (North) Ltd,98631369,0.25,T&S UK - Public Transport
BEIS,UKRI - AHRC,15/11/2019,T&S UK - Public Transport,SMT,Corporate Travel Management (North) Ltd,98631369,41.30,T&S UK - Public Transport
BEIS,UKRI - AHRC,15/11/2019,T&S UK - Public Transport,SMT,Corporate Travel Management (North) Ltd,98631369,0.50,T&S UK - Public Transport
BEIS,UKRI - AHRC,15/11/2019,T&S UK - Public Transport,SMT,Corporate Travel Management (North) Ltd,98631369,89.00,T&S UK - Public Transport
BEIS,UKRI - AHRC,15/11/2019,T&S UK - Public Transport,SMT,Corporate Travel Management (North) Ltd,98631369,89.00,T&S UK - Public Transport
BEIS,UKRI - AHRC,15/11/2019,T&S UK - Public Transport,Secretariat,Corporate Travel Management (North) Ltd,98631369,0.25,T&S UK - Public Transport
BEIS,UKRI - AHRC,15/11/2019,T&S UK - Public Transport,Secretariat,Corporate Travel Management (North) Ltd,98631369,11.90,T&S UK - Public Transport
BEIS,UKRI - AHRC,15/11/2019,T&S UK - Public Transport,Secretariat,Corporate Travel Management (North) Ltd,98631369,0.25,T&S UK - Public Transport
BEIS,UKRI - AHRC,15/11/2019,T&S UK - Public Transport,Secretariat,Corporate Travel Management (North) Ltd,98631369,97.80,T&S UK - Public Transport
BEIS,UKRI - AHRC,15/11/2019,T&S UK - Public Transport,Skills Strategy,Corporate Travel Management (North) Ltd,98631369,0.25,T&S UK - Public Transport
BEIS,UKRI - AHRC,15/11/2019,T&S UK - Public Transport,Skills Strategy,Corporate Travel Management (North) Ltd,98631369,123.50,T&S UK - Public Transport
BEIS,UKRI - AHRC,15/11/2019,T&S UK - Public Transport,Skills Strategy,Corporate Travel Management (North) Ltd,98631369,0.50,T&S UK - Public Transport
BEIS,UKRI - AHRC,15/11/2019,T&S UK - Public Transport,Skills Strategy,Corporate Travel Management (North) Ltd,98631369,27.40,T&S UK - Public Transport
BEIS,UKRI - AHRC,15/11/2019,T&S UK - Public Transport,Skills Strategy,Corporate Travel Management (North) Ltd,98631369,26.00,T&S UK - Public Transport
BEIS,UKRI - AHRC,15/11/2019,T&S UK - Public Transport,Skills Strategy,Corporate Travel Management (North) Ltd,98631369,0.25,T&S UK - Public Transport
BEIS,UKRI - AHRC,15/11/2019,T&S UK - Public Transport,Skills Strategy,Corporate Travel Management (North) Ltd,98631369,69.90,T&S UK - Public Transport
BEIS,UKRI - AHRC,15/11/2019,T&S UK - Public Transport,Skills Strategy,Corporate Travel Management (North) Ltd,98631369,0.25,T&S UK - Public Transport
BEIS,UKRI - AHRC,15/11/2019,T&S UK - Public Transport,Skills Strategy,Corporate Travel Management (North) Ltd,98631369,95.50,T&S UK - Public Transport
BEIS,UKRI - AHRC,15/11/2019,T&S UK - Public Transport,Skills Strategy,Corporate Travel Management (North) Ltd,98631369,0.50,T&S UK - Public Transport
BEIS,UKRI - AHRC,15/11/2019,T&S UK - Public Transport,Skills Strategy,Corporate Travel Management (North) Ltd,98631369,92.30,T&S UK - Public Transport
BEIS,UKRI - AHRC,18/11/2019,Contract Staff,PSU JRS,Alexander Mann Solutions Ltd,98631960,3423.12,Contract Staff
BEIS,UKRI - AHRC,18/11/2019,Contract Staff,PSU Project Office,Alexander Mann Solutions Ltd,98631962,2795.58,Contract Staff
BEIS,UKRI - AHRC,19/11/2019,Provision for Early Retirement Liability,Corporate Services,RCPS Pension,98598869,872.03,Provision for Early Retirement Liability
BEIS,UKRI - AHRC,19/11/2019,Provision for Early Retirement Liability,Corporate Services,RCPS Pension,98616557,872.03,Provision for Early Retirement Liability
BEIS,UKRI - AHRC,19/11/2019,Advertising & Promotion,Public and Stakeholder Engagement,Sophie Toumazis T/A TPR Media Consultants,98633410,7200.00,Advertising & Promotion
BEIS,UKRI - AHRC,20/11/2019,Non-staff travel and subsistance,Fund for International Collaboration (FIC),Non Employee Expenses Supplier,98633716,215.55,Non-staff travel and subsistance
BEIS,UKRI - AHRC,20/11/2019,Non-staff travel and subsistance,Fund for International Collaboration (FIC),Non Employee Expenses Supplier,98633717,118.11,Non-staff travel and subsistance
BEIS,UKRI - AHRC,20/11/2019,Non-staff travel and subsistance,"History, Heritage, Languages and Literature",Non Employee Expenses Supplier,98633718,8.65,Non-staff travel and subsistance
BEIS,UKRI - AHRC,20/11/2019,Non-staff travel and subsistance,Fund for International Collaboration (FIC),Non Employee Expenses Supplier,98633719,173.75,Non-staff travel and subsistance
BEIS,UKRI - AHRC,20/11/2019,Non-staff travel and subsistance,Fund for International Collaboration (FIC),Non Employee Expenses Supplier,98633720,413.44,Non-staff travel and subsistance
BEIS,UKRI - AHRC,20/11/2019,Non-staff travel and subsistance,Fund for International Collaboration (FIC),Non Employee Expenses Supplier,98633721,144.97,Non-staff travel and subsistance
BEIS,UKRI - AHRC,20/11/2019,Non-staff travel and subsistance,Fund for International Collaboration (FIC),Non Employee Expenses Supplier,98633722,76.98,Non-staff travel and subsistance
BEIS,UKRI - AHRC,20/11/2019,Non-staff travel and subsistance,International,Non Employee Expenses Supplier,98633723,73.08,Non-staff travel and subsistance
BEIS,UKRI - AHRC,20/11/2019,Non-staff travel and subsistance,Fund for International Collaboration (FIC),Non Employee Expenses Supplier,98633724,31.00,Non-staff travel and subsistance
BEIS,UKRI - AHRC,20/11/2019,Non-staff travel and subsistance,Fund for International Collaboration (FIC),Non Employee Expenses Supplier,98633725,260.48,Non-staff travel and subsistance
BEIS,UKRI - AHRC,20/11/2019,Non-staff travel and subsistance,SMT,Non Employee Expenses Supplier,98633726,111.40,Non-staff travel and subsistance
BEIS,UKRI - AHRC,20/11/2019,Non-staff travel and subsistance,SMT,Non Employee Expenses Supplier,98633727,230.09,Non-staff travel and subsistance
BEIS,UKRI - AHRC,20/11/2019,Non-staff travel and subsistance,Fund for International Collaboration (FIC),Non Employee Expenses Supplier,98633728,276.88,Non-staff travel and subsistance
BEIS,UKRI - AHRC,20/11/2019,Non-staff travel and subsistance,Fund for International Collaboration (FIC),Non Employee Expenses Supplier,98633729,243.40,Non-staff travel and subsistance
BEIS,UKRI - AHRC,20/11/2019,Non-staff travel and subsistance,Fund for International Collaboration (FIC),Non Employee Expenses Supplier,98633730,202.10,Non-staff travel and subsistance
BEIS,UKRI - AHRC,20/11/2019,Non-staff travel and subsistance,Fund for International Collaboration (FIC),Non Employee Expenses Supplier,98633731,1305.95,Non-staff travel and subsistance
BEIS,UKRI - AHRC,20/11/2019,Non-staff travel and subsistance,Fund for International Collaboration (FIC),Non Employee Expenses Supplier,98633732,99.88,Non-staff travel and subsistance
BEIS,UKRI - AHRC,20/11/2019,Non-staff travel and subsistance,Fund for International Collaboration (FIC),Non Employee Expenses Supplier,98633733,170.71,Non-staff travel and subsistance
BEIS,UKRI - AHRC,20/11/2019,Non-staff travel and subsistance,Fund for International Collaboration (FIC),Non Employee Expenses Supplier,98633734,117.11,Non-staff travel and subsistance
BEIS,UKRI - AHRC,20/11/2019,Non-staff travel and subsistance,Fund for International Collaboration (FIC),Non Employee Expenses Supplier,98633735,1417.55,Non-staff travel and subsistance
BEIS,UKRI - AHRC,20/11/2019,Non-staff travel and subsistance,Fund for International Collaboration (FIC),Non Employee Expenses Supplier,98633736,189.84,Non-staff travel and subsistance
BEIS,UKRI - AHRC,20/11/2019,Non-staff travel and subsistance,Fund for International Collaboration (FIC),Non Employee Expenses Supplier,98633737,150.36,Non-staff travel and subsistance
BEIS,UKRI - AHRC,20/11/2019,Non-staff travel and subsistance,Fund for International Collaboration (FIC),Non Employee Expenses Supplier,98633738,287.86,Non-staff travel and subsistance
BEIS,UKRI - AHRC,20/11/2019,Non-staff travel and subsistance,Fund for International Collaboration (FIC),Non Employee Expenses Supplier,98633739,149.81,Non-staff travel and subsistance
BEIS,UKRI - AHRC,20/11/2019,Non-staff travel and subsistance,Fund for International Collaboration (FIC),Non Employee Expenses Supplier,98633740,21.05,Non-staff travel and subsistance
BEIS,UKRI - AHRC,20/11/2019,Non-staff travel and subsistance,Fund for International Collaboration (FIC),Non Employee Expenses Supplier,98633741,33.36,Non-staff travel and subsistance
BEIS,UKRI - AHRC,20/11/2019,Non-staff travel and subsistance,SMT,Non Employee Expenses Supplier,98633742,183.55,Non-staff travel and subsistance
BEIS,UKRI - AHRC,20/11/2019,Non-staff travel and subsistance,Fund for International Collaboration (FIC),Non Employee Expenses Supplier,98633743,323.08,Non-staff travel and subsistance
BEIS,UKRI - AHRC,20/11/2019,Non-staff travel and subsistance,Fund for International Collaboration (FIC),Non Employee Expenses Supplier,98633744,1943.03,Non-staff travel and subsistance
BEIS,UKRI - AHRC,20/11/2019,Non-staff travel and subsistance,Fund for International Collaboration (FIC),Non Employee Expenses Supplier,98633745,1207.46,Non-staff travel and subsistance
BEIS,UKRI - AHRC,20/11/2019,Non-staff travel and subsistance,Fund for International Collaboration (FIC),Non Employee Expenses Supplier,98633746,152.03,Non-staff travel and subsistance
BEIS,UKRI - AHRC,20/11/2019,Non-staff travel and subsistance,Fund for International Collaboration (FIC),Non Employee Expenses Supplier,98633747,312.66,Non-staff travel and subsistance
BEIS,UKRI - AHRC,20/11/2019,Non-staff travel and subsistance,Fund for International Collaboration (FIC),Non Employee Expenses Supplier,98633748,1804.52,Non-staff travel and subsistance
BEIS,UKRI - AHRC,20/11/2019,Non-staff travel and subsistance,Fund for International Collaboration (FIC),Non Employee Expenses Supplier,98633749,947.86,Non-staff travel and subsistance
BEIS,UKRI - AHRC,20/11/2019,Non-staff travel and subsistance,Fund for International Collaboration (FIC),Non Employee Expenses Supplier,98633750,1569.27,Non-staff travel and subsistance
BEIS,UKRI - AHRC,20/11/2019,Non-staff travel and subsistance,Fund for International Collaboration (FIC),Non Employee Expenses Supplier,98633751,666.75,Non-staff travel and subsistance
BEIS,UKRI - AHRC,20/11/2019,Non-staff travel and subsistance,Newton Programme,Non Employee Expenses Supplier,98633752,147.23,Non-staff travel and subsistance
BEIS,UKRI - AHRC,20/11/2019,Non-staff travel and subsistance,Fund for International Collaboration (FIC),Non Employee Expenses Supplier,98633753,863.18,Non-staff travel and subsistance
BEIS,UKRI - AHRC,20/11/2019,Non-staff travel and subsistance,Fund for International Collaboration (FIC),Non Employee Expenses Supplier,98633754,1627.67,Non-staff travel and subsistance
BEIS,UKRI - AHRC,20/11/2019,Non-staff travel and subsistance,Fund for International Collaboration (FIC),Non Employee Expenses Supplier,98633755,854.32,Non-staff travel and subsistance
BEIS,UKRI - AHRC,20/11/2019,Non-staff travel and subsistance,Fund for International Collaboration (FIC),Non Employee Expenses Supplier,98633756,662.58,Non-staff travel and subsistance
BEIS,UKRI - AHRC,20/11/2019,Non-staff travel and subsistance,Newton Programme,Non Employee Expenses Supplier,98633757,702.24,Non-staff travel and subsistance
BEIS,UKRI - AHRC,20/11/2019,Non-staff travel and subsistance,Fund for International Collaboration (FIC),Non Employee Expenses Supplier,98633758,1631.03,Non-staff travel and subsistance
BEIS,UKRI - AHRC,20/11/2019,Non-staff travel and subsistance,Fund for International Collaboration (FIC),Non Employee Expenses Supplier,98633759,1621.42,Non-staff travel and subsistance
BEIS,UKRI - AHRC,20/11/2019,Non-staff travel and subsistance,Fund for International Collaboration (FIC),Non Employee Expenses Supplier,98633760,783.21,Non-staff travel and subsistance
BEIS,UKRI - AHRC,20/11/2019,Non-staff travel and subsistance,Digital Arts and Humanities and Creative Industries,Non Employee Expenses Supplier,98633761,216.00,Non-staff travel and subsistance
BEIS,UKRI - AHRC,20/11/2019,Non-staff travel and subsistance,JPI Cultural Heritage Project,Non Employee Expenses Supplier,98633764,209.96,Non-staff travel and subsistance
BEIS,UKRI - AHRC,20/11/2019,T&S UK - Other Charges,Public and Stakeholder Engagement,Unspecified,98634966,3.49,T&S UK - Other Charges
BEIS,UKRI - AHRC,20/11/2019,T&S UK - Subsistence,Public and Stakeholder Engagement,Unspecified,98634966,25.00,T&S UK - Subsistence
BEIS,UKRI - AHRC,20/11/2019,T&S UK - Subsistence,Public and Stakeholder Engagement,Unspecified,98634966,17.45,T&S UK - Subsistence
BEIS,UKRI - AHRC,20/11/2019,T&S UK - Other Charges,Public and Stakeholder Engagement,Unspecified,98634967,56.42,T&S UK - Other Charges
BEIS,UKRI - AHRC,20/11/2019,T&S UK - Public Transport,Public and Stakeholder Engagement,Unspecified,98634967,26.60,T&S UK - Public Transport
BEIS,UKRI - AHRC,20/11/2019,T&S UK - Subsistence,Public and Stakeholder Engagement,Unspecified,98634967,3.09,T&S UK - Subsistence
BEIS,UKRI - AHRC,21/11/2019,T&S UK - Parking Tolls Congestion Charges,Public and Stakeholder Engagement,Unspecified,98636238,13.30,T&S UK - Parking Tolls Congestion Charges
BEIS,UKRI - AHRC,21/11/2019,T&S UK - Subsistence,Public and Stakeholder Engagement,Unspecified,98636238,11.50,T&S UK - Subsistence
BEIS,UKRI - AHRC,21/11/2019,T&S UK - Subsistence,Public and Stakeholder Engagement,Unspecified,98636238,15.22,T&S UK - Subsistence
BEIS,UKRI - AHRC,22/11/2019,Advertising & Promotion,Public and Stakeholder Engagement,Unspecified,98634800,480.00,Advertising & Promotion
BEIS,UKRI - AHRC,22/11/2019,Non-staff travel and subsistance,Fund for International Collaboration (FIC),Non Employee Expenses Supplier,98635627,286.30,Non-staff travel and subsistance
BEIS,UKRI - AHRC,22/11/2019,Non-staff travel and subsistance,Fund for International Collaboration (FIC),Non Employee Expenses Supplier,98635628,186.61,Non-staff travel and subsistance
BEIS,UKRI - AHRC,22/11/2019,Non-staff travel and subsistance,Fund for International Collaboration (FIC),Non Employee Expenses Supplier,98635629,114.32,Non-staff travel and subsistance
BEIS,UKRI - AHRC,22/11/2019,Non-staff travel and subsistance,Operations,Non Employee Expenses Supplier,98635630,73.40,Non-staff travel and subsistance
BEIS,UKRI - AHRC,22/11/2019,Hospitality,Skills Strategy,Benugo Ltd,98636527,90.60,Hospitality
BEIS,UKRI - AHRC,22/11/2019,T&S UK - Other Charges,SMT,Unspecified,98636694,84.78,T&S UK - Other Charges
BEIS,UKRI - AHRC,22/11/2019,Health & Safety (inc. Medicals & Opticians),International Partnership and Engagement,Unspecified,98636695,10.00,Health & Safety (inc. Medicals & Opticians)
BEIS,UKRI - AHRC,22/11/2019,T&S Overseas - Subsistence,Fund for International Collaboration,Unspecified,98636695,6.10,T&S Overseas - Subsistence
BEIS,UKRI - AHRC,22/11/2019,T&S Overseas - Subsistence,International Partnership and Engagement,Unspecified,98636695,25.00,T&S Overseas - Subsistence
BEIS,UKRI - AHRC,25/11/2019,Voluntary Deductions,Balance Sheet,Swindon Office Sports and Social Club,98623576,40.00,Voluntary Deductions
BEIS,UKRI - AHRC,25/11/2019,Health & Safety (inc. Medicals & Opticians),International Partnership and Engagement,Unspecified,98624961,11.50,Health & Safety (inc. Medicals & Opticians)
BEIS,UKRI - AHRC,25/11/2019,Staff Training,Corporate Services,StayAhead Training Ltd,98635421,3408.00,Staff Training
BEIS,UKRI - AHRC,25/11/2019,Non-staff travel and subsistance,Executive Office,Non Employee Expenses Supplier,98637185,89.60,Non-staff travel and subsistance
BEIS,UKRI - AHRC,25/11/2019,Non-staff travel and subsistance,Executive Office,Non Employee Expenses Supplier,98637186,67.00,Non-staff travel and subsistance
BEIS,UKRI - AHRC,25/11/2019,Non-staff travel and subsistance,International,Non Employee Expenses Supplier,98637187,398.50,Non-staff travel and subsistance
BEIS,UKRI - AHRC,25/11/2019,Non-staff travel and subsistance,International,Non Employee Expenses Supplier,98637188,161.05,Non-staff travel and subsistance
BEIS,UKRI - AHRC,25/11/2019,Non-staff travel and subsistance,International,Non Employee Expenses Supplier,98637189,218.18,Non-staff travel and subsistance
BEIS,UKRI - AHRC,25/11/2019,Non-staff travel and subsistance,International,Non Employee Expenses Supplier,98637190,217.09,Non-staff travel and subsistance
BEIS,UKRI - AHRC,25/11/2019,Non-staff travel and subsistance,Executive Office,Non Employee Expenses Supplier,98637191,95.45,Non-staff travel and subsistance
BEIS,UKRI - AHRC,25/11/2019,Non-staff travel and subsistance,Executive Office,Non Employee Expenses Supplier,98637192,83.07,Non-staff travel and subsistance
BEIS,UKRI - AHRC,25/11/2019,Non-staff travel and subsistance,"History, Heritage, Languages and Literature",Non Employee Expenses Supplier,98637193,323.54,Non-staff travel and subsistance
BEIS,UKRI - AHRC,25/11/2019,Non-staff travel and subsistance,"History, Heritage, Languages and Literature",Non Employee Expenses Supplier,98637194,363.77,Non-staff travel and subsistance
BEIS,UKRI - AHRC,25/11/2019,Non-staff travel and subsistance,Fund for International Collaboration (FIC),Non Employee Expenses Supplier,98637195,209.93,Non-staff travel and subsistance
BEIS,UKRI - AHRC,25/11/2019,Non-staff travel and subsistance,Newton Programme,Non Employee Expenses Supplier,98637196,61.50,Non-staff travel and subsistance
BEIS,UKRI - AHRC,25/11/2019,Non-staff travel and subsistance,Newton Programme,Non Employee Expenses Supplier,98637197,484.49,Non-staff travel and subsistance
BEIS,UKRI - AHRC,25/11/2019,Contract Staff,PSU Project Office,Alexander Mann Solutions Ltd,98637979,2795.58,Contract Staff
BEIS,UKRI - AHRC,25/11/2019,Non-staff travel and subsistance,Newton Programme,Non Employee Expenses Supplier,98638235,472.22,Non-staff travel and subsistance
BEIS,UKRI - AHRC,25/11/2019,Non-staff travel and subsistance,Newton Programme,Non Employee Expenses Supplier,98638236,70.77,Non-staff travel and subsistance
BEIS,UKRI - AHRC,25/11/2019,Non-staff travel and subsistance,Newton Programme,Non Employee Expenses Supplier,98638237,8.97,Non-staff travel and subsistance
BEIS,UKRI - AHRC,25/11/2019,Non-staff travel and subsistance,Newton Programme,Non Employee Expenses Supplier,98638238,28.64,Non-staff travel and subsistance
BEIS,UKRI - AHRC,25/11/2019,Non-staff travel and subsistance,Newton Programme,Non Employee Expenses Supplier,98638239,72.64,Non-staff travel and subsistance
BEIS,UKRI - AHRC,25/11/2019,Non-staff travel and subsistance,Newton Programme,Non Employee Expenses Supplier,98638240,324.93,Non-staff travel and subsistance
BEIS,UKRI - AHRC,25/11/2019,Non-staff travel and subsistance,Newton Programme,Non Employee Expenses Supplier,98638241,331.98,Non-staff travel and subsistance
BEIS,UKRI - AHRC,25/11/2019,Non-staff travel and subsistance,International,Non Employee Expenses Supplier,98638242,150.64,Non-staff travel and subsistance
BEIS,UKRI - AHRC,25/11/2019,Non-staff travel and subsistance,International,Non Employee Expenses Supplier,98638243,139.60,Non-staff travel and subsistance
BEIS,UKRI - AHRC,25/11/2019,Health & Safety (inc. Medicals & Opticians),International Partnership and Engagement,Unspecified,98638264,12.99,Health & Safety (inc. Medicals & Opticians)
BEIS,UKRI - AHRC,25/11/2019,Health & Safety (inc. Medicals & Opticians),Skills Strategy,Unspecified,98638265,12.99,Health & Safety (inc. Medicals & Opticians)
BEIS,UKRI - AHRC,25/11/2019,T&S UK - Public Transport,Skills Strategy,Unspecified,98638266,8.70,T&S UK - Public Transport
BEIS,UKRI - AHRC,25/11/2019,T&S UK - Public Transport,Skills Strategy,Unspecified,98638266,13.10,T&S UK - Public Transport
BEIS,UKRI - AHRC,25/11/2019,T&S UK - Subsistence,Skills Strategy,Unspecified,98638266,3.70,T&S UK - Subsistence
BEIS,UKRI - AHRC,25/11/2019,Health & Safety (inc. Medicals & Opticians),"History, Heritage, Languages and Literature",Unspecified,98638267,12.99,Health & Safety (inc. Medicals & Opticians)
BEIS,UKRI - AHRC,25/11/2019,T&S UK - Subsistence,"History, Heritage, Languages and Literature",Unspecified,98638267,13.69,T&S UK - Subsistence
BEIS,UKRI - AHRC,26/11/2019,T&S UK - Mileage,SMT,Unspecified,98638714,27.00,T&S UK - Mileage
BEIS,UKRI - AHRC,26/11/2019,T&S UK - Parking Tolls Congestion Charges,SMT,Unspecified,98638714,29.00,T&S UK - Parking Tolls Congestion Charges
BEIS,UKRI - AHRC,26/11/2019,T&S UK - Public Transport,SMT,Unspecified,98638714,17.70,T&S UK - Public Transport
BEIS,UKRI - AHRC,26/11/2019,T&S UK - Subsistence,SMT,Unspecified,98638714,11.40,T&S UK - Subsistence
BEIS,UKRI - AHRC,26/11/2019,T&S UK - Subsistence,SMT,Unspecified,98638714,3.95,T&S UK - Subsistence
BEIS,UKRI - AHRC,26/11/2019,T&S UK - Subsistence,SMT,Unspecified,98638714,8.20,T&S UK - Subsistence
BEIS,UKRI - AHRC,26/11/2019,T&S UK - Subsistence,SMT,Unspecified,98638714,5.00,T&S UK - Subsistence
BEIS,UKRI - AHRC,26/11/2019,T&S UK - Mileage,Health and Environmental Humanities,Unspecified,98638715,63.00,T&S UK - Mileage
BEIS,UKRI - AHRC,26/11/2019,T&S UK - Other Charges,Health and Environmental Humanities,Unspecified,98638715,6.30,T&S UK - Other Charges
BEIS,UKRI - AHRC,26/11/2019,T&S UK - Parking Tolls Congestion Charges,Health and Environmental Humanities,Unspecified,98638715,6.50,T&S UK - Parking Tolls Congestion Charges
BEIS,UKRI - AHRC,26/11/2019,T&S UK - Vehicle Hire,Operations,Unspecified,98638716,13.40,T&S UK - Vehicle Hire
BEIS,UKRI - AHRC,27/11/2019,Contract Staff,PSU JRS,Alexander Mann Solutions Ltd,98637123,3423.12,Contract Staff
BEIS,UKRI - AHRC,27/11/2019,Non-staff travel and subsistance,JPI Cultural Heritage Project,Non Employee Expenses Supplier,98638110,308.41,Non-staff travel and subsistance
BEIS,UKRI - AHRC,27/11/2019,Corporate Events,SMT,University of Leeds,98639226,367.20,Corporate Events
BEIS,UKRI - AHRC,27/11/2019,T&S Overseas - Public Transport,International,Unspecified,98639369,19.16,T&S Overseas - Public Transport
BEIS,UKRI - AHRC,27/11/2019,T&S Overseas - Public Transport,International,Unspecified,98639369,7.24,T&S Overseas - Public Transport
BEIS,UKRI - AHRC,27/11/2019,T&S Overseas - Subsistence,International,Unspecified,98639369,10.00,T&S Overseas - Subsistence
BEIS,UKRI - AHRC,27/11/2019,T&S Overseas - Subsistence,International,Unspecified,98639369,25.52,T&S Overseas - Subsistence
BEIS,UKRI - AHRC,27/11/2019,T&S Overseas - Subsistence,International,Unspecified,98639369,7.40,T&S Overseas - Subsistence
BEIS,UKRI - AHRC,27/11/2019,T&S UK - Accommodation,SMT,Unspecified,98639370,175.50,T&S UK - Accommodation
BEIS,UKRI - AHRC,27/11/2019,T&S UK - Public Transport,SMT,Unspecified,98639370,20.69,T&S UK - Public Transport
BEIS,UKRI - AHRC,27/11/2019,T&S UK - Subsistence,SMT,Unspecified,98639370,2.15,T&S UK - Subsistence
BEIS,UKRI - AHRC,27/11/2019,T&S UK - Subsistence,SMT,Unspecified,98639370,3.59,T&S UK - Subsistence
BEIS,UKRI - AHRC,27/11/2019,T&S UK - Subsistence,SMT,Unspecified,98639370,22.15,T&S UK - Subsistence
BEIS,UKRI - AHRC,27/11/2019,T&S UK - Subsistence,SMT,Unspecified,98639370,5.00,T&S UK - Subsistence
BEIS,UKRI - AHRC,27/11/2019,T&S Overseas - Other Charges,Digital Arts and Humanities and Creative Industries,Unspecified,98639371,40.00,T&S Overseas - Other Charges
BEIS,UKRI - AHRC,27/11/2019,T&S Overseas - Subsistence,Digital Arts and Humanities and Creative Industries,Unspecified,98639371,30.00,T&S Overseas - Subsistence
BEIS,UKRI - AHRC,27/11/2019,T&S Overseas - Subsistence,Digital Arts and Humanities and Creative Industries,Unspecified,98639371,9.24,T&S Overseas - Subsistence
BEIS,UKRI - AHRC,27/11/2019,T&S Overseas - Subsistence,Digital Arts and Humanities and Creative Industries,Unspecified,98639371,15.05,T&S Overseas - Subsistence
BEIS,UKRI - AHRC,27/11/2019,T&S Overseas - Subsistence,Digital Arts and Humanities and Creative Industries,Unspecified,98639371,22.08,T&S Overseas - Subsistence
BEIS,UKRI - AHRC,27/11/2019,T&S UK - Other Charges,Digital Arts and Humanities and Creative Industries,Unspecified,98639371,10.87,T&S UK - Other Charges
BEIS,UKRI - AHRC,28/11/2019,Corporate Events,SMT,Westminster Forum Projects Ltd,98636898,276.00,Corporate Events
BEIS,UKRI - AHRC,28/11/2019,Legal & Professional Services,SMT,Four Communications Group Ltd,98636902,5040.00,Legal & Professional Services
BEIS,UKRI - AHRC,28/11/2019,Non-staff travel and subsistance,Operations,Non Employee Expenses Supplier,98639693,59.40,Non-staff travel and subsistance
BEIS,UKRI - AHRC,28/11/2019,Non-staff travel and subsistance,Operations,Non Employee Expenses Supplier,98639694,53.20,Non-staff travel and subsistance
BEIS,UKRI - AHRC,28/11/2019,Non-staff travel and subsistance,Operations,Non Employee Expenses Supplier,98639695,54.00,Non-staff travel and subsistance
BEIS,UKRI - AHRC,28/11/2019,Non-staff travel and subsistance,Operations,Non Employee Expenses Supplier,98639696,47.70,Non-staff travel and subsistance
BEIS,UKRI - AHRC,28/11/2019,Non-staff travel and subsistance,Fund for International Collaboration (FIC),Non Employee Expenses Supplier,98639697,114.48,Non-staff travel and subsistance
BEIS,UKRI - AHRC,28/11/2019,Consultancy Services,HR,Everwell Occupational Health Ltd,98640072,504.00,Consultancy Services
BEIS,UKRI - AHRC,28/11/2019,Consultancy Services,HR,Everwell Occupational Health Ltd,98640072,-14.00,Consultancy Services
BEIS,UKRI - AHRC,28/11/2019,Consultancy Services,HR,Everwell Occupational Health Ltd,98640072,-70.00,Consultancy Services
BEIS,UKRI - AHRC,28/11/2019,T&S UK - Accommodation,SMT,Unspecified,98640261,82.94,T&S UK - Accommodation
BEIS,UKRI - AHRC,28/11/2019,T&S UK - Public Transport,SMT,Unspecified,98640261,136.15,T&S UK - Public Transport
BEIS,UKRI - AHRC,28/11/2019,T&S UK - Subsistence,SMT,Unspecified,98640261,5.95,T&S UK - Subsistence
BEIS,UKRI - AHRC,28/11/2019,T&S UK - Subsistence,SMT,Unspecified,98640261,29.85,T&S UK - Subsistence
BEIS,UKRI - AHRC,28/11/2019,T&S UK - Subsistence,SMT,Unspecified,98640261,10.13,T&S UK - Subsistence
BEIS,UKRI - AHRC,28/11/2019,T&S UK - Subsistence,SMT,Unspecified,98640261,15.00,T&S UK - Subsistence
BEIS,UKRI - AHRC,28/11/2019,T&S UK - Mileage,Digital Arts and Humanities and Creative Industries,Unspecified,98640262,60.26,T&S UK - Mileage
BEIS,UKRI - AHRC,28/11/2019,T&S UK - Parking Tolls Congestion Charges,Digital Arts and Humanities and Creative Industries,Unspecified,98640262,71.60,T&S UK - Parking Tolls Congestion Charges
BEIS,UKRI - AHRC,28/11/2019,T&S UK - Public Transport,Digital Arts and Humanities and Creative Industries,Unspecified,98640262,7.50,T&S UK - Public Transport
BEIS,UKRI - AHRC,28/11/2019,T&S UK - Subsistence,Digital Arts and Humanities and Creative Industries,Unspecified,98640262,5.60,T&S UK - Subsistence
BEIS,UKRI - AHRC,28/11/2019,T&S UK - Subsistence,Digital Arts and Humanities and Creative Industries,Unspecified,98640262,38.25,T&S UK - Subsistence
BEIS,UKRI - AHRC,28/11/2019,T&S UK - Subsistence,Digital Arts and Humanities and Creative Industries,Unspecified,98640262,8.52,T&S UK - Subsistence
BEIS,UKRI - AHRC,28/11/2019,T&S UK - Subsistence,Digital Arts and Humanities and Creative Industries,Unspecified,98640262,15.00,T&S UK - Subsistence
BEIS,UKRI - AHRC,28/11/2019,T&S UK - Subsistence,Digital Arts and Humanities and Creative Industries,Unspecified,98640262,10.45,T&S UK - Subsistence
BEIS,UKRI - AHRC,28/11/2019,T&S UK - Public Transport,Industrial Strategy Challenge Fund (ISCF) - Creative Clusters,Unspecified,98640263,2.50,T&S UK - Public Transport
BEIS,UKRI - AHRC,28/11/2019,T&S UK - Public Transport,Industrial Strategy Challenge Fund (ISCF) - Creative Clusters,Unspecified,98640263,178.00,T&S UK - Public Transport
BEIS,UKRI - AHRC,28/11/2019,T&S UK - Public Transport,Industrial Strategy Challenge Fund (ISCF) - Creative Clusters,Unspecified,98640263,13.40,T&S UK - Public Transport
BEIS,UKRI - AHRC,28/11/2019,T&S UK - Subsistence,Industrial Strategy Challenge Fund (ISCF) - Creative Clusters,Unspecified,98640263,63.20,T&S UK - Subsistence
BEIS,UKRI - AHRC,28/11/2019,T&S UK - Subsistence,Industrial Strategy Challenge Fund (ISCF) - Creative Clusters,Unspecified,98640263,9.25,T&S UK - Subsistence
BEIS,UKRI - AHRC,28/11/2019,T&S UK - Subsistence,Industrial Strategy Challenge Fund (ISCF) - Creative Clusters,Unspecified,98640263,10.00,T&S UK - Subsistence
BEIS,UKRI - AHRC,28/11/2019,T&S UK - Public Transport,Digital Arts and Humanities and Creative Industries,Unspecified,98640264,9.50,T&S UK - Public Transport
BEIS,UKRI - AHRC,28/11/2019,T&S UK - Public Transport,Digital Arts and Humanities and Creative Industries,Unspecified,98640264,7.00,T&S UK - Public Transport
BEIS,UKRI - AHRC,28/11/2019,T&S UK - Subsistence,Digital Arts and Humanities and Creative Industries,Unspecified,98640264,15.00,T&S UK - Subsistence
BEIS,UKRI - AHRC,28/11/2019,T&S UK - Subsistence,Digital Arts and Humanities and Creative Industries,Unspecified,98640264,54.00,T&S UK - Subsistence
BEIS,UKRI - AHRC,28/11/2019,T&S UK - Subsistence,Digital Arts and Humanities and Creative Industries,Unspecified,98640264,12.19,T&S UK - Subsistence
BEIS,UKRI - AHRC,28/11/2019,T&S UK - Subsistence,Digital Arts and Humanities and Creative Industries,Unspecified,98640264,15.00,T&S UK - Subsistence
BEIS,UKRI - AHRC,28/11/2019,T&S UK - Other Charges,Digital Arts and Humanities and Creative Industries,Unspecified,98640265,52.98,T&S UK - Other Charges
BEIS,UKRI - AHRC,28/11/2019,T&S UK - Public Transport,Digital Arts and Humanities and Creative Industries,Unspecified,98640265,12.60,T&S UK - Public Transport
BEIS,UKRI - AHRC,28/11/2019,T&S UK - Subsistence,Digital Arts and Humanities and Creative Industries,Unspecified,98640265,33.80,T&S UK - Subsistence
BEIS,UKRI - AHRC,28/11/2019,T&S UK - Subsistence,Digital Arts and Humanities and Creative Industries,Unspecified,98640265,47.73,T&S UK - Subsistence
BEIS,UKRI - AHRC,28/11/2019,T&S UK - Subsistence,Digital Arts and Humanities and Creative Industries,Unspecified,98640265,7.50,T&S UK - Subsistence
BEIS,UKRI - AHRC,28/11/2019,T&S UK - Subsistence,Digital Arts and Humanities and Creative Industries,Unspecified,98640265,10.00,T&S UK - Subsistence
BEIS,UKRI - AHRC,28/11/2019,T&S UK - Public Transport,"History, Heritage, Languages and Literature",Unspecified,98640266,2.50,T&S UK - Public Transport
BEIS,UKRI - AHRC,28/11/2019,T&S UK - Public Transport,"History, Heritage, Languages and Literature",Unspecified,98640266,20.60,T&S UK - Public Transport
BEIS,UKRI - AHRC,28/11/2019,T&S UK - Subsistence,"History, Heritage, Languages and Literature",Unspecified,98640266,4.99,T&S UK - Subsistence
BEIS,UKRI - AHRC,28/11/2019,T&S UK - Subsistence,"History, Heritage, Languages and Literature",Unspecified,98640266,37.05,T&S UK - Subsistence
BEIS,UKRI - AHRC,28/11/2019,T&S UK - Public Transport,Skills Strategy,Unspecified,98640267,4.00,T&S UK - Public Transport
BEIS,UKRI - AHRC,28/11/2019,T&S UK - Subsistence,Skills Strategy,Unspecified,98640267,3.85,T&S UK - Subsistence
BEIS,UKRI - AHRC,29/11/2019,Catering Contracts,GCRF - Programme Delivery,Berkeley Catering Ltd,98641180,105.54,Catering Contracts
BEIS,UKRI - AHRC,29/11/2019,Non-staff travel and subsistance,Operations,Non Employee Expenses Supplier,98641214,232.00,Non-staff travel and subsistance
BEIS,UKRI - AHRC,29/11/2019,Non-staff travel and subsistance,Fund for International Collaboration (FIC),Non Employee Expenses Supplier,98641215,343.57,Non-staff travel and subsistance
BEIS,UKRI - BBSRC,01/11/2019,Meetings & Catering,European Initiatives,The Cowshed Bristol Ltd,98606566,1368.34,Meetings & Catering
BEIS,UKRI - BBSRC,01/11/2019,Research Institutes - Capital Grants: Minor Works,Babraham Institute,Babraham Institute,98615776,65893.00,Research Institutes - Capital Grants: Minor Works
BEIS,UKRI - BBSRC,01/11/2019,Research Institutes - Capital Grants: Minor Works,Pirbright,The Pirbright Institute,98617024,94610.40,Research Institutes - Capital Grants: Minor Works
BEIS,UKRI - BBSRC,01/11/2019,T&S UK - Other Charges,Innovation and Skills Group CDSU,Unspecified,98621956,100.00,T&S UK - Other Charges
BEIS,UKRI - BBSRC,01/11/2019,T&S UK - Subsistence,Innovation and Skills Group CDSU,Unspecified,98621956,24.25,T&S UK - Subsistence
BEIS,UKRI - BBSRC,01/11/2019,T&S UK - Subsistence,Innovation and Skills Group CDSU,Unspecified,98621957,25.00,T&S UK - Subsistence
BEIS,UKRI - BBSRC,01/11/2019,T&S UK - Public Transport,CE - CPS,Unspecified,98621958,9.00,T&S UK - Public Transport
BEIS,UKRI - BBSRC,01/11/2019,T&S UK - Subsistence,CE - CPS,Unspecified,98621958,23.73,T&S UK - Subsistence
BEIS,UKRI - BBSRC,01/11/2019,T&S UK - Subsistence,CE - CPS,Unspecified,98621958,15.00,T&S UK - Subsistence
BEIS,UKRI - BBSRC,01/11/2019,T&S UK - Public Transport,CE - IRU,Unspecified,98621960,2.40,T&S UK - Public Transport
BEIS,UKRI - BBSRC,01/11/2019,T&S UK - Subsistence,CE - IRU,Unspecified,98621960,8.50,T&S UK - Subsistence
BEIS,UKRI - BBSRC,01/11/2019,T&S UK - Subsistence,CE - IRU,Unspecified,98621960,4.50,T&S UK - Subsistence
BEIS,UKRI - BBSRC,01/11/2019,T&S UK - Subsistence,CE - IRU,Unspecified,98621960,1.55,T&S UK - Subsistence
BEIS,UKRI - BBSRC,04/11/2019,Health & Safety (inc. Medicals & Opticians),CE - CPS,Unspecified,98615576,11.50,Health & Safety (inc. Medicals & Opticians)
BEIS,UKRI - BBSRC,04/11/2019,Meetings & Catering,CE - Chief Executive,Harbour & Jones Ltd T/A Dartmouth House,98622286,6.00,Meetings & Catering
BEIS,UKRI - BBSRC,04/11/2019,Meetings & Catering,European Initiatives,Harbour & Jones Ltd T/A Dartmouth House,98622286,103.08,Meetings & Catering
BEIS,UKRI - BBSRC,04/11/2019,Health & Safety (inc. Medicals & Opticians),Grants Finance Management Team,Unspecified,98622299,11.50,Health & Safety (inc. Medicals & Opticians)
BEIS,UKRI - BBSRC,05/11/2019,Contract Staff,PDG - Director,RCPS Pension,98598873,3524.92,Contract Staff
BEIS,UKRI - BBSRC,05/11/2019,Conferences & Seminars,Science Group,Royal Microscopical Society,98613467,105.00,Conferences & Seminars
BEIS,UKRI - BBSRC,05/11/2019,Contract Staff,PDG - Director,RCPS Pension,98616564,2711.98,Contract Staff
BEIS,UKRI - BBSRC,05/11/2019,Research Grant Expenditure,FG - Accounts & Business Planning,UKRI - Medical Research Council,98618068,4201.29,Research Grant Expenditure
BEIS,UKRI - BBSRC,05/11/2019,Computing Consumables,JBOS - Maintenance,Premier Farnell UK Ltd T/A Farnell Onecall,98619965,97.94,Computing Consumables
BEIS,UKRI - BBSRC,05/11/2019,Health & Safety (inc. Medicals & Opticians),PDG - Director,Swindon Occupational Medical Services Ltd,98622720,525.00,Health & Safety (inc. Medicals & Opticians)
BEIS,UKRI - BBSRC,05/11/2019,T&S UK - Public Transport,Science Group,Unspecified,98622786,6.11,T&S UK - Public Transport
BEIS,UKRI - BBSRC,05/11/2019,T&S UK - Public Transport,Science Group,Unspecified,98622786,89.60,T&S UK - Public Transport
BEIS,UKRI - BBSRC,05/11/2019,T&S UK - Subsistence,Science Group,Unspecified,98622786,20.48,T&S UK - Subsistence
BEIS,UKRI - BBSRC,05/11/2019,T&S UK - Subsistence,Science Group,Unspecified,98622786,13.93,T&S UK - Subsistence
BEIS,UKRI - BBSRC,05/11/2019,GPC Clearing - BBSRC,Balance Sheet,Unspecified,98622787,-71.81,GPC Clearing - BBSRC
BEIS,UKRI - BBSRC,05/11/2019,Health & Safety (inc. Medicals & Opticians),FG - Estates,Unspecified,98622787,15.00,Health & Safety (inc. Medicals & Opticians)
BEIS,UKRI - BBSRC,05/11/2019,T&S UK - Subsistence,FG - Estates,Unspecified,98622787,23.17,T&S UK - Subsistence
BEIS,UKRI - BBSRC,05/11/2019,T&S UK - Subsistence,FG - Estates,Unspecified,98622787,10.00,T&S UK - Subsistence
BEIS,UKRI - BBSRC,05/11/2019,T&S UK - Subsistence,FG - Estates,Unspecified,98622787,3.00,T&S UK - Subsistence
BEIS,UKRI - BBSRC,05/11/2019,T&S UK - Vehicle Hire,FG - Estates,Unspecified,98622787,48.64,T&S UK - Vehicle Hire
BEIS,UKRI - BBSRC,06/11/2019,T&S UK - Subsistence,RISD - UKRO,Unspecified,98625003,12.25,T&S UK - Subsistence
BEIS,UKRI - BBSRC,06/11/2019,T&S UK - Subsistence,RISD - UKRO,Unspecified,98625003,8.50,T&S UK - Subsistence
BEIS,UKRI - BBSRC,06/11/2019,T&S UK - Subsistence,RISD - UKRO,Unspecified,98625003,5.15,T&S UK - Subsistence
BEIS,UKRI - BBSRC,06/11/2019,T&S UK - Subsistence,RISD - UKRO,Unspecified,98625003,5.00,T&S UK - Subsistence
BEIS,UKRI - BBSRC,06/11/2019,T&S UK - Mileage,Innovation and Skills Group,Unspecified,98625004,243.00,T&S UK - Mileage
BEIS,UKRI - BBSRC,06/11/2019,T&S UK - Other Charges,Innovation and Skills Group,Unspecified,98625004,7.20,T&S UK - Other Charges
BEIS,UKRI - BBSRC,06/11/2019,T&S UK - Subsistence,Innovation and Skills Group,Unspecified,98625004,7.50,T&S UK - Subsistence
BEIS,UKRI - BBSRC,06/11/2019,T&S UK - Subsistence,Innovation and Skills Group,Unspecified,98625004,20.84,T&S UK - Subsistence
BEIS,UKRI - BBSRC,06/11/2019,T&S UK - Subsistence,Innovation and Skills Group,Unspecified,98625004,15.00,T&S UK - Subsistence
BEIS,UKRI - BBSRC,06/11/2019,T&S UK - Subsistence,Innovation and Skills Group,Unspecified,98625004,5.00,T&S UK - Subsistence
BEIS,UKRI - BBSRC,06/11/2019,T&S UK - Subsistence,Innovation and Skills Group,Unspecified,98625004,7.20,T&S UK - Subsistence
BEIS,UKRI - BBSRC,07/11/2019,Conferences & Seminars,Science Group - Delivery Function,Calder Conference Ltd,98602225,3925.09,Conferences & Seminars
BEIS,UKRI - BBSRC,07/11/2019,Conferences & Seminars,Innovation and Skills Group CDSU,Calder Conference Ltd,98604867,46663.02,Conferences & Seminars
BEIS,UKRI - BBSRC,07/11/2019,Conferences & Seminars,Science Group,Calder Conference Ltd,98611640,435.00,Conferences & Seminars
BEIS,UKRI - BBSRC,07/11/2019,Research Institutes - Capital Grants: Major Works,Estates - Projects,EMBL (European Molecular Biology Laboratory),98618137,87318.25,Research Institutes - Capital Grants: Major Works
BEIS,UKRI - BBSRC,07/11/2019,Printing & Stationery,CIMG - Director,Banner Group Ltd,98621291,3.67,Printing & Stationery
BEIS,UKRI - BBSRC,07/11/2019,Printing & Stationery,CIMG - Director,Banner Group Ltd,98621291,1.34,Printing & Stationery
BEIS,UKRI - BBSRC,07/11/2019,Non-staff travel and subsistance,Science Group - Delivery Function,Non Employee Expenses Supplier,98625319,147.50,Non-staff travel and subsistance
BEIS,UKRI - BBSRC,07/11/2019,Non-staff travel and subsistance,Science Group - Delivery Function,Non Employee Expenses Supplier,98625320,36.50,Non-staff travel and subsistance
BEIS,UKRI - BBSRC,07/11/2019,Non-staff travel and subsistance,Science Group - Delivery Function,Non Employee Expenses Supplier,98625321,409.00,Non-staff travel and subsistance
BEIS,UKRI - BBSRC,07/11/2019,Non-staff travel and subsistance,Science Group - Delivery Function,Non Employee Expenses Supplier,98625323,82.30,Non-staff travel and subsistance
BEIS,UKRI - BBSRC,07/11/2019,Non-staff travel and subsistance,Innovation and Skills Group CDSU,Non Employee Expenses Supplier,98625324,76.50,Non-staff travel and subsistance
BEIS,UKRI - BBSRC,07/11/2019,Non-staff travel and subsistance,Innovation and Skills Group CDSU,Non Employee Expenses Supplier,98625325,32.40,Non-staff travel and subsistance
BEIS,UKRI - BBSRC,07/11/2019,Non-staff travel and subsistance,Innovation and Skills Group CDSU,Non Employee Expenses Supplier,98625326,92.95,Non-staff travel and subsistance
BEIS,UKRI - BBSRC,07/11/2019,Non-staff travel and subsistance,Science Group - Delivery Function,Non Employee Expenses Supplier,98625327,124.85,Non-staff travel and subsistance
BEIS,UKRI - BBSRC,07/11/2019,Non-staff travel and subsistance,Science Group - Delivery Function,Non Employee Expenses Supplier,98625328,199.00,Non-staff travel and subsistance
BEIS,UKRI - BBSRC,07/11/2019,Non-staff travel and subsistance,Science Group - Delivery Function,Non Employee Expenses Supplier,98625329,161.15,Non-staff travel and subsistance
BEIS,UKRI - BBSRC,07/11/2019,Non-staff travel and subsistance,Science Group - Delivery Function,Non Employee Expenses Supplier,98625330,221.40,Non-staff travel and subsistance
BEIS,UKRI - BBSRC,07/11/2019,Non-staff travel and subsistance,Science Group - Delivery Function,Non Employee Expenses Supplier,98625331,168.70,Non-staff travel and subsistance
BEIS,UKRI - BBSRC,07/11/2019,Non-staff travel and subsistance,Science Group - Delivery Function,Non Employee Expenses Supplier,98625332,802.21,Non-staff travel and subsistance
BEIS,UKRI - BBSRC,07/11/2019,Non-staff travel and subsistance,Science Group - Delivery Function,Non Employee Expenses Supplier,98625333,163.85,Non-staff travel and subsistance
BEIS,UKRI - BBSRC,07/11/2019,Non-staff travel and subsistance,Science Group - Delivery Function,Non Employee Expenses Supplier,98625334,79.10,Non-staff travel and subsistance
BEIS,UKRI - BBSRC,07/11/2019,Non-staff travel and subsistance,Science Group - Delivery Function,Non Employee Expenses Supplier,98625335,66.50,Non-staff travel and subsistance
BEIS,UKRI - BBSRC,07/11/2019,Non-staff travel and subsistance,Science Group - Delivery Function,Non Employee Expenses Supplier,98625336,108.28,Non-staff travel and subsistance
BEIS,UKRI - BBSRC,07/11/2019,Non-staff travel and subsistance,Science Group - Delivery Function,Non Employee Expenses Supplier,98625337,92.70,Non-staff travel and subsistance
BEIS,UKRI - BBSRC,07/11/2019,Non-staff travel and subsistance,Science Group - Delivery Function,Non Employee Expenses Supplier,98625338,178.50,Non-staff travel and subsistance
BEIS,UKRI - BBSRC,07/11/2019,Non-staff travel and subsistance,Science Group - Delivery Function,Non Employee Expenses Supplier,98625339,322.50,Non-staff travel and subsistance
BEIS,UKRI - BBSRC,07/11/2019,Non-staff travel and subsistance,Science Group - Delivery Function,Non Employee Expenses Supplier,98625340,153.00,Non-staff travel and subsistance
BEIS,UKRI - BBSRC,07/11/2019,Non-staff travel and subsistance,Science Group - Delivery Function,Non Employee Expenses Supplier,98625341,38.70,Non-staff travel and subsistance
BEIS,UKRI - BBSRC,07/11/2019,Non-staff travel and subsistance,Science Group - Delivery Function,Non Employee Expenses Supplier,98625342,151.82,Non-staff travel and subsistance
BEIS,UKRI - BBSRC,07/11/2019,Non-staff travel and subsistance,Science Group - Delivery Function,Non Employee Expenses Supplier,98625343,255.70,Non-staff travel and subsistance
BEIS,UKRI - BBSRC,07/11/2019,Non-staff travel and subsistance,Science Group - Delivery Function,Non Employee Expenses Supplier,98625345,86.40,Non-staff travel and subsistance
BEIS,UKRI - BBSRC,07/11/2019,Non-staff travel and subsistance,Science Group - Delivery Function,Non Employee Expenses Supplier,98625346,62.90,Non-staff travel and subsistance
BEIS,UKRI - BBSRC,07/11/2019,Non-staff travel and subsistance,Science Group - Delivery Function,Non Employee Expenses Supplier,98625347,91.00,Non-staff travel and subsistance
BEIS,UKRI - BBSRC,07/11/2019,Non-staff travel and subsistance,Science Group - Delivery Function,Non Employee Expenses Supplier,98625348,115.04,Non-staff travel and subsistance
BEIS,UKRI - BBSRC,07/11/2019,Non-staff travel and subsistance,Science Group - Delivery Function,Non Employee Expenses Supplier,98625349,85.50,Non-staff travel and subsistance
BEIS,UKRI - BBSRC,07/11/2019,Non-staff travel and subsistance,Science Group - Delivery Function,Non Employee Expenses Supplier,98625350,152.92,Non-staff travel and subsistance
BEIS,UKRI - BBSRC,07/11/2019,Non-staff travel and subsistance,Science Group - Delivery Function,Non Employee Expenses Supplier,98625351,469.00,Non-staff travel and subsistance
BEIS,UKRI - BBSRC,07/11/2019,Non-staff travel and subsistance,Science Group - Delivery Function,Non Employee Expenses Supplier,98625352,34.50,Non-staff travel and subsistance
BEIS,UKRI - BBSRC,07/11/2019,Non-staff travel and subsistance,Science Group - Delivery Function,Non Employee Expenses Supplier,98625353,82.30,Non-staff travel and subsistance
BEIS,UKRI - BBSRC,07/11/2019,T&S UK - Subsistence,CE - Chief Executive,Unspecified,98625378,25.00,T&S UK - Subsistence
BEIS,UKRI - BBSRC,07/11/2019,GPC Clearing - BBSRC,Balance Sheet,Unspecified,98625379,-14.40,GPC Clearing - BBSRC
BEIS,UKRI - BBSRC,07/11/2019,T&S UK - Parking Tolls Congestion Charges,CE - Chief Executive,Unspecified,98625379,14.40,T&S UK - Parking Tolls Congestion Charges
BEIS,UKRI - BBSRC,07/11/2019,T&S UK - Public Transport,CE - Chief Executive,Unspecified,98625379,10.60,T&S UK - Public Transport
BEIS,UKRI - BBSRC,07/11/2019,T&S UK - Subsistence,CE - Chief Executive,Unspecified,98625379,29.85,T&S UK - Subsistence
BEIS,UKRI - BBSRC,07/11/2019,T&S UK - Subsistence,CE - IRU,Unspecified,98625380,4.95,T&S UK - Subsistence
BEIS,UKRI - BBSRC,08/11/2019,Legal & Professional Services,JBOS - Administration,Womble Bond Dickinson LLP,98617334,640.93,Legal & Professional Services
BEIS,UKRI - BBSRC,08/11/2019,Printing & Stationery,CIMG - Director,Banner Group Ltd,98625572,3.26,Printing & Stationery
BEIS,UKRI - BBSRC,08/11/2019,Non-staff travel and subsistance,Science Group - Delivery Function,Corporate Travel Management (North) Ltd,98625770,2.50,Non-staff travel and subsistance
BEIS,UKRI - BBSRC,08/11/2019,Non-staff travel and subsistance,Science Group - Delivery Function,Corporate Travel Management (North) Ltd,98625770,172.81,Non-staff travel and subsistance
BEIS,UKRI - BBSRC,08/11/2019,Non-staff travel and subsistance,Science Group - Delivery Function,Corporate Travel Management (North) Ltd,98625770,2.50,Non-staff travel and subsistance
BEIS,UKRI - BBSRC,08/11/2019,Non-staff travel and subsistance,Science Group - Delivery Function,Corporate Travel Management (North) Ltd,98625770,342.81,Non-staff travel and subsistance
BEIS,UKRI - BBSRC,08/11/2019,T&S Overseas - Flights,CE - CPS,Corporate Travel Management (North) Ltd,98625770,2.50,T&S Overseas - Flights
BEIS,UKRI - BBSRC,08/11/2019,T&S Overseas - Flights,CE - CPS,Corporate Travel Management (North) Ltd,98625770,306.34,T&S Overseas - Flights
BEIS,UKRI - BBSRC,08/11/2019,T&S Overseas - Flights,CE - Chief Executive,Corporate Travel Management (North) Ltd,98625770,9.50,T&S Overseas - Flights
BEIS,UKRI - BBSRC,08/11/2019,T&S Overseas - Flights,CE - Chief Executive,Corporate Travel Management (North) Ltd,98625770,1199.02,T&S Overseas - Flights
BEIS,UKRI - BBSRC,08/11/2019,T&S Overseas - Flights,CE - Chief Executive,Corporate Travel Management (North) Ltd,98625770,261.30,T&S Overseas - Flights
BEIS,UKRI - BBSRC,08/11/2019,T&S Overseas - Flights,CE - IRU,Corporate Travel Management (North) Ltd,98625770,2.50,T&S Overseas - Flights
BEIS,UKRI - BBSRC,08/11/2019,T&S Overseas - Flights,CE - IRU,Corporate Travel Management (North) Ltd,98625770,393.94,T&S Overseas - Flights
BEIS,UKRI - BBSRC,08/11/2019,T&S Overseas - Flights,CE - IRU,Corporate Travel Management (North) Ltd,98625770,2.50,T&S Overseas - Flights
BEIS,UKRI - BBSRC,08/11/2019,T&S Overseas - Flights,CE - IRU,Corporate Travel Management (North) Ltd,98625770,199.64,T&S Overseas - Flights
BEIS,UKRI - BBSRC,08/11/2019,T&S Overseas - Flights,CE - IRU,Corporate Travel Management (North) Ltd,98625770,2.50,T&S Overseas - Flights
BEIS,UKRI - BBSRC,08/11/2019,T&S Overseas - Flights,CE - IRU,Corporate Travel Management (North) Ltd,98625770,141.98,T&S Overseas - Flights
BEIS,UKRI - BBSRC,08/11/2019,T&S Overseas - Flights,CE - IRU,Corporate Travel Management (North) Ltd,98625770,2.50,T&S Overseas - Flights
BEIS,UKRI - BBSRC,08/11/2019,T&S Overseas - Flights,CE - IRU,Corporate Travel Management (North) Ltd,98625770,118.00,T&S Overseas - Flights
BEIS,UKRI - BBSRC,08/11/2019,T&S Overseas - Flights,CE - IRU,Corporate Travel Management (North) Ltd,98625770,2.50,T&S Overseas - Flights
BEIS,UKRI - BBSRC,08/11/2019,T&S Overseas - Flights,CE - IRU,Corporate Travel Management (North) Ltd,98625770,118.00,T&S Overseas - Flights
BEIS,UKRI - BBSRC,08/11/2019,T&S Overseas - Flights,European Initiatives,Corporate Travel Management (North) Ltd,98625770,2.50,T&S Overseas - Flights
BEIS,UKRI - BBSRC,08/11/2019,T&S Overseas - Flights,European Initiatives,Corporate Travel Management (North) Ltd,98625770,473.14,T&S Overseas - Flights
BEIS,UKRI - BBSRC,08/11/2019,T&S Overseas - Flights,RISD - UKRO,Corporate Travel Management (North) Ltd,98625770,2.50,T&S Overseas - Flights
BEIS,UKRI - BBSRC,08/11/2019,T&S Overseas - Flights,RISD - UKRO,Corporate Travel Management (North) Ltd,98625770,103.70,T&S Overseas - Flights
BEIS,UKRI - BBSRC,08/11/2019,T&S Overseas - Flights,RISD - UKRO,Corporate Travel Management (North) Ltd,98625770,323.00,T&S Overseas - Flights
BEIS,UKRI - BBSRC,08/11/2019,T&S Overseas - Flights,RISD - UKRO,Corporate Travel Management (North) Ltd,98625770,2.50,T&S Overseas - Flights
BEIS,UKRI - BBSRC,08/11/2019,T&S Overseas - Flights,RISD - UKRO,Corporate Travel Management (North) Ltd,98625770,70.50,T&S Overseas - Flights
BEIS,UKRI - BBSRC,08/11/2019,T&S Overseas - Flights,Science Group,Corporate Travel Management (North) Ltd,98625770,2.50,T&S Overseas - Flights
BEIS,UKRI - BBSRC,08/11/2019,T&S Overseas - Flights,Science Group,Corporate Travel Management (North) Ltd,98625770,272.94,T&S Overseas - Flights
BEIS,UKRI - BBSRC,08/11/2019,T&S Overseas - Flights,Science Group,Corporate Travel Management (North) Ltd,98625770,2.50,T&S Overseas - Flights
BEIS,UKRI - BBSRC,08/11/2019,T&S Overseas - Flights,Science Group,Corporate Travel Management (North) Ltd,98625770,1473.22,T&S Overseas - Flights
BEIS,UKRI - BBSRC,08/11/2019,T&S Overseas - Public Transport,RISD - UKRO,Corporate Travel Management (North) Ltd,98625770,2.50,T&S Overseas - Public Transport
BEIS,UKRI - BBSRC,08/11/2019,T&S Overseas - Public Transport,RISD - UKRO,Corporate Travel Management (North) Ltd,98625770,81.87,T&S Overseas - Public Transport
BEIS,UKRI - BBSRC,08/11/2019,T&S Overseas - Public Transport,RISD - UKRO,Corporate Travel Management (North) Ltd,98625770,2.16,T&S Overseas - Public Transport
BEIS,UKRI - BBSRC,08/11/2019,T&S Overseas - Public Transport,RISD - UKRO,Corporate Travel Management (North) Ltd,98625770,11.00,T&S Overseas - Public Transport
BEIS,UKRI - BBSRC,08/11/2019,T&S Overseas - Public Transport,RISD - UKRO,Corporate Travel Management (North) Ltd,98625770,2.50,T&S Overseas - Public Transport
BEIS,UKRI - BBSRC,08/11/2019,T&S Overseas - Public Transport,RISD - UKRO,Corporate Travel Management (North) Ltd,98625770,82.32,T&S Overseas - Public Transport
BEIS,UKRI - BBSRC,08/11/2019,T&S Overseas - Public Transport,RISD - UKRO,Corporate Travel Management (North) Ltd,98625770,2.50,T&S Overseas - Public Transport
BEIS,UKRI - BBSRC,08/11/2019,T&S Overseas - Public Transport,RISD - UKRO,Corporate Travel Management (North) Ltd,98625770,93.16,T&S Overseas - Public Transport
BEIS,UKRI - BBSRC,08/11/2019,T&S Overseas - Public Transport,RISD - UKRO,Corporate Travel Management (North) Ltd,98625770,2.50,T&S Overseas - Public Transport
BEIS,UKRI - BBSRC,08/11/2019,T&S Overseas - Public Transport,RISD - UKRO,Corporate Travel Management (North) Ltd,98625770,84.00,T&S Overseas - Public Transport
BEIS,UKRI - BBSRC,08/11/2019,T&S Overseas - Public Transport,RISD - UKRO,Corporate Travel Management (North) Ltd,98625770,2.50,T&S Overseas - Public Transport
BEIS,UKRI - BBSRC,08/11/2019,T&S Overseas - Public Transport,RISD - UKRO,Corporate Travel Management (North) Ltd,98625770,145.00,T&S Overseas - Public Transport
BEIS,UKRI - BBSRC,08/11/2019,T&S Overseas - Public Transport,RISD - UKRO,Corporate Travel Management (North) Ltd,98625770,4.50,T&S Overseas - Public Transport
BEIS,UKRI - BBSRC,08/11/2019,T&S Overseas - Public Transport,RISD - UKRO,Corporate Travel Management (North) Ltd,98625770,254.00,T&S Overseas - Public Transport
BEIS,UKRI - BBSRC,08/11/2019,T&S Overseas - Public Transport,RISD - UKRO,Corporate Travel Management (North) Ltd,98625770,2.50,T&S Overseas - Public Transport
BEIS,UKRI - BBSRC,08/11/2019,T&S Overseas - Public Transport,RISD - UKRO,Corporate Travel Management (North) Ltd,98625770,140.00,T&S Overseas - Public Transport
BEIS,UKRI - BBSRC,08/11/2019,T&S Overseas - Public Transport,RISD - UKRO,Corporate Travel Management (North) Ltd,98625770,2.50,T&S Overseas - Public Transport
BEIS,UKRI - BBSRC,08/11/2019,T&S Overseas - Public Transport,RISD - UKRO,Corporate Travel Management (North) Ltd,98625770,221.00,T&S Overseas - Public Transport
BEIS,UKRI - BBSRC,08/11/2019,T&S Overseas - Public Transport,RISD - UKRO,Corporate Travel Management (North) Ltd,98625770,2.50,T&S Overseas - Public Transport
BEIS,UKRI - BBSRC,08/11/2019,T&S Overseas - Public Transport,RISD - UKRO,Corporate Travel Management (North) Ltd,98625770,127.00,T&S Overseas - Public Transport
BEIS,UKRI - BBSRC,08/11/2019,T&S Overseas - Public Transport,RISD - UKRO,Corporate Travel Management (North) Ltd,98625770,2.50,T&S Overseas - Public Transport
BEIS,UKRI - BBSRC,08/11/2019,T&S Overseas - Public Transport,RISD - UKRO,Corporate Travel Management (North) Ltd,98625770,149.00,T&S Overseas - Public Transport
BEIS,UKRI - BBSRC,08/11/2019,T&S Overseas - Public Transport,RISD - UKRO,Corporate Travel Management (North) Ltd,98625770,2.50,T&S Overseas - Public Transport
BEIS,UKRI - BBSRC,08/11/2019,T&S Overseas - Public Transport,RISD - UKRO,Corporate Travel Management (North) Ltd,98625770,119.22,T&S Overseas - Public Transport
BEIS,UKRI - BBSRC,08/11/2019,T&S Overseas - Public Transport,RISD - UKRO,Corporate Travel Management (North) Ltd,98625770,2.50,T&S Overseas - Public Transport
BEIS,UKRI - BBSRC,08/11/2019,T&S Overseas - Public Transport,RISD - UKRO,Corporate Travel Management (North) Ltd,98625770,137.82,T&S Overseas - Public Transport
BEIS,UKRI - BBSRC,08/11/2019,T&S UK - Accommodation,CE - CPS,Corporate Travel Management (North) Ltd,98625770,0.80,T&S UK - Accommodation
BEIS,UKRI - BBSRC,08/11/2019,T&S UK - Accommodation,CE - CPS,Corporate Travel Management (North) Ltd,98625770,0.80,T&S UK - Accommodation
BEIS,UKRI - BBSRC,08/11/2019,T&S UK - Accommodation,CE - CPS,Corporate Travel Management (North) Ltd,98625770,116.10,T&S UK - Accommodation
BEIS,UKRI - BBSRC,08/11/2019,T&S UK - Accommodation,CE - CPS,Corporate Travel Management (North) Ltd,98625770,0.80,T&S UK - Accommodation
BEIS,UKRI - BBSRC,08/11/2019,T&S UK - Accommodation,CE - CPS,Corporate Travel Management (North) Ltd,98625770,113.25,T&S UK - Accommodation
BEIS,UKRI - BBSRC,08/11/2019,T&S UK - Accommodation,CE - CPS,Corporate Travel Management (North) Ltd,98625770,0.16,T&S UK - Accommodation
BEIS,UKRI - BBSRC,08/11/2019,T&S UK - Accommodation,CE - CPS,Corporate Travel Management (North) Ltd,98625770,0.32,T&S UK - Accommodation
BEIS,UKRI - BBSRC,08/11/2019,T&S UK - Accommodation,CE - Chief Executive,Corporate Travel Management (North) Ltd,98625770,0.80,T&S UK - Accommodation
BEIS,UKRI - BBSRC,08/11/2019,T&S UK - Accommodation,CE - Chief Executive,Corporate Travel Management (North) Ltd,98625770,194.40,T&S UK - Accommodation
BEIS,UKRI - BBSRC,08/11/2019,T&S UK - Accommodation,CE - Chief Executive,Corporate Travel Management (North) Ltd,98625770,0.80,T&S UK - Accommodation
BEIS,UKRI - BBSRC,08/11/2019,T&S UK - Accommodation,CE - Chief Executive,Corporate Travel Management (North) Ltd,98625770,185.10,T&S UK - Accommodation
BEIS,UKRI - BBSRC,08/11/2019,T&S UK - Accommodation,CE - Chief Executive,Corporate Travel Management (North) Ltd,98625770,0.80,T&S UK - Accommodation
BEIS,UKRI - BBSRC,08/11/2019,T&S UK - Accommodation,CE - Chief Executive,Corporate Travel Management (North) Ltd,98625770,215.00,T&S UK - Accommodation
BEIS,UKRI - BBSRC,08/11/2019,T&S UK - Accommodation,CE - Chief Executive,Corporate Travel Management (North) Ltd,98625770,0.80,T&S UK - Accommodation
BEIS,UKRI - BBSRC,08/11/2019,T&S UK - Accommodation,CE - Chief Executive,Corporate Travel Management (North) Ltd,98625770,179.70,T&S UK - Accommodation
BEIS,UKRI - BBSRC,08/11/2019,T&S UK - Accommodation,CE - Chief Executive,Corporate Travel Management (North) Ltd,98625770,0.64,T&S UK - Accommodation
BEIS,UKRI - BBSRC,08/11/2019,T&S UK - Accommodation,CE - IRU,Corporate Travel Management (North) Ltd,98625770,0.80,T&S UK - Accommodation
BEIS,UKRI - BBSRC,08/11/2019,T&S UK - Accommodation,CE - IRU,Corporate Travel Management (North) Ltd,98625770,128.00,T&S UK - Accommodation
BEIS,UKRI - BBSRC,08/11/2019,T&S UK - Accommodation,CE - IRU,Corporate Travel Management (North) Ltd,98625770,0.16,T&S UK - Accommodation
BEIS,UKRI - BBSRC,08/11/2019,T&S UK - Accommodation,CIMG - Director,Corporate Travel Management (North) Ltd,98625770,2.00,T&S UK - Accommodation
BEIS,UKRI - BBSRC,08/11/2019,T&S UK - Accommodation,CIMG - Director,Corporate Travel Management (North) Ltd,98625770,57.50,T&S UK - Accommodation
BEIS,UKRI - BBSRC,08/11/2019,T&S UK - Accommodation,CIMG - Director,Corporate Travel Management (North) Ltd,98625770,2.00,T&S UK - Accommodation
BEIS,UKRI - BBSRC,08/11/2019,T&S UK - Accommodation,CIMG - Director,Corporate Travel Management (North) Ltd,98625770,70.00,T&S UK - Accommodation
BEIS,UKRI - BBSRC,08/11/2019,T&S UK - Accommodation,CIMG - Director,Corporate Travel Management (North) Ltd,98625770,0.80,T&S UK - Accommodation
BEIS,UKRI - BBSRC,08/11/2019,T&S UK - Accommodation,CIMG - Programme Office,Corporate Travel Management (North) Ltd,98625770,0.80,T&S UK - Accommodation
BEIS,UKRI - BBSRC,08/11/2019,T&S UK - Accommodation,CIMG - Programme Office,Corporate Travel Management (North) Ltd,98625770,70.00,T&S UK - Accommodation
BEIS,UKRI - BBSRC,08/11/2019,T&S UK - Accommodation,CIMG - Programme Office,Corporate Travel Management (North) Ltd,98625770,0.16,T&S UK - Accommodation
BEIS,UKRI - BBSRC,08/11/2019,T&S UK - Accommodation,FG - Director,Corporate Travel Management (North) Ltd,98625770,0.80,T&S UK - Accommodation
BEIS,UKRI - BBSRC,08/11/2019,T&S UK - Accommodation,FG - Director,Corporate Travel Management (North) Ltd,98625770,160.00,T&S UK - Accommodation
BEIS,UKRI - BBSRC,08/11/2019,T&S UK - Accommodation,FG - Director,Corporate Travel Management (North) Ltd,98625770,0.80,T&S UK - Accommodation
BEIS,UKRI - BBSRC,08/11/2019,T&S UK - Accommodation,FG - Director,Corporate Travel Management (North) Ltd,98625770,76.00,T&S UK - Accommodation
BEIS,UKRI - BBSRC,08/11/2019,T&S UK - Accommodation,FG - Director,Corporate Travel Management (North) Ltd,98625770,0.32,T&S UK - Accommodation
BEIS,UKRI - BBSRC,08/11/2019,T&S UK - Accommodation,FG - Estates,Corporate Travel Management (North) Ltd,98625770,0.80,T&S UK - Accommodation
BEIS,UKRI - BBSRC,08/11/2019,T&S UK - Accommodation,FG - Estates,Corporate Travel Management (North) Ltd,98625770,176.00,T&S UK - Accommodation
BEIS,UKRI - BBSRC,08/11/2019,T&S UK - Accommodation,FG - Estates,Corporate Travel Management (North) Ltd,98625770,0.80,T&S UK - Accommodation
BEIS,UKRI - BBSRC,08/11/2019,T&S UK - Accommodation,FG - Estates,Corporate Travel Management (North) Ltd,98625770,70.00,T&S UK - Accommodation
BEIS,UKRI - BBSRC,08/11/2019,T&S UK - Accommodation,FG - Estates,Corporate Travel Management (North) Ltd,98625770,2.00,T&S UK - Accommodation
BEIS,UKRI - BBSRC,08/11/2019,T&S UK - Accommodation,FG - Estates,Corporate Travel Management (North) Ltd,98625770,75.00,T&S UK - Accommodation
BEIS,UKRI - BBSRC,08/11/2019,T&S UK - Accommodation,FG - Estates,Corporate Travel Management (North) Ltd,98625770,2.00,T&S UK - Accommodation
BEIS,UKRI - BBSRC,08/11/2019,T&S UK - Accommodation,FG - Estates,Corporate Travel Management (North) Ltd,98625770,75.00,T&S UK - Accommodation
BEIS,UKRI - BBSRC,08/11/2019,T&S UK - Accommodation,FG - Estates,Corporate Travel Management (North) Ltd,98625770,0.80,T&S UK - Accommodation
BEIS,UKRI - BBSRC,08/11/2019,T&S UK - Accommodation,FG - Estates,Corporate Travel Management (North) Ltd,98625770,109.80,T&S UK - Accommodation
BEIS,UKRI - BBSRC,08/11/2019,T&S UK - Accommodation,FG - Estates,Corporate Travel Management (North) Ltd,98625770,0.80,T&S UK - Accommodation
BEIS,UKRI - BBSRC,08/11/2019,T&S UK - Accommodation,FG - Estates,Corporate Travel Management (North) Ltd,98625770,72.00,T&S UK - Accommodation
BEIS,UKRI - BBSRC,08/11/2019,T&S UK - Accommodation,FG - Estates,Corporate Travel Management (North) Ltd,98625770,0.80,T&S UK - Accommodation
BEIS,UKRI - BBSRC,08/11/2019,T&S UK - Accommodation,FG - Estates,Corporate Travel Management (North) Ltd,98625770,76.80,T&S UK - Accommodation
BEIS,UKRI - BBSRC,08/11/2019,T&S UK - Accommodation,FG - Estates,Corporate Travel Management (North) Ltd,98625770,0.80,T&S UK - Accommodation
BEIS,UKRI - BBSRC,08/11/2019,T&S UK - Accommodation,FG - Estates,Corporate Travel Management (North) Ltd,98625770,72.00,T&S UK - Accommodation
BEIS,UKRI - BBSRC,08/11/2019,T&S UK - Accommodation,FG - Estates,Corporate Travel Management (North) Ltd,98625770,0.80,T&S UK - Accommodation
BEIS,UKRI - BBSRC,08/11/2019,T&S UK - Accommodation,FG - Estates,Corporate Travel Management (North) Ltd,98625770,150.00,T&S UK - Accommodation
BEIS,UKRI - BBSRC,08/11/2019,T&S UK - Accommodation,FG - Estates,Corporate Travel Management (North) Ltd,98625770,0.80,T&S UK - Accommodation
BEIS,UKRI - BBSRC,08/11/2019,T&S UK - Accommodation,FG - Estates,Corporate Travel Management (North) Ltd,98625770,76.00,T&S UK - Accommodation
BEIS,UKRI - BBSRC,08/11/2019,T&S UK - Accommodation,FG - Estates,Corporate Travel Management (North) Ltd,98625770,0.80,T&S UK - Accommodation
BEIS,UKRI - BBSRC,08/11/2019,T&S UK - Accommodation,FG - Estates,Corporate Travel Management (North) Ltd,98625770,76.00,T&S UK - Accommodation
BEIS,UKRI - BBSRC,08/11/2019,T&S UK - Accommodation,FG - Estates,Corporate Travel Management (North) Ltd,98625770,0.80,T&S UK - Accommodation
BEIS,UKRI - BBSRC,08/11/2019,T&S UK - Accommodation,FG - Estates,Corporate Travel Management (North) Ltd,98625770,0.16,T&S UK - Accommodation
BEIS,UKRI - BBSRC,08/11/2019,T&S UK - Accommodation,FG - Estates,Corporate Travel Management (North) Ltd,98625770,1.28,T&S UK - Accommodation
BEIS,UKRI - BBSRC,08/11/2019,T&S UK - Accommodation,FG - RCUK Assurance,Corporate Travel Management (North) Ltd,98625770,0.50,T&S UK - Accommodation
BEIS,UKRI - BBSRC,08/11/2019,T&S UK - Accommodation,FG - RCUK Assurance,Corporate Travel Management (North) Ltd,98625770,112.34,T&S UK - Accommodation
BEIS,UKRI - BBSRC,08/11/2019,T&S UK - Accommodation,FG - RCUK Assurance,Corporate Travel Management (North) Ltd,98625770,0.50,T&S UK - Accommodation
BEIS,UKRI - BBSRC,08/11/2019,T&S UK - Accommodation,FG - RCUK Assurance,Corporate Travel Management (North) Ltd,98625770,112.34,T&S UK - Accommodation
BEIS,UKRI - BBSRC,08/11/2019,T&S UK - Accommodation,FG - RCUK Assurance,Corporate Travel Management (North) Ltd,98625770,0.20,T&S UK - Accommodation
BEIS,UKRI - BBSRC,08/11/2019,T&S UK - Accommodation,Innovation and Skills Group,Corporate Travel Management (North) Ltd,98625770,0.80,T&S UK - Accommodation
BEIS,UKRI - BBSRC,08/11/2019,T&S UK - Accommodation,Innovation and Skills Group,Corporate Travel Management (North) Ltd,98625770,139.40,T&S UK - Accommodation
BEIS,UKRI - BBSRC,08/11/2019,T&S UK - Accommodation,Innovation and Skills Group,Corporate Travel Management (North) Ltd,98625770,0.80,T&S UK - Accommodation
BEIS,UKRI - BBSRC,08/11/2019,T&S UK - Accommodation,Innovation and Skills Group,Corporate Travel Management (North) Ltd,98625770,48.68,T&S UK - Accommodation
BEIS,UKRI - BBSRC,08/11/2019,T&S UK - Accommodation,Innovation and Skills Group,Corporate Travel Management (North) Ltd,98625770,0.80,T&S UK - Accommodation
BEIS,UKRI - BBSRC,08/11/2019,T&S UK - Accommodation,Innovation and Skills Group,Corporate Travel Management (North) Ltd,98625770,144.96,T&S UK - Accommodation
BEIS,UKRI - BBSRC,08/11/2019,T&S UK - Accommodation,Innovation and Skills Group,Corporate Travel Management (North) Ltd,98625770,0.48,T&S UK - Accommodation
BEIS,UKRI - BBSRC,08/11/2019,T&S UK - Accommodation,RISD - UKRO,Corporate Travel Management (North) Ltd,98625770,0.80,T&S UK - Accommodation
BEIS,UKRI - BBSRC,08/11/2019,T&S UK - Accommodation,RISD - UKRO,Corporate Travel Management (North) Ltd,98625770,83.00,T&S UK - Accommodation
BEIS,UKRI - BBSRC,08/11/2019,T&S UK - Accommodation,RISD - UKRO,Corporate Travel Management (North) Ltd,98625770,0.80,T&S UK - Accommodation
BEIS,UKRI - BBSRC,08/11/2019,T&S UK - Accommodation,RISD - UKRO,Corporate Travel Management (North) Ltd,98625770,113.25,T&S UK - Accommodation
BEIS,UKRI - BBSRC,08/11/2019,T&S UK - Accommodation,RISD - UKRO,Corporate Travel Management (North) Ltd,98625770,0.80,T&S UK - Accommodation
BEIS,UKRI - BBSRC,08/11/2019,T&S UK - Accommodation,RISD - UKRO,Corporate Travel Management (North) Ltd,98625770,150.00,T&S UK - Accommodation
BEIS,UKRI - BBSRC,08/11/2019,T&S UK - Accommodation,RISD - UKRO,Corporate Travel Management (North) Ltd,98625770,0.80,T&S UK - Accommodation
BEIS,UKRI - BBSRC,08/11/2019,T&S UK - Accommodation,RISD - UKRO,Corporate Travel Management (North) Ltd,98625770,107.10,T&S UK - Accommodation
BEIS,UKRI - BBSRC,08/11/2019,T&S UK - Accommodation,RISD - UKRO,Corporate Travel Management (North) Ltd,98625770,0.32,T&S UK - Accommodation
BEIS,UKRI - BBSRC,08/11/2019,T&S UK - Accommodation,RISD - UKRO,Corporate Travel Management (North) Ltd,98625770,0.32,T&S UK - Accommodation
BEIS,UKRI - BBSRC,08/11/2019,T&S UK - Accommodation,Science Group,Corporate Travel Management (North) Ltd,98625770,0.80,T&S UK - Accommodation
BEIS,UKRI - BBSRC,08/11/2019,T&S UK - Accommodation,Science Group,Corporate Travel Management (North) Ltd,98625770,128.00,T&S UK - Accommodation
BEIS,UKRI - BBSRC,08/11/2019,T&S UK - Accommodation,Science Group,Corporate Travel Management (North) Ltd,98625770,0.80,T&S UK - Accommodation
BEIS,UKRI - BBSRC,08/11/2019,T&S UK - Accommodation,Science Group,Corporate Travel Management (North) Ltd,98625770,107.45,T&S UK - Accommodation
BEIS,UKRI - BBSRC,08/11/2019,T&S UK - Accommodation,Science Group,Corporate Travel Management (North) Ltd,98625770,0.80,T&S UK - Accommodation
BEIS,UKRI - BBSRC,08/11/2019,T&S UK - Accommodation,Science Group,Corporate Travel Management (North) Ltd,98625770,117.45,T&S UK - Accommodation
BEIS,UKRI - BBSRC,08/11/2019,T&S UK - Accommodation,Science Group,Corporate Travel Management (North) Ltd,98625770,0.80,T&S UK - Accommodation
BEIS,UKRI - BBSRC,08/11/2019,T&S UK - Accommodation,Science Group,Corporate Travel Management (North) Ltd,98625770,75.00,T&S UK - Accommodation
BEIS,UKRI - BBSRC,08/11/2019,T&S UK - Accommodation,Science Group,Corporate Travel Management (North) Ltd,98625770,0.80,T&S UK - Accommodation
BEIS,UKRI - BBSRC,08/11/2019,T&S UK - Accommodation,Science Group,Corporate Travel Management (North) Ltd,98625770,246.00,T&S UK - Accommodation
BEIS,UKRI - BBSRC,08/11/2019,T&S UK - Accommodation,Science Group,Corporate Travel Management (North) Ltd,98625770,1.60,T&S UK - Accommodation
BEIS,UKRI - BBSRC,08/11/2019,T&S UK - Accommodation,Science Group,Corporate Travel Management (North) Ltd,98625770,60.00,T&S UK - Accommodation
BEIS,UKRI - BBSRC,08/11/2019,T&S UK - Accommodation,Science Group,Corporate Travel Management (North) Ltd,98625770,0.80,T&S UK - Accommodation
BEIS,UKRI - BBSRC,08/11/2019,T&S UK - Accommodation,Science Group,Corporate Travel Management (North) Ltd,98625770,175.00,T&S UK - Accommodation
BEIS,UKRI - BBSRC,08/11/2019,T&S UK - Accommodation,Science Group,Corporate Travel Management (North) Ltd,98625770,1.28,T&S UK - Accommodation
BEIS,UKRI - BBSRC,08/11/2019,T&S UK - Accommodation,Science Group - Delivery Function,Corporate Travel Management (North) Ltd,98625770,0.80,T&S UK - Accommodation
BEIS,UKRI - BBSRC,08/11/2019,T&S UK - Accommodation,Science Group - Delivery Function,Corporate Travel Management (North) Ltd,98625770,113.25,T&S UK - Accommodation
BEIS,UKRI - BBSRC,08/11/2019,T&S UK - Accommodation,Science Group - Delivery Function,Corporate Travel Management (North) Ltd,98625770,0.16,T&S UK - Accommodation
BEIS,UKRI - BBSRC,08/11/2019,T&S UK - Flights,CIMG - Director,Corporate Travel Management (North) Ltd,98625770,2.50,T&S UK - Flights
BEIS,UKRI - BBSRC,08/11/2019,T&S UK - Flights,CIMG - Director,Corporate Travel Management (North) Ltd,98625770,47.99,T&S UK - Flights
BEIS,UKRI - BBSRC,08/11/2019,T&S UK - Flights,Innovation and Skills Group,Corporate Travel Management (North) Ltd,98625770,2.50,T&S UK - Flights
BEIS,UKRI - BBSRC,08/11/2019,T&S UK - Flights,Innovation and Skills Group,Corporate Travel Management (North) Ltd,98625770,377.06,T&S UK - Flights
BEIS,UKRI - BBSRC,08/11/2019,T&S UK - Flights,Innovation and Skills Group,Corporate Travel Management (North) Ltd,98625770,2.50,T&S UK - Flights
BEIS,UKRI - BBSRC,08/11/2019,T&S UK - Flights,Innovation and Skills Group,Corporate Travel Management (North) Ltd,98625770,280.04,T&S UK - Flights
BEIS,UKRI - BBSRC,08/11/2019,T&S UK - Other Charges,Science Group,Corporate Travel Management (North) Ltd,98625770,22.00,T&S UK - Other Charges
BEIS,UKRI - BBSRC,08/11/2019,T&S UK - Other Charges,Science Group,Corporate Travel Management (North) Ltd,98625770,11.96,T&S UK - Other Charges
BEIS,UKRI - BBSRC,08/11/2019,T&S UK - Other Charges,Science Group,Corporate Travel Management (North) Ltd,98625770,4.40,T&S UK - Other Charges
BEIS,UKRI - BBSRC,08/11/2019,T&S UK - Public Transport,CE - CPS,Corporate Travel Management (North) Ltd,98625770,0.25,T&S UK - Public Transport
BEIS,UKRI - BBSRC,08/11/2019,T&S UK - Public Transport,CE - CPS,Corporate Travel Management (North) Ltd,98625770,158.90,T&S UK - Public Transport
BEIS,UKRI - BBSRC,08/11/2019,T&S UK - Public Transport,CE - CPS,Corporate Travel Management (North) Ltd,98625770,5.00,T&S UK - Public Transport
BEIS,UKRI - BBSRC,08/11/2019,T&S UK - Public Transport,CE - CPS,Corporate Travel Management (North) Ltd,98625770,-15.60,T&S UK - Public Transport
BEIS,UKRI - BBSRC,08/11/2019,T&S UK - Public Transport,CE - CPS,Corporate Travel Management (North) Ltd,98625770,0.25,T&S UK - Public Transport
BEIS,UKRI - BBSRC,08/11/2019,T&S UK - Public Transport,CE - CPS,Corporate Travel Management (North) Ltd,98625770,56.70,T&S UK - Public Transport
BEIS,UKRI - BBSRC,08/11/2019,T&S UK - Public Transport,CE - CPS,Corporate Travel Management (North) Ltd,98625770,5.00,T&S UK - Public Transport
BEIS,UKRI - BBSRC,08/11/2019,T&S UK - Public Transport,CE - CPS,Corporate Travel Management (North) Ltd,98625770,-126.60,T&S UK - Public Transport
BEIS,UKRI - BBSRC,08/11/2019,T&S UK - Public Transport,CE - CPS,Corporate Travel Management (North) Ltd,98625770,0.25,T&S UK - Public Transport
BEIS,UKRI - BBSRC,08/11/2019,T&S UK - Public Transport,CE - CPS,Corporate Travel Management (North) Ltd,98625770,70.95,T&S UK - Public Transport
BEIS,UKRI - BBSRC,08/11/2019,T&S UK - Public Transport,CE - CPS,Corporate Travel Management (North) Ltd,98625770,0.25,T&S UK - Public Transport
BEIS,UKRI - BBSRC,08/11/2019,T&S UK - Public Transport,CE - CPS,Corporate Travel Management (North) Ltd,98625770,55.40,T&S UK - Public Transport
BEIS,UKRI - BBSRC,08/11/2019,T&S UK - Public Transport,CE - CPS,Corporate Travel Management (North) Ltd,98625770,0.25,T&S UK - Public Transport
BEIS,UKRI - BBSRC,08/11/2019,T&S UK - Public Transport,CE - CPS,Corporate Travel Management (North) Ltd,98625770,55.40,T&S UK - Public Transport
BEIS,UKRI - BBSRC,08/11/2019,T&S UK - Public Transport,CE - CPS,Corporate Travel Management (North) Ltd,98625770,0.25,T&S UK - Public Transport
BEIS,UKRI - BBSRC,08/11/2019,T&S UK - Public Transport,CE - CPS,Corporate Travel Management (North) Ltd,98625770,40.40,T&S UK - Public Transport
BEIS,UKRI - BBSRC,08/11/2019,T&S UK - Public Transport,CE - CPS,Corporate Travel Management (North) Ltd,98625770,0.25,T&S UK - Public Transport
BEIS,UKRI - BBSRC,08/11/2019,T&S UK - Public Transport,CE - CPS,Corporate Travel Management (North) Ltd,98625770,29.00,T&S UK - Public Transport
BEIS,UKRI - BBSRC,08/11/2019,T&S UK - Public Transport,CE - CPS,Corporate Travel Management (North) Ltd,98625770,0.50,T&S UK - Public Transport
BEIS,UKRI - BBSRC,08/11/2019,T&S UK - Public Transport,CE - CPS,Corporate Travel Management (North) Ltd,98625770,68.00,T&S UK - Public Transport
BEIS,UKRI - BBSRC,08/11/2019,T&S UK - Public Transport,CE - CPS,Corporate Travel Management (North) Ltd,98625770,23.00,T&S UK - Public Transport
BEIS,UKRI - BBSRC,08/11/2019,T&S UK - Public Transport,CE - CPS,Corporate Travel Management (North) Ltd,98625770,0.25,T&S UK - Public Transport
BEIS,UKRI - BBSRC,08/11/2019,T&S UK - Public Transport,CE - CPS,Corporate Travel Management (North) Ltd,98625770,91.80,T&S UK - Public Transport
BEIS,UKRI - BBSRC,08/11/2019,T&S UK - Public Transport,CE - CPS,Corporate Travel Management (North) Ltd,98625770,0.25,T&S UK - Public Transport
BEIS,UKRI - BBSRC,08/11/2019,T&S UK - Public Transport,CE - CPS,Corporate Travel Management (North) Ltd,98625770,41.00,T&S UK - Public Transport
BEIS,UKRI - BBSRC,08/11/2019,T&S UK - Public Transport,CE - CPS,Corporate Travel Management (North) Ltd,98625770,0.25,T&S UK - Public Transport
BEIS,UKRI - BBSRC,08/11/2019,T&S UK - Public Transport,CE - CPS,Corporate Travel Management (North) Ltd,98625770,29.50,T&S UK - Public Transport
BEIS,UKRI - BBSRC,08/11/2019,T&S UK - Public Transport,CE - CPS,Corporate Travel Management (North) Ltd,98625770,0.25,T&S UK - Public Transport
BEIS,UKRI - BBSRC,08/11/2019,T&S UK - Public Transport,CE - CPS,Corporate Travel Management (North) Ltd,98625770,89.95,T&S UK - Public Transport
BEIS,UKRI - BBSRC,08/11/2019,T&S UK - Public Transport,CE - CPS,Corporate Travel Management (North) Ltd,98625770,0.25,T&S UK - Public Transport
BEIS,UKRI - BBSRC,08/11/2019,T&S UK - Public Transport,CE - CPS,Corporate Travel Management (North) Ltd,98625770,167.40,T&S UK - Public Transport
BEIS,UKRI - BBSRC,08/11/2019,T&S UK - Public Transport,CE - CPS,Corporate Travel Management (North) Ltd,98625770,0.25,T&S UK - Public Transport
BEIS,UKRI - BBSRC,08/11/2019,T&S UK - Public Transport,CE - CPS,Corporate Travel Management (North) Ltd,98625770,47.30,T&S UK - Public Transport
BEIS,UKRI - BBSRC,08/11/2019,T&S UK - Public Transport,CE - CPS,Corporate Travel Management (North) Ltd,98625770,0.25,T&S UK - Public Transport
BEIS,UKRI - BBSRC,08/11/2019,T&S UK - Public Transport,CE - CPS,Corporate Travel Management (North) Ltd,98625770,35.40,T&S UK - Public Transport
BEIS,UKRI - BBSRC,08/11/2019,T&S UK - Public Transport,CE - CPS,Corporate Travel Management (North) Ltd,98625770,0.50,T&S UK - Public Transport
BEIS,UKRI - BBSRC,08/11/2019,T&S UK - Public Transport,CE - CPS,Corporate Travel Management (North) Ltd,98625770,72.60,T&S UK - Public Transport
BEIS,UKRI - BBSRC,08/11/2019,T&S UK - Public Transport,CE - CPS,Corporate Travel Management (North) Ltd,98625770,51.00,T&S UK - Public Transport
BEIS,UKRI - BBSRC,08/11/2019,T&S UK - Public Transport,CE - CPS,Corporate Travel Management (North) Ltd,98625770,0.25,T&S UK - Public Transport
BEIS,UKRI - BBSRC,08/11/2019,T&S UK - Public Transport,CE - CPS,Corporate Travel Management (North) Ltd,98625770,18.60,T&S UK - Public Transport
BEIS,UKRI - BBSRC,08/11/2019,T&S UK - Public Transport,CE - CPS,Corporate Travel Management (North) Ltd,98625770,0.25,T&S UK - Public Transport
BEIS,UKRI - BBSRC,08/11/2019,T&S UK - Public Transport,CE - CPS,Corporate Travel Management (North) Ltd,98625770,26.00,T&S UK - Public Transport
BEIS,UKRI - BBSRC,08/11/2019,T&S UK - Public Transport,CE - CPS,Corporate Travel Management (North) Ltd,98625770,0.25,T&S UK - Public Transport
BEIS,UKRI - BBSRC,08/11/2019,T&S UK - Public Transport,CE - CPS,Corporate Travel Management (North) Ltd,98625770,114.40,T&S UK - Public Transport
BEIS,UKRI - BBSRC,08/11/2019,T&S UK - Public Transport,CE - CPS,Corporate Travel Management (North) Ltd,98625770,0.25,T&S UK - Public Transport
BEIS,UKRI - BBSRC,08/11/2019,T&S UK - Public Transport,CE - CPS,Corporate Travel Management (North) Ltd,98625770,129.10,T&S UK - Public Transport
BEIS,UKRI - BBSRC,08/11/2019,T&S UK - Public Transport,CE - CPS,Corporate Travel Management (North) Ltd,98625770,0.25,T&S UK - Public Transport
BEIS,UKRI - BBSRC,08/11/2019,T&S UK - Public Transport,CE - CPS,Corporate Travel Management (North) Ltd,98625770,110.60,T&S UK - Public Transport
BEIS,UKRI - BBSRC,08/11/2019,T&S UK - Public Transport,CE - CPS,Corporate Travel Management (North) Ltd,98625770,0.25,T&S UK - Public Transport
BEIS,UKRI - BBSRC,08/11/2019,T&S UK - Public Transport,CE - CPS,Corporate Travel Management (North) Ltd,98625770,59.00,T&S UK - Public Transport
BEIS,UKRI - BBSRC,08/11/2019,T&S UK - Public Transport,CE - Chief Executive,Corporate Travel Management (North) Ltd,98625770,0.25,T&S UK - Public Transport
BEIS,UKRI - BBSRC,08/11/2019,T&S UK - Public Transport,CE - Chief Executive,Corporate Travel Management (North) Ltd,98625770,178.00,T&S UK - Public Transport
BEIS,UKRI - BBSRC,08/11/2019,T&S UK - Public Transport,CE - Chief Executive,Corporate Travel Management (North) Ltd,98625770,0.25,T&S UK - Public Transport
BEIS,UKRI - BBSRC,08/11/2019,T&S UK - Public Transport,CE - Chief Executive,Corporate Travel Management (North) Ltd,98625770,133.10,T&S UK - Public Transport
BEIS,UKRI - BBSRC,08/11/2019,T&S UK - Public Transport,CE - Chief Executive,Corporate Travel Management (North) Ltd,98625770,0.25,T&S UK - Public Transport
BEIS,UKRI - BBSRC,08/11/2019,T&S UK - Public Transport,CE - Chief Executive,Corporate Travel Management (North) Ltd,98625770,54.10,T&S UK - Public Transport
BEIS,UKRI - BBSRC,08/11/2019,T&S UK - Public Transport,CE - Chief Executive,Corporate Travel Management (North) Ltd,98625770,0.50,T&S UK - Public Transport
BEIS,UKRI - BBSRC,08/11/2019,T&S UK - Public Transport,CE - Chief Executive,Corporate Travel Management (North) Ltd,98625770,44.10,T&S UK - Public Transport
BEIS,UKRI - BBSRC,08/11/2019,T&S UK - Public Transport,CE - Chief Executive,Corporate Travel Management (North) Ltd,98625770,28.80,T&S UK - Public Transport
BEIS,UKRI - BBSRC,08/11/2019,T&S UK - Public Transport,CE - Chief Executive,Corporate Travel Management (North) Ltd,98625770,10.00,T&S UK - Public Transport
BEIS,UKRI - BBSRC,08/11/2019,T&S UK - Public Transport,CE - Chief Executive,Corporate Travel Management (North) Ltd,98625770,-111.60,T&S UK - Public Transport
BEIS,UKRI - BBSRC,08/11/2019,T&S UK - Public Transport,CE - Chief Executive,Corporate Travel Management (North) Ltd,98625770,0.25,T&S UK - Public Transport
BEIS,UKRI - BBSRC,08/11/2019,T&S UK - Public Transport,CE - Chief Executive,Corporate Travel Management (North) Ltd,98625770,178.00,T&S UK - Public Transport
BEIS,UKRI - BBSRC,08/11/2019,T&S UK - Public Transport,CE - Chief Executive,Corporate Travel Management (North) Ltd,98625770,0.25,T&S UK - Public Transport
BEIS,UKRI - BBSRC,08/11/2019,T&S UK - Public Transport,CE - Chief Executive,Corporate Travel Management (North) Ltd,98625770,133.10,T&S UK - Public Transport
BEIS,UKRI - BBSRC,08/11/2019,T&S UK - Public Transport,CE - Chief Executive,Corporate Travel Management (North) Ltd,98625770,0.25,T&S UK - Public Transport
BEIS,UKRI - BBSRC,08/11/2019,T&S UK - Public Transport,CE - Chief Executive,Corporate Travel Management (North) Ltd,98625770,89.00,T&S UK - Public Transport
BEIS,UKRI - BBSRC,08/11/2019,T&S UK - Public Transport,CE - Chief Executive,Corporate Travel Management (North) Ltd,98625770,0.50,T&S UK - Public Transport
BEIS,UKRI - BBSRC,08/11/2019,T&S UK - Public Transport,CE - Chief Executive,Corporate Travel Management (North) Ltd,98625770,69.00,T&S UK - Public Transport
BEIS,UKRI - BBSRC,08/11/2019,T&S UK - Public Transport,CE - Chief Executive,Corporate Travel Management (North) Ltd,98625770,28.80,T&S UK - Public Transport
BEIS,UKRI - BBSRC,08/11/2019,T&S UK - Public Transport,CE - Chief Executive,Corporate Travel Management (North) Ltd,98625770,0.75,T&S UK - Public Transport
BEIS,UKRI - BBSRC,08/11/2019,T&S UK - Public Transport,CE - Chief Executive,Corporate Travel Management (North) Ltd,98625770,47.00,T&S UK - Public Transport
BEIS,UKRI - BBSRC,08/11/2019,T&S UK - Public Transport,CE - Chief Executive,Corporate Travel Management (North) Ltd,98625770,74.00,T&S UK - Public Transport
BEIS,UKRI - BBSRC,08/11/2019,T&S UK - Public Transport,CE - Chief Executive,Corporate Travel Management (North) Ltd,98625770,85.05,T&S UK - Public Transport
BEIS,UKRI - BBSRC,08/11/2019,T&S UK - Public Transport,CE - Chief Executive,Corporate Travel Management (North) Ltd,98625770,0.25,T&S UK - Public Transport
BEIS,UKRI - BBSRC,08/11/2019,T&S UK - Public Transport,CE - Chief Executive,Corporate Travel Management (North) Ltd,98625770,178.00,T&S UK - Public Transport
BEIS,UKRI - BBSRC,08/11/2019,T&S UK - Public Transport,CE - Chief Executive,Corporate Travel Management (North) Ltd,98625770,0.25,T&S UK - Public Transport
BEIS,UKRI - BBSRC,08/11/2019,T&S UK - Public Transport,CE - Chief Executive,Corporate Travel Management (North) Ltd,98625770,144.00,T&S UK - Public Transport
BEIS,UKRI - BBSRC,08/11/2019,T&S UK - Public Transport,CE - Chief Executive,Corporate Travel Management (North) Ltd,98625770,0.25,T&S UK - Public Transport
BEIS,UKRI - BBSRC,08/11/2019,T&S UK - Public Transport,CE - Chief Executive,Corporate Travel Management (North) Ltd,98625770,178.00,T&S UK - Public Transport
BEIS,UKRI - BBSRC,08/11/2019,T&S UK - Public Transport,CE - Chief Executive,Corporate Travel Management (North) Ltd,98625770,0.25,T&S UK - Public Transport
BEIS,UKRI - BBSRC,08/11/2019,T&S UK - Public Transport,CE - Chief Executive,Corporate Travel Management (North) Ltd,98625770,144.00,T&S UK - Public Transport
BEIS,UKRI - BBSRC,08/11/2019,T&S UK - Public Transport,CE - IRU,Corporate Travel Management (North) Ltd,98625770,0.25,T&S UK - Public Transport
BEIS,UKRI - BBSRC,08/11/2019,T&S UK - Public Transport,CE - IRU,Corporate Travel Management (North) Ltd,98625770,86.40,T&S UK - Public Transport
BEIS,UKRI - BBSRC,08/11/2019,T&S UK - Public Transport,CE - IRU,Corporate Travel Management (North) Ltd,98625770,5.00,T&S UK - Public Transport
BEIS,UKRI - BBSRC,08/11/2019,T&S UK - Public Transport,CE - IRU,Corporate Travel Management (North) Ltd,98625770,-50.40,T&S UK - Public Transport
BEIS,UKRI - BBSRC,08/11/2019,T&S UK - Public Transport,CE - IRU,Corporate Travel Management (North) Ltd,98625770,0.25,T&S UK - Public Transport
BEIS,UKRI - BBSRC,08/11/2019,T&S UK - Public Transport,CE - IRU,Corporate Travel Management (North) Ltd,98625770,102.20,T&S UK - Public Transport
BEIS,UKRI - BBSRC,08/11/2019,T&S UK - Public Transport,CE - IRU,Corporate Travel Management (North) Ltd,98625770,0.25,T&S UK - Public Transport
BEIS,UKRI - BBSRC,08/11/2019,T&S UK - Public Transport,CE - IRU,Corporate Travel Management (North) Ltd,98625770,103.80,T&S UK - Public Transport
BEIS,UKRI - BBSRC,08/11/2019,T&S UK - Public Transport,CE - IRU,Corporate Travel Management (North) Ltd,98625770,0.25,T&S UK - Public Transport
BEIS,UKRI - BBSRC,08/11/2019,T&S UK - Public Transport,CE - IRU,Corporate Travel Management (North) Ltd,98625770,63.60,T&S UK - Public Transport
BEIS,UKRI - BBSRC,08/11/2019,T&S UK - Public Transport,CE - IRU,Corporate Travel Management (North) Ltd,98625770,0.25,T&S UK - Public Transport
BEIS,UKRI - BBSRC,08/11/2019,T&S UK - Public Transport,CE - IRU,Corporate Travel Management (North) Ltd,98625770,30.00,T&S UK - Public Transport
BEIS,UKRI - BBSRC,08/11/2019,T&S UK - Public Transport,CE - IRU,Corporate Travel Management (North) Ltd,98625770,0.25,T&S UK - Public Transport
BEIS,UKRI - BBSRC,08/11/2019,T&S UK - Public Transport,CE - IRU,Corporate Travel Management (North) Ltd,98625770,23.30,T&S UK - Public Transport
BEIS,UKRI - BBSRC,08/11/2019,T&S UK - Public Transport,CE - IRU,Corporate Travel Management (North) Ltd,98625770,0.25,T&S UK - Public Transport
BEIS,UKRI - BBSRC,08/11/2019,T&S UK - Public Transport,CE - IRU,Corporate Travel Management (North) Ltd,98625770,63.80,T&S UK - Public Transport
BEIS,UKRI - BBSRC,08/11/2019,T&S UK - Public Transport,CE - IRU,Corporate Travel Management (North) Ltd,98625770,0.25,T&S UK - Public Transport
BEIS,UKRI - BBSRC,08/11/2019,T&S UK - Public Transport,CE - IRU,Corporate Travel Management (North) Ltd,98625770,23.95,T&S UK - Public Transport
BEIS,UKRI - BBSRC,08/11/2019,T&S UK - Public Transport,CE - IRU,Corporate Travel Management (North) Ltd,98625770,5.00,T&S UK - Public Transport
BEIS,UKRI - BBSRC,08/11/2019,T&S UK - Public Transport,CE - IRU,Corporate Travel Management (North) Ltd,98625770,-26.80,T&S UK - Public Transport
BEIS,UKRI - BBSRC,08/11/2019,T&S UK - Public Transport,CE - IRU,Corporate Travel Management (North) Ltd,98625770,0.25,T&S UK - Public Transport
BEIS,UKRI - BBSRC,08/11/2019,T&S UK - Public Transport,CE - IRU,Corporate Travel Management (North) Ltd,98625770,144.70,T&S UK - Public Transport
BEIS,UKRI - BBSRC,08/11/2019,T&S UK - Public Transport,CE - IRU,Corporate Travel Management (North) Ltd,98625770,0.25,T&S UK - Public Transport
BEIS,UKRI - BBSRC,08/11/2019,T&S UK - Public Transport,CE - IRU,Corporate Travel Management (North) Ltd,98625770,142.80,T&S UK - Public Transport
BEIS,UKRI - BBSRC,08/11/2019,T&S UK - Public Transport,CIMG - Director,Corporate Travel Management (North) Ltd,98625770,0.25,T&S UK - Public Transport
BEIS,UKRI - BBSRC,08/11/2019,T&S UK - Public Transport,CIMG - Director,Corporate Travel Management (North) Ltd,98625770,83.00,T&S UK - Public Transport
BEIS,UKRI - BBSRC,08/11/2019,T&S UK - Public Transport,CIMG - Director,Corporate Travel Management (North) Ltd,98625770,0.25,T&S UK - Public Transport
BEIS,UKRI - BBSRC,08/11/2019,T&S UK - Public Transport,CIMG - Director,Corporate Travel Management (North) Ltd,98625770,54.10,T&S UK - Public Transport
BEIS,UKRI - BBSRC,08/11/2019,T&S UK - Public Transport,CIMG - Director,Corporate Travel Management (North) Ltd,98625770,0.25,T&S UK - Public Transport
BEIS,UKRI - BBSRC,08/11/2019,T&S UK - Public Transport,CIMG - Director,Corporate Travel Management (North) Ltd,98625770,69.90,T&S UK - Public Transport
BEIS,UKRI - BBSRC,08/11/2019,T&S UK - Public Transport,CIMG - Director,Corporate Travel Management (North) Ltd,98625770,0.25,T&S UK - Public Transport
BEIS,UKRI - BBSRC,08/11/2019,T&S UK - Public Transport,CIMG - Director,Corporate Travel Management (North) Ltd,98625770,31.80,T&S UK - Public Transport
BEIS,UKRI - BBSRC,08/11/2019,T&S UK - Public Transport,CIMG - Director,Corporate Travel Management (North) Ltd,98625770,0.25,T&S UK - Public Transport
BEIS,UKRI - BBSRC,08/11/2019,T&S UK - Public Transport,CIMG - Director,Corporate Travel Management (North) Ltd,98625770,51.50,T&S UK - Public Transport
BEIS,UKRI - BBSRC,08/11/2019,T&S UK - Public Transport,CIMG - Director,Corporate Travel Management (North) Ltd,98625770,0.25,T&S UK - Public Transport
BEIS,UKRI - BBSRC,08/11/2019,T&S UK - Public Transport,CIMG - Director,Corporate Travel Management (North) Ltd,98625770,69.90,T&S UK - Public Transport
BEIS,UKRI - BBSRC,08/11/2019,T&S UK - Public Transport,CIMG - Programme Office,Corporate Travel Management (North) Ltd,98625770,0.25,T&S UK - Public Transport
BEIS,UKRI - BBSRC,08/11/2019,T&S UK - Public Transport,CIMG - Programme Office,Corporate Travel Management (North) Ltd,98625770,144.70,T&S UK - Public Transport
BEIS,UKRI - BBSRC,08/11/2019,T&S UK - Public Transport,CIMG - Programme Office,Corporate Travel Management (North) Ltd,98625770,0.25,T&S UK - Public Transport
BEIS,UKRI - BBSRC,08/11/2019,T&S UK - Public Transport,CIMG - Programme Office,Corporate Travel Management (North) Ltd,98625770,144.70,T&S UK - Public Transport
BEIS,UKRI - BBSRC,08/11/2019,T&S UK - Public Transport,European Initiatives,Corporate Travel Management (North) Ltd,98625770,0.25,T&S UK - Public Transport
BEIS,UKRI - BBSRC,08/11/2019,T&S UK - Public Transport,European Initiatives,Corporate Travel Management (North) Ltd,98625770,53.80,T&S UK - Public Transport
BEIS,UKRI - BBSRC,08/11/2019,T&S UK - Public Transport,FG - Estates,Corporate Travel Management (North) Ltd,98625770,0.25,T&S UK - Public Transport
BEIS,UKRI - BBSRC,08/11/2019,T&S UK - Public Transport,FG - Estates,Corporate Travel Management (North) Ltd,98625770,88.00,T&S UK - Public Transport
BEIS,UKRI - BBSRC,08/11/2019,T&S UK - Public Transport,Innovation and Skills Group,Corporate Travel Management (North) Ltd,98625770,0.25,T&S UK - Public Transport
BEIS,UKRI - BBSRC,08/11/2019,T&S UK - Public Transport,Innovation and Skills Group,Corporate Travel Management (North) Ltd,98625770,114.40,T&S UK - Public Transport
BEIS,UKRI - BBSRC,08/11/2019,T&S UK - Public Transport,Innovation and Skills Group,Corporate Travel Management (North) Ltd,98625770,5.00,T&S UK - Public Transport
BEIS,UKRI - BBSRC,08/11/2019,T&S UK - Public Transport,Innovation and Skills Group,Corporate Travel Management (North) Ltd,98625770,-26.80,T&S UK - Public Transport
BEIS,UKRI - BBSRC,08/11/2019,T&S UK - Public Transport,Innovation and Skills Group,Corporate Travel Management (North) Ltd,98625770,0.25,T&S UK - Public Transport
BEIS,UKRI - BBSRC,08/11/2019,T&S UK - Public Transport,Innovation and Skills Group,Corporate Travel Management (North) Ltd,98625770,48.45,T&S UK - Public Transport
BEIS,UKRI - BBSRC,08/11/2019,T&S UK - Public Transport,Innovation and Skills Group,Corporate Travel Management (North) Ltd,98625770,0.25,T&S UK - Public Transport
BEIS,UKRI - BBSRC,08/11/2019,T&S UK - Public Transport,Innovation and Skills Group,Corporate Travel Management (North) Ltd,98625770,144.00,T&S UK - Public Transport
BEIS,UKRI - BBSRC,08/11/2019,T&S UK - Public Transport,Innovation and Skills Group,Corporate Travel Management (North) Ltd,98625770,0.25,T&S UK - Public Transport
BEIS,UKRI - BBSRC,08/11/2019,T&S UK - Public Transport,Innovation and Skills Group,Corporate Travel Management (North) Ltd,98625770,141.90,T&S UK - Public Transport
BEIS,UKRI - BBSRC,08/11/2019,T&S UK - Public Transport,Innovation and Skills Group,Corporate Travel Management (North) Ltd,98625770,0.75,T&S UK - Public Transport
BEIS,UKRI - BBSRC,08/11/2019,T&S UK - Public Transport,Innovation and Skills Group,Corporate Travel Management (North) Ltd,98625770,86.40,T&S UK - Public Transport
BEIS,UKRI - BBSRC,08/11/2019,T&S UK - Public Transport,Innovation and Skills Group,Corporate Travel Management (North) Ltd,98625770,0.25,T&S UK - Public Transport
BEIS,UKRI - BBSRC,08/11/2019,T&S UK - Public Transport,Innovation and Skills Group,Corporate Travel Management (North) Ltd,98625770,47.65,T&S UK - Public Transport
BEIS,UKRI - BBSRC,08/11/2019,T&S UK - Public Transport,Innovation and Skills Group,Corporate Travel Management (North) Ltd,98625770,0.25,T&S UK - Public Transport
BEIS,UKRI - BBSRC,08/11/2019,T&S UK - Public Transport,Innovation and Skills Group,Corporate Travel Management (North) Ltd,98625770,38.75,T&S UK - Public Transport
BEIS,UKRI - BBSRC,08/11/2019,T&S UK - Public Transport,Innovation and Skills Group,Corporate Travel Management (North) Ltd,98625770,0.25,T&S UK - Public Transport
BEIS,UKRI - BBSRC,08/11/2019,T&S UK - Public Transport,Innovation and Skills Group,Corporate Travel Management (North) Ltd,98625770,144.00,T&S UK - Public Transport
BEIS,UKRI - BBSRC,08/11/2019,T&S UK - Public Transport,Innovation and Skills Group,Corporate Travel Management (North) Ltd,98625770,0.25,T&S UK - Public Transport
BEIS,UKRI - BBSRC,08/11/2019,T&S UK - Public Transport,Innovation and Skills Group,Corporate Travel Management (North) Ltd,98625770,88.10,T&S UK - Public Transport
BEIS,UKRI - BBSRC,08/11/2019,T&S UK - Public Transport,Innovation and Skills Group,Corporate Travel Management (North) Ltd,98625770,0.25,T&S UK - Public Transport
BEIS,UKRI - BBSRC,08/11/2019,T&S UK - Public Transport,Innovation and Skills Group,Corporate Travel Management (North) Ltd,98625770,144.00,T&S UK - Public Transport
BEIS,UKRI - BBSRC,08/11/2019,T&S UK - Public Transport,Innovation and Skills Group,Corporate Travel Management (North) Ltd,98625770,5.00,T&S UK - Public Transport
BEIS,UKRI - BBSRC,08/11/2019,T&S UK - Public Transport,Innovation and Skills Group,Corporate Travel Management (North) Ltd,98625770,-67.00,T&S UK - Public Transport
BEIS,UKRI - BBSRC,08/11/2019,T&S UK - Public Transport,Innovation and Skills Group,Corporate Travel Management (North) Ltd,98625770,0.25,T&S UK - Public Transport
BEIS,UKRI - BBSRC,08/11/2019,T&S UK - Public Transport,Innovation and Skills Group,Corporate Travel Management (North) Ltd,98625770,71.40,T&S UK - Public Transport
BEIS,UKRI - BBSRC,08/11/2019,T&S UK - Public Transport,Innovation and Skills Group,Corporate Travel Management (North) Ltd,98625770,0.25,T&S UK - Public Transport
BEIS,UKRI - BBSRC,08/11/2019,T&S UK - Public Transport,Innovation and Skills Group,Corporate Travel Management (North) Ltd,98625770,179.85,T&S UK - Public Transport
BEIS,UKRI - BBSRC,08/11/2019,T&S UK - Public Transport,Innovation and Skills Group,Corporate Travel Management (North) Ltd,98625770,0.25,T&S UK - Public Transport
BEIS,UKRI - BBSRC,08/11/2019,T&S UK - Public Transport,Innovation and Skills Group,Corporate Travel Management (North) Ltd,98625770,103.80,T&S UK - Public Transport
BEIS,UKRI - BBSRC,08/11/2019,T&S UK - Public Transport,Innovation and Skills Group,Corporate Travel Management (North) Ltd,98625770,0.25,T&S UK - Public Transport
BEIS,UKRI - BBSRC,08/11/2019,T&S UK - Public Transport,Innovation and Skills Group,Corporate Travel Management (North) Ltd,98625770,32.10,T&S UK - Public Transport
BEIS,UKRI - BBSRC,08/11/2019,T&S UK - Public Transport,Innovation and Skills Group,Corporate Travel Management (North) Ltd,98625770,0.25,T&S UK - Public Transport
BEIS,UKRI - BBSRC,08/11/2019,T&S UK - Public Transport,Innovation and Skills Group,Corporate Travel Management (North) Ltd,98625770,162.60,T&S UK - Public Transport
BEIS,UKRI - BBSRC,08/11/2019,T&S UK - Public Transport,Innovation and Skills Group,Corporate Travel Management (North) Ltd,98625770,0.25,T&S UK - Public Transport
BEIS,UKRI - BBSRC,08/11/2019,T&S UK - Public Transport,Innovation and Skills Group,Corporate Travel Management (North) Ltd,98625770,89.45,T&S UK - Public Transport
BEIS,UKRI - BBSRC,08/11/2019,T&S UK - Public Transport,Innovation and Skills Group,Corporate Travel Management (North) Ltd,98625770,0.25,T&S UK - Public Transport
BEIS,UKRI - BBSRC,08/11/2019,T&S UK - Public Transport,Innovation and Skills Group,Corporate Travel Management (North) Ltd,98625770,39.60,T&S UK - Public Transport
BEIS,UKRI - BBSRC,08/11/2019,T&S UK - Public Transport,Innovation and Skills Group,Corporate Travel Management (North) Ltd,98625770,0.25,T&S UK - Public Transport
BEIS,UKRI - BBSRC,08/11/2019,T&S UK - Public Transport,Innovation and Skills Group,Corporate Travel Management (North) Ltd,98625770,81.65,T&S UK - Public Transport
BEIS,UKRI - BBSRC,08/11/2019,T&S UK - Public Transport,Innovation and Skills Group,Corporate Travel Management (North) Ltd,98625770,0.25,T&S UK - Public Transport
BEIS,UKRI - BBSRC,08/11/2019,T&S UK - Public Transport,Innovation and Skills Group,Corporate Travel Management (North) Ltd,98625770,147.85,T&S UK - Public Transport
BEIS,UKRI - BBSRC,08/11/2019,T&S UK - Public Transport,Innovation and Skills Group,Corporate Travel Management (North) Ltd,98625770,0.25,T&S UK - Public Transport
BEIS,UKRI - BBSRC,08/11/2019,T&S UK - Public Transport,Innovation and Skills Group,Corporate Travel Management (North) Ltd,98625770,55.20,T&S UK - Public Transport
BEIS,UKRI - BBSRC,08/11/2019,T&S UK - Public Transport,Innovation and Skills Group,Corporate Travel Management (North) Ltd,98625770,0.25,T&S UK - Public Transport
BEIS,UKRI - BBSRC,08/11/2019,T&S UK - Public Transport,Innovation and Skills Group,Corporate Travel Management (North) Ltd,98625770,36.00,T&S UK - Public Transport
BEIS,UKRI - BBSRC,08/11/2019,T&S UK - Public Transport,Innovation and Skills Group,Corporate Travel Management (North) Ltd,98625770,0.50,T&S UK - Public Transport
BEIS,UKRI - BBSRC,08/11/2019,T&S UK - Public Transport,Innovation and Skills Group,Corporate Travel Management (North) Ltd,98625770,44.50,T&S UK - Public Transport
BEIS,UKRI - BBSRC,08/11/2019,T&S UK - Public Transport,Innovation and Skills Group,Corporate Travel Management (North) Ltd,98625770,8.60,T&S UK - Public Transport
BEIS,UKRI - BBSRC,08/11/2019,T&S UK - Public Transport,Innovation and Skills Group,Corporate Travel Management (North) Ltd,98625770,0.25,T&S UK - Public Transport
BEIS,UKRI - BBSRC,08/11/2019,T&S UK - Public Transport,Innovation and Skills Group,Corporate Travel Management (North) Ltd,98625770,55.20,T&S UK - Public Transport
BEIS,UKRI - BBSRC,08/11/2019,T&S UK - Public Transport,Innovation and Skills Group,Corporate Travel Management (North) Ltd,98625770,0.25,T&S UK - Public Transport
BEIS,UKRI - BBSRC,08/11/2019,T&S UK - Public Transport,Innovation and Skills Group,Corporate Travel Management (North) Ltd,98625770,114.40,T&S UK - Public Transport
BEIS,UKRI - BBSRC,08/11/2019,T&S UK - Public Transport,Innovation and Skills Group,Corporate Travel Management (North) Ltd,98625770,0.25,T&S UK - Public Transport
BEIS,UKRI - BBSRC,08/11/2019,T&S UK - Public Transport,Innovation and Skills Group,Corporate Travel Management (North) Ltd,98625770,69.90,T&S UK - Public Transport
BEIS,UKRI - BBSRC,08/11/2019,T&S UK - Public Transport,Innovation and Skills Group,Corporate Travel Management (North) Ltd,98625770,0.25,T&S UK - Public Transport
BEIS,UKRI - BBSRC,08/11/2019,T&S UK - Public Transport,Innovation and Skills Group,Corporate Travel Management (North) Ltd,98625770,10.85,T&S UK - Public Transport
BEIS,UKRI - BBSRC,08/11/2019,T&S UK - Public Transport,Innovation and Skills Group,Corporate Travel Management (North) Ltd,98625770,0.25,T&S UK - Public Transport
BEIS,UKRI - BBSRC,08/11/2019,T&S UK - Public Transport,Innovation and Skills Group,Corporate Travel Management (North) Ltd,98625770,12.50,T&S UK - Public Transport
BEIS,UKRI - BBSRC,08/11/2019,T&S UK - Public Transport,Innovation and Skills Group,Corporate Travel Management (North) Ltd,98625770,0.25,T&S UK - Public Transport
BEIS,UKRI - BBSRC,08/11/2019,T&S UK - Public Transport,Innovation and Skills Group,Corporate Travel Management (North) Ltd,98625770,103.80,T&S UK - Public Transport
BEIS,UKRI - BBSRC,08/11/2019,T&S UK - Public Transport,Innovation and Skills Group,Corporate Travel Management (North) Ltd,98625770,0.25,T&S UK - Public Transport
BEIS,UKRI - BBSRC,08/11/2019,T&S UK - Public Transport,Innovation and Skills Group,Corporate Travel Management (North) Ltd,98625770,96.55,T&S UK - Public Transport
BEIS,UKRI - BBSRC,08/11/2019,T&S UK - Public Transport,Innovation and Skills Group,Corporate Travel Management (North) Ltd,98625770,0.25,T&S UK - Public Transport
